Local authority department which incurred the expenditure,Service Division,Cost Centre,Summary of the Purpose of Expenditure,Expense Type,Expense Code,Detailed Expense Type,Date of Transaction,Transaction Number,Beneficiary,Merchant Category Number,Merchant Category,Gross Amount,VAT,Net Amount
"Regeneration, Economy and Growth",Business Durham CL0850,030689,Inward Investment and Aftercare,Supplies and Services,304999,Equipment and Materials,01-Oct-2020,000007348006334,LINKEDIN-594 6483854,5968,Misc equipment tools and materials,24.71,0.00,24.71
"Regeneration, Economy and Growth",Development and Housing,031576,B& B - Temp Accom,Supplies and Services,364320,Grants to Voluntary Organisations,01-Oct-2020,000007348006366,WWW.HOTEL52.CO.UK,7011,Accommodation assistance,98.00,0.00,98.00
"Regeneration, Economy and Growth",Development and Housing,031500,Housing Solutions - Core Team,Supplies and Services,352001,Conference Expenses,01-Oct-2020,000007348006396,WWW.HOTEL52.CO.UK,7011,Conferencesseminars fees etc,298.00,0.00,298.00
Children and Young Peoples Services,Head of Childrens Social Care,085501,Child Care Cases Legal Expenses,Supplies and Services,304403,Equipment and Materials,01-Oct-2020,000007348006408,STOCKTON BOROUGH COUNC,9399,Other consumables,105.00,0.00,105.00
"Regeneration, Economy and Growth",Development and Housing,030773,CLLD North,Transport,235057,Public Transport,01-Oct-2020,000007348006416,GO NORTH EAST LIMITED,4131,Staff travelling,20.00,0.00,20.00
Adult and Health Services,Head of Adults,055302,Durham Pathways,Supplies and Services,324117,Provisions E324,01-Oct-2020,000007348006426,LIDL GB DURHAM,5411,Catering costs - provisions,7.96,0.00,7.96
"Regeneration, Economy and Growth",Culture Sport and Tourism,054798,dli Museum - WW1 Education Programme,Supplies and Services,304259,Equipment and Materials,01-Oct-2020,000007348006438,PAYPAL ELLIOTTMIL,5947,Equipment-purchase and rental,-20.00,0.00,-20.00
"Regeneration, Economy and Growth",Culture Sport and Tourism,030708,VCD - Marketing & Information,Supplies and Services,384199,Miscellaneous Expenses,01-Oct-2020,000007348006444,LATER.COM PREMIUM,5734,Other hired and contracted services,148.36,0.00,148.36
Children and Young Peoples Services,Head of Childrens Social Care,085380,Operations Manager LAC Resources,Supplies and Services,328041,Clothing uniforms and laundry E328,01-Oct-2020,000007348006588,ARGOS LTD,5310,Clothing uniforms and laundry,161.95,0.00,161.95
Children and Young Peoples Services,Head of Childrens Social Care,085380,Operations Manager LAC Resources,Supplies and Services,328041,Clothing uniforms and laundry E328,01-Oct-2020,000007348006592,ARGOS LTD,5310,Clothing uniforms and laundry,53.94,0.00,53.94
Children and Young Peoples Services,Head of Childrens Social Care,085380,Operations Manager LAC Resources,Supplies and Services,328041,Clothing uniforms and laundry E328,01-Oct-2020,000007348006596,ARGOS LTD,5310,Clothing uniforms and laundry,99.99,0.00,99.99
Children and Young Peoples Services,Head of Childrens Social Care,085380,Operations Manager LAC Resources,Supplies and Services,328041,Clothing uniforms and laundry E328,01-Oct-2020,000007348006600,ARGOS LTD,5310,Clothing uniforms and laundry,38.94,0.00,38.94
Children and Young Peoples Services,Head of Childrens Social Care,085380,Operations Manager LAC Resources,Supplies and Services,328041,Clothing uniforms and laundry E328,01-Oct-2020,000007348006606,ARGOS LTD,5310,Clothing uniforms and laundry,83.93,0.00,83.93
Children and Young Peoples Services,Head of Childrens Social Care,085380,Operations Manager LAC Resources,Supplies and Services,328041,Clothing uniforms and laundry E328,01-Oct-2020,000007348006612,ARGOS LTD,5310,Clothing uniforms and laundry,207.39,0.00,207.39
Children and Young Peoples Services,Head of Childrens Social Care,085380,Operations Manager LAC Resources,Supplies and Services,328041,Clothing uniforms and laundry E328,01-Oct-2020,000007348006616,ARGOS LTD,5310,Clothing uniforms and laundry,-99.99,0.00,-99.99
Children and Young Peoples Services,Head of Early Help Inclusion & Vulnerable Children.,088109,Spennymoor & Shildon 0-19 Community Family Hub,Supplies and Services,384302,Miscellaneous Expenses,01-Oct-2020,000007348006792,NSPCC SHOPIFY,8398,Activity expenses,150.00,0.00,150.00
"Regeneration, Economy and Growth",Culture Sport and Tourism,054967,Theatre - Technical Staffing,Supplies and Services,304221,Equipment and Materials,01-Oct-2020,000007348006854,SCREWFIX DIRECT,5211,Direct materials,12.50,0.00,12.50
"Regeneration, Economy and Growth",Development and Housing,031500,Housing Solutions - Core Team,Supplies and Services,352001,Conference Expenses,01-Oct-2020,000007348006894,WWW.HOTEL52.CO.UK,7011,Conferencesseminars fees etc,200.00,0.00,200.00
Children and Young Peoples Services,Head of Childrens Social Care,085332,Middlestone Moor CU,Supplies and Services,324117,Provisions E324,01-Oct-2020,000007348006904,KEN WARNE LTD (O5),5411,Catering costs - provisions,18.46,0.00,18.46
"Regeneration, Economy and Growth",Development and Housing,030771,Durham Advance Flexible Fund,Supplies and Services,304403,Equipment and Materials,01-Oct-2020,000007348006962,CERTSURE LLP,5999,Other consumables,48.00,0.00,48.00
Children and Young Peoples Services,Head of Early Help Inclusion & Vulnerable Children.,088113,Seaham  0-19 Community Family Hub,Supplies and Services,304403,Equipment and Materials,01-Oct-2020,000007348006982,AMZNMktplace,5999,Other consumables,24.97,0.00,24.97
Neighbourhoods and Climate Change,Environmental Services,010367,C&G - South Grounds Maintenance,Supplies and Services,304403,Equipment and Materials,01-Oct-2020,000007348006994,MAXWELLS DIY,5231,Other consumables,84.00,0.00,84.00
Neighbourhoods and Climate Change,Environmental Services,011060,C&G - Hardwick Park Catering,Premises,145009,Cleaning and Domestic Supplies,01-Oct-2020,000007348007004,ALLIANCE DISPOSABLES L,2842,Other cleaning and domestic costs,122.09,20.35,101.74
Neighbourhoods and Climate Change,Environmental Services,011060,C&G - Hardwick Park Catering,Supplies and Services,324117,Provisions E324,01-Oct-2020,000007348007008,JR HOLLAND FOODSERVICE,5499,Catering costs - provisions,5.96,0.00,5.96
Neighbourhoods and Climate Change,Environmental Services,011060,C&G - Hardwick Park Catering,Premises,145009,Cleaning and Domestic Supplies,01-Oct-2020,000007348007012,ALLIANCE DISPOSABLES L,2842,Other cleaning and domestic costs,-128.45,-21.41,-107.04
"Regeneration, Economy and Growth",Development and Housing,031500,Housing Solutions - Core Team,Supplies and Services,304999,Equipment and Materials,01-Oct-2020,000007348007086,THROWER STONE PROP,6513,Misc equipment tools and materials,217.00,0.00,217.00
Children and Young Peoples Services,Head of Childrens Social Care,085341,High Etherley Satelite Home,Supplies and Services,324117,Provisions E324,01-Oct-2020,000007348007242,HASWELL HOMER FARM,5499,Catering costs - provisions,14.35,0.00,14.35
Children and Young Peoples Services,Head of Childrens Social Care,085351,Framwellgate Moor CU,Supplies and Services,304403,Equipment and Materials,01-Oct-2020,000007348007254,AMZNMKTPLACE AMAZON.CO,5999,Other consumables,5.10,0.00,5.10
Children and Young Peoples Services,Head of Education and Skills,071802,Louisa Cent Nursery,Supplies and Services,304999,Equipment and Materials,01-Oct-2020,000007348007330,HOME BARGAINS,5251,Misc equipment tools and materials,29.59,0.00,29.59
Children and Young Peoples Services,Head of Childrens Social Care,085333,Coxhoe Satelite Home,Supplies and Services,324117,Provisions E324,01-Oct-2020,000007348007334,SAINSBURYS SACAT 0555,5411,Catering costs - provisions,40.00,0.00,40.00
Children and Young Peoples Services,Head of Childrens Social Care,085342,16 Hickstead Rise (previously 9 Cedar Ave),Supplies and Services,324117,Provisions E324,01-Oct-2020,000007348007358,TESCO STORES 2916,5411,Catering costs - provisions,20.25,0.00,20.25
Children and Young Peoples Services,Head of Childrens Social Care,085342,16 Hickstead Rise (previously 9 Cedar Ave),Supplies and Services,324117,Provisions E324,01-Oct-2020,000007348007364,TESCO STORES 2916,5411,Catering costs - provisions,9.00,0.00,9.00
Children and Young Peoples Services,Head of Education and Skills,078554,Adult Skills-Main,Third Party Payments,430100,Rendered by Private Contractors,01-Oct-2020,000007348007398,EB SPRING DATA CONFER,7399,Payments to sub-contractors,-144.00,0.00,-144.00
Children and Young Peoples Services,Head of Childrens Social Care,085352,Tow Law CU,Supplies and Services,324117,Provisions E324,01-Oct-2020,000007348007408,CO-OP GROUP 010989,5411,Catering costs - provisions,63.56,0.00,63.56
"Regeneration, Economy and Growth",Development and Housing,031576,B& B - Temp Accom,Supplies and Services,364320,Grants to Voluntary Organisations,01-Oct-2020,000007348007496,WWW.HOTEL52.CO.UK,7011,Accommodation assistance,403.00,0.00,403.00
Adult and Health Services,Head of Adults,055643,Hawthorn House LD Respite Unit,Supplies and Services,324117,Provisions E324,01-Oct-2020,000007348007526,JR HOLLAND FOODSERVICE,5499,Catering costs - provisions,5.65,0.00,5.65
Children and Young Peoples Services,Head of Early Help Inclusion & Vulnerable Children.,088102,Consett & Stanley 0-19 Targeted Family Support,Supplies and Services,340001,Postages E340,01-Oct-2020,000007348007596,POST OFFICE COUNTER,9402,Postages,1.40,0.00,1.40
Children and Young Peoples Services,Head of Early Help Inclusion & Vulnerable Children.,088102,Consett & Stanley 0-19 Targeted Family Support,Supplies and Services,364301,Grants to Voluntary Organisations,01-Oct-2020,000007348007602,WWW.MICHAELSEHGAL.CO.U,5137,Hardship,45.97,0.00,45.97
Resources BK0010,Digital and Customer Services,065335,School Services - Implementations,Supplies and Services,304639,Equipment and Materials,01-Oct-2020,000007348007620,WWW.ONLINELAPTOPBATTER,5045,Technicians-supplies,41.85,0.00,41.85
Resources BK0010,Digital and Customer Services,065335,School Services - Implementations,Supplies and Services,304639,Equipment and Materials,01-Oct-2020,000007348007630,REPLACEBASE,5732,Technicians-supplies,103.59,0.00,103.59
Resources BK0010,Digital and Customer Services,065335,School Services - Implementations,Supplies and Services,304639,Equipment and Materials,01-Oct-2020,000007348007634,WWW.AVPARTMASTER.NET,7622,Technicians-supplies,-86.40,0.00,-86.40
Children and Young Peoples Services,Head of Early Help Inclusion & Vulnerable Children.,085957,Secure Management,Premises,145015,Cleaning and Domestic Supplies,01-Oct-2020,000007348007650,AMZNMktplace,5999,Cleaning and domestic equipment,152.15,25.36,126.79
"Regeneration, Economy and Growth",Culture Sport and Tourism,054235,Bishop Auckland Town Hall Cafe,Supplies and Services,324117,Provisions E324,01-Oct-2020,000007348007668,JR HOLLAND FOODSERVICE,5499,Catering costs - provisions,12.45,0.00,12.45
Regeneration and Local Services,COVID19 - Regeneration Economy and Growth,091004,COVID19 - Regeneration Economy and Growth,Supplies and Services,304259,Equipment and Materials,01-Oct-2020,000007348007678,AMZNMktplace,5999,Equipment-purchase and rental,113.70,18.95,94.75
Regeneration and Local Services,COVID19 - Regeneration Economy and Growth,091004,COVID19 - Regeneration Economy and Growth,Supplies and Services,304259,Equipment and Materials,01-Oct-2020,000007348007678 - 1,AMZNMktplace,5999,Equipment-purchase and rental,0.10,,0.10
Adult and Health Services,Head of Adults,055301,Stanley Pathways,Supplies and Services,324117,Provisions E324,01-Oct-2020,000007348007748,WILKO RETAIL LIMITED,5399,Catering costs - provisions,3.00,0.00,3.00
Children and Young Peoples Services,Head of Childrens Social Care,085342,16 Hickstead Rise (previously 9 Cedar Ave),Supplies and Services,324117,Provisions E324,01-Oct-2020,000007348007780,TESCO STORES 2916,5411,Catering costs - provisions,39.79,0.00,39.79
Children and Young Peoples Services,Head of Childrens Social Care,085331,New Lea Childrens Home,Supplies and Services,348037,Subsistence E348,01-Oct-2020,000007348007908,LEBANEAT EXPRESS,5814,Subsistence,8.95,0.00,8.95
Children and Young Peoples Services,Head of Childrens Social Care,085331,New Lea Childrens Home,Supplies and Services,324117,Provisions E324,01-Oct-2020,000007348007910,CO-OP GROUP 010486,5411,Catering costs - provisions,6.05,0.00,6.05
Children and Young Peoples Services,Head of Childrens Social Care,085331,New Lea Childrens Home,Supplies and Services,348037,Subsistence E348,01-Oct-2020,000007348007912,BELLS FISH AND CHI,5812,Subsistence,26.10,0.00,26.10
Children and Young Peoples Services,Head of Childrens Social Care,085352,Tow Law CU,Supplies and Services,328041,Clothing uniforms and laundry E328,01-Oct-2020,000007348007930,ARGOS LTD,5310,Clothing uniforms and laundry,146.95,0.00,146.95
Resources BK0010,COVID19 - Resources,091007,COVID19 - Resources,Supplies and Services,332047,Printing Stationery and Gen Off Exps,01-Oct-2020,000007348007954,AMZNMktplace,5999,Stationery,15.95,2.66,13.29
Children and Young Peoples Services,Head of Childrens Social Care,085332,Middlestone Moor CU,Supplies and Services,304999,Equipment and Materials,01-Oct-2020,000007348008042,Amazon Prime 8G5TY82N5,5968,Misc equipment tools and materials,7.99,0.00,7.99
"Regeneration, Economy and Growth",Development and Housing,030771,Durham Advance Flexible Fund,Transport,235057,Public Transport,01-Oct-2020,000007348008076,GO NORTH EAST LIMITED,4131,Staff travelling,95.00,0.00,95.00
"Regeneration, Economy and Growth",Development and Housing,030771,Durham Advance Flexible Fund,Supplies and Services,328041,Clothing uniforms and laundry E328,01-Oct-2020,000007352013498,WWW.DOROTHYPERKINS,5691,Clothing uniforms and laundry,18.39,0.00,18.39
Neighbourhoods and Climate Change,Environmental Services,011060,C&G - Hardwick Park Catering,Supplies and Services,324117,Provisions E324,01-Oct-2020,000007352013648,BATLEYS PERTH,5300,Catering costs - provisions,95.84,0.00,95.84
Neighbourhoods and Climate Change,Environmental Services,011060,C&G - Hardwick Park Catering,Supplies and Services,324117,Provisions E324,01-Oct-2020,000007352013654,BATLEYS PERTH,5300,Catering costs - provisions,13.25,2.21,11.04
Resources BK0010,Digital and Customer Services,065335,School Services - Implementations,Supplies and Services,304639,Equipment and Materials,01-Oct-2020,000007352014380,AMZNMKTPLACE AMAZON.CO,5999,Technicians-supplies,17.94,3.00,14.94
Children and Young Peoples Services,Head of Education and Skills,070169,Durham SSP,Supplies and Services,384199,Miscellaneous Expenses,01-Oct-2020,7348007792,Amazon.co.uk GA66D5EY5,5969,Other hired and contracted services,13.19,0.00,13.19
"Regeneration, Economy and Growth",Culture Sport and Tourism,030708,VCD - Marketing & Information,Supplies and Services,384199,Miscellaneous Expenses,02-Oct-2020,000007348006446,LATER.COM PREMIUM,5734,Other hired and contracted services,4.08,0.00,4.08
Children and Young Peoples Services,Head of Childrens Social Care,085341,High Etherley Satelite Home,Supplies and Services,324117,Provisions E324,02-Oct-2020,000007352012554,TESCO STORES 6329,5411,Catering costs - provisions,125.94,0.00,125.94
"Regeneration, Economy and Growth",Business Durham CL0850,030689,Inward Investment and Aftercare,Supplies and Services,304403,Equipment and Materials,02-Oct-2020,000007352012566,ADOBE CREATIVE CLOUD,5734,Other consumables,49.94,0.00,49.94
"Regeneration, Economy and Growth",Business Durham CL0850,030689,Inward Investment and Aftercare,Supplies and Services,342222,Computers and Communications,02-Oct-2020,000007352012584,FASTHOSTS INTERNET,4816,Comp hardware purch-network servers,67.20,0.00,67.20
"Regeneration, Economy and Growth",Business Durham CL0850,030689,Inward Investment and Aftercare,Supplies and Services,342222,Computers and Communications,02-Oct-2020,000007352012586,FASTHOSTS INTERNET,4816,Comp hardware purch-network servers,72.66,0.00,72.66
Children and Young Peoples Services,Head of Childrens Social Care,085341,High Etherley Satelite Home,Supplies and Services,324117,Provisions E324,02-Oct-2020,000007352012636,TESCO STORES 6329,5411,Catering costs - provisions,12.00,0.00,12.00
"Regeneration, Economy and Growth",Development and Housing,031576,B& B - Temp Accom,Supplies and Services,364320,Grants to Voluntary Organisations,02-Oct-2020,000007352012684,BUDGET H EXPRESS HOTEL,7011,Accommodation assistance,500.00,0.00,500.00
"Regeneration, Economy and Growth",Development and Housing,031576,B& B - Temp Accom,Supplies and Services,364320,Grants to Voluntary Organisations,02-Oct-2020,000007352012692,BUDGET H EXPRESS HOTEL,7011,Accommodation assistance,500.00,0.00,500.00
"Regeneration, Economy and Growth",Development and Housing,031576,B& B - Temp Accom,Supplies and Services,364320,Grants to Voluntary Organisations,02-Oct-2020,000007352012698,BUDGET H EXPRESS HOTEL,7011,Accommodation assistance,191.00,0.00,191.00
"Regeneration, Economy and Growth",Development and Housing,031576,B& B - Temp Accom,Supplies and Services,364320,Grants to Voluntary Organisations,02-Oct-2020,000007352012702,BUDGET H EXPRESS HOTEL,7011,Accommodation assistance,500.00,0.00,500.00
"Regeneration, Economy and Growth",Development and Housing,031500,Housing Solutions - Core Team,Supplies and Services,304999,Equipment and Materials,02-Oct-2020,000007352012708,DUNCAN BELTON TA K,6513,Misc equipment tools and materials,400.00,0.00,400.00
Children and Young Peoples Services,Head of Education and Skills,075021,Youth Employment Initiative,Supplies and Services,364301,Grants to Voluntary Organisations,02-Oct-2020,000007352012726,N TYNESIDE SBS CNP,9399,Hardship,35.00,0.00,35.00
Children and Young Peoples Services,Head of Education and Skills,075021,Youth Employment Initiative,Supplies and Services,364301,Grants to Voluntary Organisations,02-Oct-2020,000007352012730,GO NORTH EAST LIMITED,4131,Hardship,15.00,0.00,15.00
Children and Young Peoples Services,Head of Education and Skills,075021,Youth Employment Initiative,Supplies and Services,364301,Grants to Voluntary Organisations,02-Oct-2020,000007352012734,GO NORTH EAST LIMITED,4131,Hardship,17.00,0.00,17.00
Children and Young Peoples Services,Head of Education and Skills,075021,Youth Employment Initiative,Supplies and Services,364301,Grants to Voluntary Organisations,02-Oct-2020,000007352012738,ASDA GEORGE COM LEEDS,5411,Hardship,105.00,0.00,105.00
Children and Young Peoples Services,Head of Education and Skills,075021,Youth Employment Initiative,Supplies and Services,364301,Grants to Voluntary Organisations,02-Oct-2020,000007352012742,CURRYS ONLINE,5732,Hardship,239.00,39.83,199.17
Children and Young Peoples Services,Head of Education and Skills,075021,Youth Employment Initiative,Supplies and Services,364301,Grants to Voluntary Organisations,02-Oct-2020,000007352012748,SCREWFIX DIRECT,5211,Hardship,4.98,0.83,4.15
Children and Young Peoples Services,Head of Education and Skills,075021,Youth Employment Initiative,Supplies and Services,364301,Grants to Voluntary Organisations,02-Oct-2020,000007352012748 - 1,SCREWFIX DIRECT,5211,Hardship,17.01,,17.01
Children and Young Peoples Services,Head of Education and Skills,075021,Youth Employment Initiative,Supplies and Services,364301,Grants to Voluntary Organisations,02-Oct-2020,000007352012754,SCREWFIX DIRECT,5211,Hardship,4.98,0.83,4.15
Children and Young Peoples Services,Head of Education and Skills,075021,Youth Employment Initiative,Supplies and Services,364301,Grants to Voluntary Organisations,02-Oct-2020,000007352012754 - 1,SCREWFIX DIRECT,5211,Hardship,17.01,,17.01
Children and Young Peoples Services,Head of Education and Skills,075021,Youth Employment Initiative,Supplies and Services,364301,Grants to Voluntary Organisations,02-Oct-2020,000007352012762,WWW.JOHNLEWIS.COM,5311,Hardship,229.00,38.17,190.83
Neighbourhoods and Climate Change,Environmental Services,010383,C&G - South Street Cleansing,Supplies and Services,304221,Equipment and Materials,02-Oct-2020,000007352012794,HARELAW SAWMILL,5211,Direct materials,138.29,0.00,138.29
"Regeneration, Economy and Growth",Culture Sport and Tourism,054798,dli Museum - WW1 Education Programme,Supplies and Services,304259,Equipment and Materials,02-Oct-2020,000007352012804,PAYPAL ENGLISHCOIN EB,5972,Equipment-purchase and rental,5.98,0.00,5.98
"Regeneration, Economy and Growth",Culture Sport and Tourism,030708,VCD - Marketing & Information,Supplies and Services,384199,Miscellaneous Expenses,02-Oct-2020,000007352012812,MAILCHIMP MONTHLY,5968,Other hired and contracted services,211.48,0.00,211.48
Children and Young Peoples Services,Head of Childrens Social Care,085332,Middlestone Moor CU,Supplies and Services,324117,Provisions E324,02-Oct-2020,000007352012824,TESCO STORES 2371,5411,Catering costs - provisions,40.13,0.00,40.13
Children and Young Peoples Services,Head of Childrens Social Care,085341,High Etherley Satelite Home,Supplies and Services,304221,Equipment and Materials,02-Oct-2020,000007352012840,SCREWFIX DIRECT,5211,Direct materials,77.68,0.00,77.68
Neighbourhoods and Climate Change,Environmental Services,010367,C&G - South Grounds Maintenance,Supplies and Services,304221,Equipment and Materials,02-Oct-2020,000007352012928,JT ATKINSON & SONS LTD,5211,Direct materials,89.18,0.00,89.18
Children and Young Peoples Services,Head of Childrens Social Care,085380,Operations Manager LAC Resources,Supplies and Services,328041,Clothing uniforms and laundry E328,02-Oct-2020,000007352013066,ARGOS LTD,5310,Clothing uniforms and laundry,179.96,0.00,179.96
Children and Young Peoples Services,Head of Childrens Social Care,085380,Operations Manager LAC Resources,Supplies and Services,328041,Clothing uniforms and laundry E328,02-Oct-2020,000007352013070,ARGOS LTD,5310,Clothing uniforms and laundry,71.92,0.00,71.92
Children and Young Peoples Services,Head of Childrens Social Care,085380,Operations Manager LAC Resources,Supplies and Services,328041,Clothing uniforms and laundry E328,02-Oct-2020,000007352013074,ARGOS LTD,5310,Clothing uniforms and laundry,-138.00,0.00,-138.00
Neighbourhoods and Climate Change,Environmental Services,010367,C&G - South Grounds Maintenance,Supplies and Services,304999,Equipment and Materials,02-Oct-2020,000007352013116,Snowballs,5251,Misc equipment tools and materials,36.00,0.00,36.00
"Regeneration, Economy and Growth",Development and Housing,031576,B& B - Temp Accom,Transport,235073,Public Transport,02-Oct-2020,000007352013142,BLUE LINE TAXIS,4121,Travel-clients/students/children,23.70,0.00,23.70
Children and Young Peoples Services,Head of Early Help Inclusion & Vulnerable Children.,085957,Secure Management,Supplies and Services,304259,Equipment and Materials,02-Oct-2020,000007352013166,JD SPORTS INTERNET,5941,Equipment-purchase and rental,190.00,0.00,190.00
Neighbourhoods and Climate Change,Environmental Services,010900,Fleet - Meadowfield Fleet,Transport,215013,Running Costs of Vehicles,02-Oct-2020,000007352013276,DVLA VEHICLE TAX,9311,Vehicle Excise Duty (VED),267.50,0.00,267.50
Neighbourhoods and Climate Change,Environmental Services,010900,Fleet - Meadowfield Fleet,Transport,215013,Running Costs of Vehicles,02-Oct-2020,000007352013280,DVLA VEHICLE TAX,9311,Vehicle Excise Duty (VED),267.50,0.00,267.50
Neighbourhoods and Climate Change,Environmental Services,010561,Fleet - Morrison Busty Fleet,Transport,215013,Running Costs of Vehicles,02-Oct-2020,000007352013282,DVLA VEHICLE TAX,9311,Vehicle Excise Duty (VED),267.50,0.00,267.50
Neighbourhoods and Climate Change,Environmental Services,010551,Fleet - Chilton Fleet,Transport,215013,Running Costs of Vehicles,02-Oct-2020,000007352013284,DVLA VEHICLE TAX,9311,Vehicle Excise Duty (VED),107.50,0.00,107.50
Neighbourhoods and Climate Change,Environmental Services,010561,Fleet - Morrison Busty Fleet,Transport,215013,Running Costs of Vehicles,02-Oct-2020,000007352013288,DVLA VEHICLE TAX,9311,Vehicle Excise Duty (VED),267.50,0.00,267.50
Neighbourhoods and Climate Change,Environmental Services,010900,Fleet - Meadowfield Fleet,Transport,215013,Running Costs of Vehicles,02-Oct-2020,000007352013294,DVLA VEHICLE TAX,9311,Vehicle Excise Duty (VED),267.50,0.00,267.50
Neighbourhoods and Climate Change,Environmental Services,010551,Fleet - Chilton Fleet,Transport,215013,Running Costs of Vehicles,02-Oct-2020,000007352013296,DVLA VEHICLE TAX,9311,Vehicle Excise Duty (VED),167.50,0.00,167.50
Children and Young Peoples Services,Head of Childrens Social Care,085342,16 Hickstead Rise (previously 9 Cedar Ave),Supplies and Services,324117,Provisions E324,02-Oct-2020,000007352013356,TESCO STORES 2916,5411,Catering costs - provisions,8.49,0.00,8.49
Children and Young Peoples Services,Head of Childrens Social Care,085342,16 Hickstead Rise (previously 9 Cedar Ave),Supplies and Services,348037,Subsistence E348,02-Oct-2020,000007352013364,MCDONALDS,5814,Subsistence,9.52,0.00,9.52
Children and Young Peoples Services,Head of Education and Skills,071732,Dean Bank Childcare,Supplies and Services,324117,Provisions E324,02-Oct-2020,000007352013416,B&M 035 - SHILDON,5399,Catering costs - provisions,35.66,0.00,35.66
Resources BK0010,Legal & Democratic Services,067910,Democratic Representation 067910,Supplies and Services,384965,Miscellaneous Expenses,02-Oct-2020,000007352013446,Durham City Studios,5999,Civic Functions,245.03,0.00,245.03
"Regeneration, Economy and Growth",Development and Housing,030771,Durham Advance Flexible Fund,Supplies and Services,304221,Equipment and Materials,02-Oct-2020,000007352013560,SCREWFIX DURHAM,5211,Direct materials,74.98,0.00,74.98
Children and Young Peoples Services,Head of Early Help Inclusion & Vulnerable Children.,085965,Barnard,Supplies and Services,324117,Provisions E324,02-Oct-2020,000007352013590,TESCO STORES 6329,5411,Catering costs - provisions,65.53,0.00,65.53
Children and Young Peoples Services,Head of Early Help Inclusion & Vulnerable Children.,085957,Secure Management,Supplies and Services,304221,Equipment and Materials,02-Oct-2020,000007352013594,SCREWFIX DIRECT,5211,Direct materials,24.99,0.00,24.99
Children and Young Peoples Services,Head of Childrens Social Care,085632,Families First Seaham,Supplies and Services,328041,Clothing uniforms and laundry E328,02-Oct-2020,000007352013620,ARGOS LTD,5310,Clothing uniforms and laundry,12.99,0.00,12.99
Regeneration and Local Services,COVID19 - Neighbourhoods and Climate Change,091005,COVID19 - Neighbourhoods and Climate Change,Premises,145023,Cleaning and Domestic Supplies,02-Oct-2020,000007352013636,PPE SUPPLIES DIRECT LT,7399,Cleaning and domestic materials,93.00,0.00,93.00
Regeneration and Local Services,COVID19 - Neighbourhoods and Climate Change,091005,COVID19 - Neighbourhoods and Climate Change,Premises,145023,Cleaning and Domestic Supplies,02-Oct-2020,000007352013638,AMZNMktplace,5999,Cleaning and domestic materials,35.98,6.00,29.98
Neighbourhoods and Climate Change,Environmental Services,011060,C&G - Hardwick Park Catering,Supplies and Services,324117,Provisions E324,02-Oct-2020,000007352013672,HOPWELLS LTD,5811,Catering costs - provisions,140.04,23.34,116.70
Neighbourhoods and Climate Change,Environmental Services,011060,C&G - Hardwick Park Catering,Supplies and Services,324117,Provisions E324,02-Oct-2020,000007352013672 - 1,HOPWELLS LTD,5811,Catering costs - provisions,67.92,,67.92
Neighbourhoods and Climate Change,Environmental Services,011060,C&G - Hardwick Park Catering,Supplies and Services,324117,Provisions E324,02-Oct-2020,000007352013678,HOPWELLS LTD,5811,Catering costs - provisions,139.98,23.33,116.65
Neighbourhoods and Climate Change,Environmental Services,011060,C&G - Hardwick Park Catering,Supplies and Services,324117,Provisions E324,02-Oct-2020,000007352013678 - 1,HOPWELLS LTD,5811,Catering costs - provisions,21.43,,21.43
Neighbourhoods and Climate Change,Environmental Services,011060,C&G - Hardwick Park Catering,Premises,145009,Cleaning and Domestic Supplies,02-Oct-2020,000007352013682,ALLIANCE DISPOSABLES L,2842,Other cleaning and domestic costs,106.88,17.82,89.06
Neighbourhoods and Climate Change,Environmental Services,011060,C&G - Hardwick Park Catering,Supplies and Services,324117,Provisions E324,02-Oct-2020,000007352013686,JR HOLLAND FOODSERVICE,5499,Catering costs - provisions,29.75,0.00,29.75
"Regeneration, Economy and Growth",Corporate Property and Land,021234,Catering - Locomotion,Supplies and Services,324117,Provisions E324,02-Oct-2020,000007352013724,HOPWELLS LTD,5811,Catering costs - provisions,80.66,0.00,80.66
"Regeneration, Economy and Growth",Corporate Property and Land,021234,Catering - Locomotion,Premises,145009,Cleaning and Domestic Supplies,02-Oct-2020,000007352013730,ALLIANCE DISPOSABLES L,2842,Other cleaning and domestic costs,56.93,9.49,47.44
"Regeneration, Economy and Growth",Corporate Property and Land,021234,Catering - Locomotion,Supplies and Services,324117,Provisions E324,02-Oct-2020,000007352013736,JR HOLLAND FOODSERVICE,5499,Catering costs - provisions,70.35,0.00,70.35
Children and Young Peoples Services,Head of Childrens Social Care,085331,New Lea Childrens Home,Supplies and Services,304999,Equipment and Materials,02-Oct-2020,000007352013770,HOME BARGAINS,5251,Misc equipment tools and materials,11.14,0.00,11.14
Children and Young Peoples Services,Head of Childrens Social Care,085331,New Lea Childrens Home,Supplies and Services,324117,Provisions E324,02-Oct-2020,000007352013774,TESCO STORE 2562,5411,Catering costs - provisions,11.54,0.00,11.54
Children and Young Peoples Services,Head of Early Help Inclusion & Vulnerable Children.,088119,Durham 0-19 Community Family Hub,Supplies and Services,384999,Miscellaneous Expenses,02-Oct-2020,000007352013780,BAKER ROSS,5970,Other expenses,130.80,0.00,130.80
Children and Young Peoples Services,Head of Childrens Social Care,085351,Framwellgate Moor CU,Supplies and Services,304403,Equipment and Materials,02-Oct-2020,000007352013976,AMZNMktplace,5999,Other consumables,95.40,0.00,95.40
Adult and Health Services,Head of Adults,055301,Stanley Pathways,Supplies and Services,324117,Provisions E324,02-Oct-2020,000007352014154,ASDA SUPERSTORE,5411,Catering costs - provisions,32.33,0.00,32.33
Adult and Health Services,Head of Adults,055301,Stanley Pathways,Supplies and Services,324117,Provisions E324,02-Oct-2020,000007352014160,ASDA SUPERSTORE,5411,Catering costs - provisions,40.62,0.00,40.62
Children and Young Peoples Services,Head of Childrens Social Care,085342,16 Hickstead Rise (previously 9 Cedar Ave),Supplies and Services,324117,Provisions E324,02-Oct-2020,000007352014178,WILKO RETAIL LIMITED,5399,Catering costs - provisions,7.50,0.00,7.50
Children and Young Peoples Services,Head of Childrens Social Care,085342,16 Hickstead Rise (previously 9 Cedar Ave),Supplies and Services,324117,Provisions E324,02-Oct-2020,000007352014184,SAINSBURYS 2199,5411,Catering costs - provisions,13.50,0.00,13.50
Children and Young Peoples Services,Head of Childrens Social Care,085342,16 Hickstead Rise (previously 9 Cedar Ave),Supplies and Services,324117,Provisions E324,02-Oct-2020,000007352014192,TESCO STORES 2916,5411,Catering costs - provisions,3.95,0.00,3.95
"Regeneration, Economy and Growth",Corporate Property and Land,030691,Catering - Durham Dales Centre,Supplies and Services,324117,Provisions E324,02-Oct-2020,000007352014254,JR HOLLAND FOODSERVICE,5499,Catering costs - provisions,63.01,0.00,63.01
Children and Young Peoples Services,Head of Education and Skills,075021,Youth Employment Initiative,Transport,235057,Public Transport,02-Oct-2020,000007352014264,GO NORTH EAST LIMITED,4131,Staff travelling,25.00,0.00,25.00
Adult and Health Services,Head of Adults,055643,Hawthorn House LD Respite Unit,Supplies and Services,324117,Provisions E324,02-Oct-2020,000007352014292,HOPWELLS LTD,5811,Catering costs - provisions,41.71,0.00,41.71
Adult and Health Services,Head of Adults,055643,Hawthorn House LD Respite Unit,Supplies and Services,324117,Provisions E324,02-Oct-2020,000007352014296,JR HOLLAND FOODSERVICE,5499,Catering costs - provisions,16.54,0.00,16.54
Adult and Health Services,Head of Adults,055643,Hawthorn House LD Respite Unit,Supplies and Services,324117,Provisions E324,02-Oct-2020,000007352014298,JR HOLLAND FOODSERVICE,5499,Catering costs - provisions,15.33,0.00,15.33
Resources BK0010,Digital and Customer Services,065335,School Services - Implementations,Supplies and Services,304639,Equipment and Materials,02-Oct-2020,000007352014388,AMZNMKTPLACE AMAZON.CO,5999,Technicians-supplies,17.98,3.00,14.98
Children and Young Peoples Services,Head of Childrens Social Care,085334,West Rainton Satelite Home,Supplies and Services,324117,Provisions E324,02-Oct-2020,000007352014408,TESCO STORES 2371,5411,Catering costs - provisions,65.80,0.00,65.80
"Regeneration, Economy and Growth",Development and Housing,030771,Durham Advance Flexible Fund,Employees,040149,Recruitment Instruction and Training,02-Oct-2020,000007352014418,CITIZENCARD,8699,Training-all costs,15.00,0.00,15.00
Children and Young Peoples Services,Head of Early Help Inclusion & Vulnerable Children.,085957,Secure Management,Employees,040149,Recruitment Instruction and Training,02-Oct-2020,000007352014426,ARCOLA/HOUSE SIGN,8999,Training-all costs,20.00,0.00,20.00
Children and Young Peoples Services,Head of Early Help Inclusion & Vulnerable Children.,085957,Secure Management,Supplies and Services,384999,Miscellaneous Expenses,02-Oct-2020,000007352014432,AMZNMktplace,5999,Other expenses,12.00,2.00,10.00
Children and Young Peoples Services,Head of Childrens Social Care,085332,Middlestone Moor CU,Supplies and Services,324117,Provisions E324,02-Oct-2020,000007352014466,PITY ME NURSERY,5499,Catering costs - provisions,18.00,0.00,18.00
Children and Young Peoples Services,Head of Childrens Social Care,085332,Middlestone Moor CU,Supplies and Services,324117,Provisions E324,02-Oct-2020,000007352014468,ASDA SUPERSTORE 4987,5411,Catering costs - provisions,47.76,0.00,47.76
Children and Young Peoples Services,Head of Childrens Social Care,085342,16 Hickstead Rise (previously 9 Cedar Ave),Supplies and Services,324117,Provisions E324,02-Oct-2020,000007352014532,COOPLANDS BAKERY,5462,Catering costs - provisions,10.05,0.00,10.05
Children and Young Peoples Services,Head of Childrens Social Care,085342,16 Hickstead Rise (previously 9 Cedar Ave),Supplies and Services,324117,Provisions E324,02-Oct-2020,000007352014536,TESCO STORES 2916,5411,Catering costs - provisions,51.01,0.00,51.01
Children and Young Peoples Services,Head of Childrens Social Care,085342,16 Hickstead Rise (previously 9 Cedar Ave),Supplies and Services,324117,Provisions E324,02-Oct-2020,000007352014538,COOPLANDS BAKERY,5462,Catering costs - provisions,-0.95,0.00,-0.95
Resources BK0010,COVID19 - Resources,091007,COVID19 - Resources,Supplies and Services,332047,Printing Stationery and Gen Off Exps,02-Oct-2020,000007352014824,Amazon.co.uk 7Y18O3FN5,5969,Stationery,25.75,4.29,21.46
"Regeneration, Economy and Growth",Corporate Property and Land,021235,Catering - Wharton Park,Supplies and Services,324117,Provisions E324,02-Oct-2020,000007352014868,JR HOLLAND FOODSERVICE,5499,Catering costs - provisions,8.65,0.00,8.65
"Regeneration, Economy and Growth",Development and Housing,030771,Durham Advance Flexible Fund,Supplies and Services,304221,Equipment and Materials,02-Oct-2020,000007352014974,SCREWFIX DIRECT,5211,Direct materials,59.99,10.00,49.99
"Regeneration, Economy and Growth",Development and Housing,031576,B& B - Temp Accom,Supplies and Services,364320,Grants to Voluntary Organisations,02-Oct-2020,000007356353848,WWW.HOTEL52.CO.UK,7011,Accommodation assistance,206.00,0.00,206.00
"Regeneration, Economy and Growth",Development and Housing,031576,B& B - Temp Accom,Supplies and Services,364320,Grants to Voluntary Organisations,02-Oct-2020,000007356353944,WWW.HOTEL52.CO.UK,7011,Accommodation assistance,209.00,0.00,209.00
Children and Young Peoples Services,Head of Early Help Inclusion & Vulnerable Children.,085954,Walworth,Supplies and Services,304259,Equipment and Materials,02-Oct-2020,000007356353956,SPORTSDIRECT.COM,5941,Equipment-purchase and rental,74.49,0.00,74.49
Neighbourhoods and Climate Change,Environmental Services,011060,C&G - Hardwick Park Catering,Supplies and Services,324117,Provisions E324,02-Oct-2020,000007356354106,BATLEYS PERTH,5300,Catering costs - provisions,74.94,12.49,62.45
Neighbourhoods and Climate Change,Environmental Services,011060,C&G - Hardwick Park Catering,Supplies and Services,324117,Provisions E324,02-Oct-2020,000007356354106 - 1,BATLEYS PERTH,5300,Catering costs - provisions,68.02,,68.02
"Regeneration, Economy and Growth",Development and Housing,031500,Housing Solutions - Core Team,Supplies and Services,352001,Conference Expenses,02-Oct-2020,000007356354128,AYCLIFFE BIZ,7011,Conferencesseminars fees etc,152.00,0.00,152.00
"Regeneration, Economy and Growth",Development and Housing,031500,Housing Solutions - Core Team,Supplies and Services,352001,Conference Expenses,02-Oct-2020,000007356354132,WWW.HOTEL52.CO.UK,7011,Conferencesseminars fees etc,141.00,0.00,141.00
"Regeneration, Economy and Growth",Development and Housing,031500,Housing Solutions - Core Team,Supplies and Services,352001,Conference Expenses,02-Oct-2020,000007356354134,WWW.HOTEL52.CO.UK,7011,Conferencesseminars fees etc,184.00,0.00,184.00
"Regeneration, Economy and Growth",Culture Sport and Tourism,054201,South Moor Library,Supplies and Services,384956,Miscellaneous Expenses,02-Oct-2020,000007356354150,TVLICENSING.CO.UK,7392,Licences,157.50,0.00,157.50
Adult and Health Services,Head of Adults,055643,Hawthorn House LD Respite Unit,Supplies and Services,324117,Provisions E324,02-Oct-2020,000007356354232,BATLEYS PERTH,5300,Catering costs - provisions,27.60,4.60,23.00
Adult and Health Services,Head of Adults,055643,Hawthorn House LD Respite Unit,Supplies and Services,324117,Provisions E324,02-Oct-2020,000007356354232 - 1,BATLEYS PERTH,5300,Catering costs - provisions,67.77,,67.77
Children and Young Peoples Services,Head of Education and Skills,070169,Durham SSP,Supplies and Services,384199,Miscellaneous Expenses,02-Oct-2020,7352014594,ZOOM.GBP,5968,Other hired and contracted services,14.39,2.40,11.99
Children and Young Peoples Services,Head of Early Help Inclusion & Vulnerable Children.,085957,Secure Management,Supplies and Services,304259,Equipment and Materials,03-Oct-2020,000007352013172,JD SPORTS INTERNET,5941,Equipment-purchase and rental,-65.00,0.00,-65.00
Children and Young Peoples Services,Head of Childrens Social Care,085342,16 Hickstead Rise (previously 9 Cedar Ave),Supplies and Services,324117,Provisions E324,03-Oct-2020,000007352013368,COOPLANDS BAKERY,5462,Catering costs - provisions,4.50,0.00,4.50
Children and Young Peoples Services,Head of Childrens Social Care,085342,16 Hickstead Rise (previously 9 Cedar Ave),Supplies and Services,348037,Subsistence E348,03-Oct-2020,000007352013374,MCDONALDS,5814,Subsistence,17.74,0.00,17.74
Children and Young Peoples Services,Head of Childrens Social Care,085342,16 Hickstead Rise (previously 9 Cedar Ave),Supplies and Services,324117,Provisions E324,03-Oct-2020,000007352013380,ICELAND,5411,Catering costs - provisions,8.43,0.00,8.43
Children and Young Peoples Services,Head of Childrens Social Care,085334,West Rainton Satelite Home,Supplies and Services,304221,Equipment and Materials,03-Oct-2020,000007352013448,B & Q 1343,5200,Direct materials,30.59,0.00,30.59
Children and Young Peoples Services,Head of Childrens Social Care,085334,West Rainton Satelite Home,Supplies and Services,304259,Equipment and Materials,03-Oct-2020,000007352013452,WWW.H.TEMPEST LTD,7221,Equipment-purchase and rental,22.00,0.00,22.00
Children and Young Peoples Services,Head of Childrens Social Care,085334,West Rainton Satelite Home,Supplies and Services,304259,Equipment and Materials,03-Oct-2020,000007352013454,WWW.H.TEMPEST LTD,7221,Equipment-purchase and rental,35.50,0.00,35.50
Children and Young Peoples Services,Head of Childrens Social Care,085334,West Rainton Satelite Home,Supplies and Services,324117,Provisions E324,03-Oct-2020,000007352013458,SPAR,5411,Catering costs - provisions,40.30,0.00,40.30
Children and Young Peoples Services,Head of Childrens Social Care,085334,West Rainton Satelite Home,Supplies and Services,304403,Equipment and Materials,03-Oct-2020,000007352013462,AMZNMktplace,5999,Other consumables,23.98,0.00,23.98
Children and Young Peoples Services,Head of Early Help Inclusion & Vulnerable Children.,085962,Aycliffe Secure - Durham,Supplies and Services,348037,Subsistence E348,03-Oct-2020,000007352013464,Sunny House,5812,Subsistence,65.10,0.00,65.10
Children and Young Peoples Services,Head of Early Help Inclusion & Vulnerable Children.,085962,Aycliffe Secure - Durham,Supplies and Services,304403,Equipment and Materials,03-Oct-2020,000007352013470,AMZNMKTPLACE AMAZON.CO,5999,Other consumables,10.87,0.00,10.87
Children and Young Peoples Services,Head of Early Help Inclusion & Vulnerable Children.,085956,Lumley,Supplies and Services,324117,Provisions E324,03-Oct-2020,000007352013602,TESCO STORES 6329,5411,Catering costs - provisions,90.47,0.00,90.47
Children and Young Peoples Services,Head of Childrens Social Care,085341,High Etherley Satelite Home,Transport,235057,Public Transport,03-Oct-2020,000007352013966,Arriva Durham County,4111,Staff travelling,1.70,0.00,1.70
Children and Young Peoples Services,Head of Childrens Social Care,085341,High Etherley Satelite Home,Transport,235057,Public Transport,03-Oct-2020,000007352013972,Arriva Durham County,4111,Staff travelling,1.70,0.00,1.70
Children and Young Peoples Services,Head of Childrens Social Care,085342,16 Hickstead Rise (previously 9 Cedar Ave),Supplies and Services,328041,Clothing uniforms and laundry E328,03-Oct-2020,000007352014196,PRIMARK,5651,Clothing uniforms and laundry,39.50,0.00,39.50
Children and Young Peoples Services,Head of Childrens Social Care,085342,16 Hickstead Rise (previously 9 Cedar Ave),Supplies and Services,384999,Miscellaneous Expenses,03-Oct-2020,000007352014200,BODYCARE,5977,Other expenses,9.00,0.00,9.00
Children and Young Peoples Services,Head of Childrens Social Care,085334,West Rainton Satelite Home,Supplies and Services,348037,Subsistence E348,03-Oct-2020,000007352014326,INFINITE AIRE CAFE- SA,5812,Subsistence,7.70,0.00,7.70
Children and Young Peoples Services,Head of Childrens Social Care,085334,West Rainton Satelite Home,Supplies and Services,348037,Subsistence E348,03-Oct-2020,000007352014330,INFINITE AIRE CAFE- SA,5812,Subsistence,3.75,0.00,3.75
Children and Young Peoples Services,Head of Childrens Social Care,085334,West Rainton Satelite Home,Supplies and Services,304999,Equipment and Materials,03-Oct-2020,000007352014332,WWW.INFINITEAIR.CO.UK,7991,Misc equipment tools and materials,42.85,0.00,42.85
Children and Young Peoples Services,Head of Childrens Social Care,085332,Middlestone Moor CU,Supplies and Services,312009,Newspapers books and periodicals E312,03-Oct-2020,000007352014472,MIDDLESTONE MOOR NEWSA,5994,Newspapers books and periodicals,40.50,0.00,40.50
Children and Young Peoples Services,Head of Childrens Social Care,085352,Tow Law CU,Supplies and Services,324117,Provisions E324,03-Oct-2020,000007352014780,TESCO STORES 6329,5411,Catering costs - provisions,3.75,0.00,3.75
Children and Young Peoples Services,Head of Childrens Social Care,085352,Tow Law CU,Supplies and Services,324117,Provisions E324,03-Oct-2020,000007352014786,TESCO STORES 6329,5411,Catering costs - provisions,23.58,0.00,23.58
"Regeneration, Economy and Growth",Business Durham CL0850,030689,Inward Investment and Aftercare,Supplies and Services,342033,Computers and Communications,04-Oct-2020,000007352012578,STK Shutterstock,7333,Computer hardware,19.00,0.00,19.00
"Regeneration, Economy and Growth",Business Durham CL0850,030689,Inward Investment and Aftercare,Supplies and Services,342222,Computers and Communications,04-Oct-2020,000007352012580,FASTHOSTS INTERNET,4816,Comp hardware purch-network servers,7.54,0.00,7.54
Children and Young Peoples Services,Head of Childrens Social Care,085341,High Etherley Satelite Home,Supplies and Services,324117,Provisions E324,04-Oct-2020,000007352012642,TESCO STORES 6329,5411,Catering costs - provisions,14.50,0.00,14.50
Children and Young Peoples Services,Head of Childrens Social Care,085341,High Etherley Satelite Home,Supplies and Services,324117,Provisions E324,04-Oct-2020,000007352012646,TESCO STORES 6329,5411,Catering costs - provisions,4.15,0.00,4.15
Resources BK0010,Business Support,065474,Rechargeable Items,Supplies and Services,384999,Miscellaneous Expenses,04-Oct-2020,000007352012664,Amazon.co.uk 3Q45Y6KX5,5969,Other expenses,26.36,4.40,21.96
Children and Young Peoples Services,Head of Education and Skills,075021,Youth Employment Initiative,Supplies and Services,364301,Grants to Voluntary Organisations,04-Oct-2020,000007352012764,AMZNMktplace,5999,Hardship,19.98,3.33,16.65
Children and Young Peoples Services,Head of Childrens Social Care,085342,16 Hickstead Rise (previously 9 Cedar Ave),Supplies and Services,328041,Clothing uniforms and laundry E328,04-Oct-2020,000007352013382,MATALAN,5691,Clothing uniforms and laundry,62.60,0.00,62.60
Children and Young Peoples Services,Head of Childrens Social Care,085342,16 Hickstead Rise (previously 9 Cedar Ave),Supplies and Services,348037,Subsistence E348,04-Oct-2020,000007352013386,KFC - DARLINGTON DT,5814,Subsistence,33.42,0.00,33.42
Children and Young Peoples Services,Head of Childrens Social Care,085342,16 Hickstead Rise (previously 9 Cedar Ave),Supplies and Services,304999,Equipment and Materials,04-Oct-2020,000007352013388,HOME BARGAINS,5251,Misc equipment tools and materials,11.83,0.00,11.83
Children and Young Peoples Services,Head of Childrens Social Care,085342,16 Hickstead Rise (previously 9 Cedar Ave),Supplies and Services,328041,Clothing uniforms and laundry E328,04-Oct-2020,000007352013394,T K MAXX,5331,Clothing uniforms and laundry,30.09,0.00,30.09
Children and Young Peoples Services,Head of Early Help Inclusion & Vulnerable Children.,085954,Walworth,Supplies and Services,324117,Provisions E324,04-Oct-2020,000007352013612,TESCO STORES 6329,5411,Catering costs - provisions,72.20,0.00,72.20
Adult and Health Services,Head of Adults,055643,Hawthorn House LD Respite Unit,Supplies and Services,324117,Provisions E324,04-Oct-2020,000007352014080,CO-OP GROUP 010465,5411,Catering costs - provisions,2.20,0.00,2.20
Children and Young Peoples Services,Head of Childrens Social Care,085342,16 Hickstead Rise (previously 9 Cedar Ave),Supplies and Services,328041,Clothing uniforms and laundry E328,04-Oct-2020,000007352014202,MATALAN,5691,Clothing uniforms and laundry,60.10,0.00,60.10
Children and Young Peoples Services,Head of Childrens Social Care,085342,16 Hickstead Rise (previously 9 Cedar Ave),Supplies and Services,304999,Equipment and Materials,04-Oct-2020,000007352014206,HOME BARGAINS,5251,Misc equipment tools and materials,14.42,0.00,14.42
Children and Young Peoples Services,Head of Childrens Social Care,085332,Middlestone Moor CU,Supplies and Services,324117,Provisions E324,04-Oct-2020,000007352014474,ASDA STORES,5411,Catering costs - provisions,10.81,0.00,10.81
Children and Young Peoples Services,Head of Early Help Inclusion & Vulnerable Children.,085801,CDYJS - Support,Supplies and Services,304999,Equipment and Materials,04-Oct-2020,000007352014504,HOME BARGAINS,5251,Misc equipment tools and materials,2.95,0.00,2.95
Children and Young Peoples Services,Head of Early Help Inclusion & Vulnerable Children.,085801,CDYJS - Support,Supplies and Services,324117,Provisions E324,04-Oct-2020,000007352014508,ASDA SUPERSTORE,5411,Catering costs - provisions,1.50,0.00,1.50
Children and Young Peoples Services,Head of Education and Skills,071802,Louisa Cent Nursery,Supplies and Services,324117,Provisions E324,04-Oct-2020,000007352014558,TESCO STORES 4358,5411,Catering costs - provisions,5.00,0.00,5.00
Children and Young Peoples Services,Head of Education and Skills,071802,Louisa Cent Nursery,Supplies and Services,324117,Provisions E324,04-Oct-2020,000007352014566,ALDI 11 774,5411,Catering costs - provisions,10.76,0.00,10.76
Children and Young Peoples Services,Head of Childrens Social Care,085331,New Lea Childrens Home,Premises,145009,Cleaning and Domestic Supplies,04-Oct-2020,000007352014734,WWW.KARCHEROUTLET.CO.U,7349,Other cleaning and domestic costs,168.44,0.00,168.44
Children and Young Peoples Services,Head of Childrens Social Care,085331,New Lea Childrens Home,Supplies and Services,308011,Furniture,04-Oct-2020,000007352014740,IKEA LTD SHOP ONLINE,5712,Furniture repair and replacement,276.25,0.00,276.25
Children and Young Peoples Services,Head of Childrens Social Care,085331,New Lea Childrens Home,Supplies and Services,308011,Furniture,04-Oct-2020,000007352014748,IKEA LTD SHOP ONLINE,5712,Furniture repair and replacement,55.00,0.00,55.00
Children and Young Peoples Services,Head of Childrens Social Care,085331,New Lea Childrens Home,Supplies and Services,324117,Provisions E324,04-Oct-2020,000007352014756,B&M 681 - DURHAM,5399,Catering costs - provisions,127.16,0.00,127.16
Children and Young Peoples Services,Head of Childrens Social Care,085331,New Lea Childrens Home,Supplies and Services,328041,Clothing uniforms and laundry E328,04-Oct-2020,000007352014760,ARGOS LTD,5310,Clothing uniforms and laundry,92.49,0.00,92.49
Children and Young Peoples Services,Head of Childrens Social Care,085331,New Lea Childrens Home,Supplies and Services,324117,Provisions E324,04-Oct-2020,000007352014766,CO-OP GROUP 010989,5411,Catering costs - provisions,33.29,0.00,33.29
Children and Young Peoples Services,Head of Early Help Inclusion & Vulnerable Children.,085957,Secure Management,Supplies and Services,304403,Equipment and Materials,04-Oct-2020,000007356354268,AMZNMKTPLACE AMAZON.CO,5999,Other consumables,11.00,1.84,9.16
Children and Young Peoples Services,Head of Childrens Social Care,085341,High Etherley Satelite Home,Supplies and Services,324117,Provisions E324,05-Oct-2020,000007356353842,TESCO STORES 6329,5411,Catering costs - provisions,19.20,0.00,19.20
Children and Young Peoples Services,Head of Childrens Social Care,085612,Families First Consett,Supplies and Services,364301,Grants to Voluntary Organisations,05-Oct-2020,000007356353844,WINSTANLEYS PRAMWORLD,5999,Hardship,710.00,0.00,710.00
Resources BK0010,Digital and Customer Services,065351,Microsoft Office 365,Supplies and Services,342053,Computers and Communications,05-Oct-2020,000007356353850,FS TechSmith,5817,Computer software,34.27,0.00,34.27
Resources BK0010,Digital and Customer Services,065351,Microsoft Office 365,Supplies and Services,342053,Computers and Communications,05-Oct-2020,000007356353852,FS TechSmith,5817,Computer software,57.13,0.00,57.13
Neighbourhoods and Climate Change,Environmental Services,010341,Nei.Prot - N. Wardens,Supplies and Services,344033,Telephones,05-Oct-2020,000007356353854,AMZNMktplace,5999,Telephones general-all costs,77.70,12.96,64.74
Resources BK0010,Business Support,065506,Business Support - Green Lane,Supplies and Services,342033,Computers and Communications,05-Oct-2020,000007356353856,AMZNMktplace,5999,Computer hardware,29.95,0.00,29.95
Resources BK0010,Digital and Customer Services,065487,ICT Telephony Recharges,Supplies and Services,344033,Telephones,05-Oct-2020,000007356353858,AMZNMktplace,5999,Telephones general-all costs,305.00,51.00,254.00
Adult and Health Services,Commissioning inc Supporting People,052100,Supporting the Provider Market,Supplies and Services,338057,Services,05-Oct-2020,000007356353860,PAYPAL WESSEX MED,5047,Medical fees 338057,"1,449.00",0.00,1449.00
Children and Young Peoples Services,Head of Education and Skills,075021,Youth Employment Initiative,Supplies and Services,364301,Grants to Voluntary Organisations,05-Oct-2020,000007356353866,PAYPAL COLUMBUSTRA,7399,Hardship,72.00,0.00,72.00
Children and Young Peoples Services,Head of Education and Skills,075021,Youth Employment Initiative,Supplies and Services,364301,Grants to Voluntary Organisations,05-Oct-2020,000007356353868,KWIKPART,5533,Hardship,109.19,18.20,90.99
Children and Young Peoples Services,Head of Education and Skills,075021,Youth Employment Initiative,Supplies and Services,364301,Grants to Voluntary Organisations,05-Oct-2020,000007356353870,GO NORTH EAST LIMITED,4131,Hardship,17.00,0.00,17.00
Children and Young Peoples Services,Head of Education and Skills,078554,Adult Skills-Main,Supplies and Services,332048,Printing Stationery and Gen Off Exps,05-Oct-2020,000007356353872,AMZNMktplace,5999,Administrative stationery etc,8.99,1.50,7.49
"Regeneration, Economy and Growth",Culture Sport and Tourism,054798,dli Museum - WW1 Education Programme,Supplies and Services,304259,Equipment and Materials,05-Oct-2020,000007356353876,PAYPAL MILITARYCOS EB,5931,Equipment-purchase and rental,12.99,0.00,12.99
"Regeneration, Economy and Growth",Culture Sport and Tourism,054798,dli Museum - WW1 Education Programme,Supplies and Services,304259,Equipment and Materials,05-Oct-2020,000007356353878,WILKO.COM,5399,Equipment-purchase and rental,41.00,6.83,34.17
Children and Young Peoples Services,Head of Childrens Social Care,085342,16 Hickstead Rise (previously 9 Cedar Ave),Supplies and Services,324117,Provisions E324,05-Oct-2020,000007356353884,STARBUCKS THINFORD,5499,Catering costs - provisions,7.55,0.00,7.55
Children and Young Peoples Services,Head of Childrens Social Care,085332,Middlestone Moor CU,Supplies and Services,324117,Provisions E324,05-Oct-2020,000007356353910,WILKO RETAIL LIMITED,5399,Catering costs - provisions,12.50,0.00,12.50
Neighbourhoods and Climate Change,Environmental Services,010367,C&G - South Grounds Maintenance,Supplies and Services,304221,Equipment and Materials,05-Oct-2020,000007356353912,SCREWFIX DIRECT,5211,Direct materials,264.01,0.00,264.01
Neighbourhoods and Climate Change,Environmental Services,010367,C&G - South Grounds Maintenance,Supplies and Services,304221,Equipment and Materials,05-Oct-2020,000007356353940,BTL TIMBER AND HARDWAR,5099,Direct materials,62.64,0.00,62.64
Neighbourhoods and Climate Change,Environmental Services,010367,C&G - South Grounds Maintenance,Supplies and Services,304999,Equipment and Materials,05-Oct-2020,000007356353942,Snowballs,5251,Misc equipment tools and materials,66.36,0.00,66.36
"Regeneration, Economy and Growth",Development and Housing,031576,B& B - Temp Accom,Supplies and Services,364320,Grants to Voluntary Organisations,05-Oct-2020,000007356353946,HOTEL 52 STANLEY,5812,Accommodation assistance,136.00,0.00,136.00
"Regeneration, Economy and Growth",Development and Housing,031576,B& B - Temp Accom,Supplies and Services,364320,Grants to Voluntary Organisations,05-Oct-2020,000007356353948,HI NEWCASTLE WASHI,7011,Accommodation assistance,195.00,0.00,195.00
Children and Young Peoples Services,Head of Early Help Inclusion & Vulnerable Children.,085957,Secure Management,Supplies and Services,304403,Equipment and Materials,05-Oct-2020,000007356353952,AMZNMktplace,5999,Other consumables,13.24,2.21,11.03
Children and Young Peoples Services,Head of Early Help Inclusion & Vulnerable Children.,085957,Secure Management,Supplies and Services,304403,Equipment and Materials,05-Oct-2020,000007356353954,AMZNMKTPLACE AMAZON.CO,5999,Other consumables,35.46,5.92,29.54
Children and Young Peoples Services,Head of Early Help Inclusion & Vulnerable Children.,085957,Secure Management,Supplies and Services,328041,Clothing uniforms and laundry E328,05-Oct-2020,000007356353958,Nike,5655,Clothing uniforms and laundry,-67.90,0.00,-67.90
"Regeneration, Economy and Growth",Development and Housing,030772,CLLD South,Supplies and Services,384999,Miscellaneous Expenses,05-Oct-2020,000007356353970,SP HAPPY HOTDOGS,5995,Other expenses,153.53,0.00,153.53
Children and Young Peoples Services,Head of Early Help Inclusion & Vulnerable Children.,073998,TTF-Co-ordinator Grant,Transfer Payments,525033,Other,05-Oct-2020,000007356353984,ASDA GEORGE COM LEEDS,5411,Grants to individuals,97.00,16.17,80.83
"Regeneration, Economy and Growth",Development and Housing,031576,B& B - Temp Accom,Transport,235073,Public Transport,05-Oct-2020,000007356353988,BLUE LINE TAXIS,4121,Travel-clients/students/children,31.60,0.00,31.60
Neighbourhoods and Climate Change,Environmental Services,010900,Fleet - Meadowfield Fleet,Transport,215013,Running Costs of Vehicles,05-Oct-2020,000007356353998,DVLA VEHICLE TAX,9311,Vehicle Excise Duty (VED),267.50,0.00,267.50
Neighbourhoods and Climate Change,Environmental Services,010900,Fleet - Meadowfield Fleet,Transport,215013,Running Costs of Vehicles,05-Oct-2020,000007356354000,DVLA VEHICLE TAX,9311,Vehicle Excise Duty (VED),267.50,0.00,267.50
Neighbourhoods and Climate Change,Environmental Services,010900,Fleet - Meadowfield Fleet,Transport,215013,Running Costs of Vehicles,05-Oct-2020,000007356354002,DVLA VEHICLE TAX,9311,Vehicle Excise Duty (VED),267.50,0.00,267.50
Neighbourhoods and Climate Change,Environmental Services,010900,Fleet - Meadowfield Fleet,Transport,215013,Running Costs of Vehicles,05-Oct-2020,000007356354004,DVLA VEHICLE TAX,9311,Vehicle Excise Duty (VED),267.50,0.00,267.50
Neighbourhoods and Climate Change,Environmental Services,010900,Fleet - Meadowfield Fleet,Transport,215013,Running Costs of Vehicles,05-Oct-2020,000007356354006,DVLA VEHICLE TAX,9311,Vehicle Excise Duty (VED),267.50,0.00,267.50
Neighbourhoods and Climate Change,Environmental Services,010900,Fleet - Meadowfield Fleet,Transport,215013,Running Costs of Vehicles,05-Oct-2020,000007356354008,DVLA VEHICLE TAX,9311,Vehicle Excise Duty (VED),267.50,0.00,267.50
Neighbourhoods and Climate Change,Environmental Services,010900,Fleet - Meadowfield Fleet,Transport,215013,Running Costs of Vehicles,05-Oct-2020,000007356354010,DVLA VEHICLE TAX,9311,Vehicle Excise Duty (VED),267.50,0.00,267.50
Neighbourhoods and Climate Change,Environmental Services,010900,Fleet - Meadowfield Fleet,Transport,215013,Running Costs of Vehicles,05-Oct-2020,000007356354012,DVLA VEHICLE TAX,9311,Vehicle Excise Duty (VED),267.50,0.00,267.50
Neighbourhoods and Climate Change,Environmental Services,010900,Fleet - Meadowfield Fleet,Transport,215013,Running Costs of Vehicles,05-Oct-2020,000007356354014,DVLA VEHICLE TAX,9311,Vehicle Excise Duty (VED),267.50,0.00,267.50
Neighbourhoods and Climate Change,Environmental Services,010551,Fleet - Chilton Fleet,Transport,215013,Running Costs of Vehicles,05-Oct-2020,000007356354016,DVLA VEHICLE TAX,9311,Vehicle Excise Duty (VED),267.50,0.00,267.50
Neighbourhoods and Climate Change,Environmental Services,010900,Fleet - Meadowfield Fleet,Transport,215013,Running Costs of Vehicles,05-Oct-2020,000007356354018,DVLA VEHICLE TAX,9311,Vehicle Excise Duty (VED),267.50,0.00,267.50
Neighbourhoods and Climate Change,Environmental Services,010551,Fleet - Chilton Fleet,Transport,215013,Running Costs of Vehicles,05-Oct-2020,000007356354020,DVLA VEHICLE TAX,9311,Vehicle Excise Duty (VED),267.50,0.00,267.50
Neighbourhoods and Climate Change,Environmental Services,010900,Fleet - Meadowfield Fleet,Transport,215013,Running Costs of Vehicles,05-Oct-2020,000007356354022,DVLA VEHICLE TAX,9311,Vehicle Excise Duty (VED),267.50,0.00,267.50
Neighbourhoods and Climate Change,Environmental Services,010900,Fleet - Meadowfield Fleet,Transport,215013,Running Costs of Vehicles,05-Oct-2020,000007356354024,DVLA VEHICLE TAX,9311,Vehicle Excise Duty (VED),267.50,0.00,267.50
Neighbourhoods and Climate Change,Environmental Services,010900,Fleet - Meadowfield Fleet,Transport,215013,Running Costs of Vehicles,05-Oct-2020,000007356354026,DVLA VEHICLE TAX,9311,Vehicle Excise Duty (VED),267.50,0.00,267.50
Children and Young Peoples Services,Head of Education and Skills,071732,Dean Bank Childcare,Supplies and Services,324117,Provisions E324,05-Oct-2020,000007356354054,ASDA GROCERIES ONLINE,5411,Catering costs - provisions,4.36,0.00,4.36
Children and Young Peoples Services,Head of Education and Skills,071732,Dean Bank Childcare,Supplies and Services,324117,Provisions E324,05-Oct-2020,000007356354056,ASDA GROCERIES ONLINE,5411,Catering costs - provisions,41.36,0.00,41.36
Children and Young Peoples Services,Head of Education and Skills,071732,Dean Bank Childcare,Supplies and Services,324117,Provisions E324,05-Oct-2020,000007356354058,ASDA GROCERIES ONLINE,5411,Catering costs - provisions,1.80,0.00,1.80
Children and Young Peoples Services,Head of Education and Skills,071732,Dean Bank Childcare,Supplies and Services,324117,Provisions E324,05-Oct-2020,000007356354060,ASDA GROCERIES ONLINE,5411,Catering costs - provisions,65.64,0.00,65.64
Children and Young Peoples Services,Head of Education and Skills,071732,Dean Bank Childcare,Supplies and Services,324117,Provisions E324,05-Oct-2020,000007356354062,ASDA GROCERIES ONLINE,5411,Catering costs - provisions,-1.16,0.00,-1.16
Children and Young Peoples Services,Head of Childrens Social Care,085334,West Rainton Satelite Home,Supplies and Services,308011,Furniture,05-Oct-2020,000007356354066,DUNELM LTD,5714,Furniture repair and replacement,30.00,0.00,30.00
Children and Young Peoples Services,Head of Childrens Social Care,085334,West Rainton Satelite Home,Supplies and Services,348037,Subsistence E348,05-Oct-2020,000007356354068,MCDONALDS,5812,Subsistence,5.65,0.00,5.65
Children and Young Peoples Services,Head of Childrens Social Care,085334,West Rainton Satelite Home,Supplies and Services,304259,Equipment and Materials,05-Oct-2020,000007356354070,SPORTSDIRECT 264,5941,Equipment-purchase and rental,11.99,0.00,11.99
"Regeneration, Economy and Growth",Development and Housing,031500,Housing Solutions - Core Team,Supplies and Services,352001,Conference Expenses,05-Oct-2020,000007356354088,AYCLIFFE BIZ,7011,Conferencesseminars fees etc,152.00,0.00,152.00
"Regeneration, Economy and Growth",Development and Housing,031500,Housing Solutions - Core Team,Supplies and Services,348037,Subsistence E348,05-Oct-2020,000007356354090,HOTEL 52 STANLEY,5812,Subsistence,500.00,0.00,500.00
"Regeneration, Economy and Growth",Development and Housing,031500,Housing Solutions - Core Team,Supplies and Services,348037,Subsistence E348,05-Oct-2020,000007356354092,HOTEL 52 STANLEY,5812,Subsistence,234.00,0.00,234.00
"Regeneration, Economy and Growth",Development and Housing,031500,Housing Solutions - Core Team,Supplies and Services,304999,Equipment and Materials,05-Oct-2020,000007356354094,DUNCAN BELTON TA K,6513,Misc equipment tools and materials,500.00,0.00,500.00
"Regeneration, Economy and Growth",Development and Housing,030771,Durham Advance Flexible Fund,Supplies and Services,304221,Equipment and Materials,05-Oct-2020,000007356354096,SCREWFIX DURHAM,5211,Direct materials,-74.98,0.00,-74.98
Children and Young Peoples Services,Head of Early Help Inclusion & Vulnerable Children.,088113,Seaham  0-19 Community Family Hub,Supplies and Services,324117,Provisions E324,05-Oct-2020,000007356354102,WILKO.COM,5399,Catering costs - provisions,158.70,0.00,158.70
Neighbourhoods and Climate Change,Environmental Services,011060,C&G - Hardwick Park Catering,Supplies and Services,324117,Provisions E324,05-Oct-2020,000007356354108,FREEMAN CATERING BUTCH,5422,Catering costs - provisions,52.73,0.00,52.73
Resources BK0010,People & Talent Management,010984,Training and Development,Transport,235057,Public Transport,05-Oct-2020,000007356354116,NICK SMITH ASSOCIATES,4789,Staff travelling,498.00,0.00,498.00
"Regeneration, Economy and Growth",Development and Housing,031500,Housing Solutions - Core Team,Supplies and Services,352001,Conference Expenses,05-Oct-2020,000007356354130,AYCLIFFE BIZ,7011,Conferencesseminars fees etc,114.00,0.00,114.00
"Regeneration, Economy and Growth",Development and Housing,031500,Housing Solutions - Core Team,Supplies and Services,348037,Subsistence E348,05-Oct-2020,000007356354136,HOTEL 52 STANLEY,5812,Subsistence,174.00,0.00,174.00
"Regeneration, Economy and Growth",Development and Housing,031500,Housing Solutions - Core Team,Supplies and Services,304999,Equipment and Materials,05-Oct-2020,000007356354138,CASTLEDENE SALES AND,6513,Misc equipment tools and materials,350.00,0.00,350.00
"Regeneration, Economy and Growth",Development and Housing,031500,Housing Solutions - Core Team,Supplies and Services,352001,Conference Expenses,05-Oct-2020,000007356354140,HI NEWCASTLE WASHI,7011,Conferencesseminars fees etc,466.55,0.00,466.55
Children and Young Peoples Services,Head of Childrens Social Care,085331,New Lea Childrens Home,Supplies and Services,328041,Clothing uniforms and laundry E328,05-Oct-2020,000007356354142,ARGOS LTD,5310,Clothing uniforms and laundry,36.00,0.00,36.00
Children and Young Peoples Services,Head of Childrens Social Care,085331,New Lea Childrens Home,Supplies and Services,348037,Subsistence E348,05-Oct-2020,000007356354164,ADAMS FISH BAR,5812,Subsistence,15.70,0.00,15.70
Children and Young Peoples Services,Head of Childrens Social Care,085331,New Lea Childrens Home,Supplies and Services,304999,Equipment and Materials,05-Oct-2020,000007356354166,HOME BARGAINS,5251,Misc equipment tools and materials,21.97,0.00,21.97
Children and Young Peoples Services,Head of Childrens Social Care,085331,New Lea Childrens Home,Supplies and Services,308011,Furniture,05-Oct-2020,000007356354168,IKEA LTD 143 GATESHEAD,5712,Furniture repair and replacement,36.50,0.00,36.50
Children and Young Peoples Services,Head of Childrens Social Care,085331,New Lea Childrens Home,Supplies and Services,304259,Equipment and Materials,05-Oct-2020,000007356354170,JD SPORTS INTERNET,5941,Equipment-purchase and rental,53.99,0.00,53.99
Children and Young Peoples Services,Head of Childrens Social Care,085351,Framwellgate Moor CU,Supplies and Services,324117,Provisions E324,05-Oct-2020,000007356354180,SAINSBURYS SACAT 0776,5411,Catering costs - provisions,103.94,0.00,103.94
Neighbourhoods and Climate Change,Environmental Services,010367,C&G - South Grounds Maintenance,Supplies and Services,304999,Equipment and Materials,05-Oct-2020,000007356354184,Snowballs,5251,Misc equipment tools and materials,12.00,0.00,12.00
"Regeneration, Economy and Growth",Corporate Property and Land,020082,Bldg Serv - R&M Div 82- Lifts,Supplies and Services,384999,Miscellaneous Expenses,05-Oct-2020,000007356354192,TT2,4784,Other expenses,50.00,0.00,50.00
Children and Young Peoples Services,Head of Childrens Social Care,085333,Coxhoe Satelite Home,Supplies and Services,324117,Provisions E324,05-Oct-2020,000007356354198,TESCO STORES 2916,5411,Catering costs - provisions,150.98,0.00,150.98
Children and Young Peoples Services,Head of Childrens Social Care,085352,Tow Law CU,Supplies and Services,304403,Equipment and Materials,05-Oct-2020,000007356354220,AMZNMktplace,5999,Other consumables,21.93,0.00,21.93
Adult and Health Services,Head of Adults,055643,Hawthorn House LD Respite Unit,Supplies and Services,324117,Provisions E324,05-Oct-2020,000007356354234,FREEMAN CATERING BUTCH,5422,Catering costs - provisions,32.46,0.00,32.46
Adult and Health Services,Head of Adults,055643,Hawthorn House LD Respite Unit,Supplies and Services,324117,Provisions E324,05-Oct-2020,000007356354236,FREEMAN CATERING BUTCH,5422,Catering costs - provisions,25.26,0.00,25.26
Adult and Health Services,Head of Adults,055643,Hawthorn House LD Respite Unit,Supplies and Services,324117,Provisions E324,05-Oct-2020,000007356354238,JR HOLLAND FOODSERVICE,5499,Catering costs - provisions,15.98,0.00,15.98
Children and Young Peoples Services,Head of Childrens Social Care,085334,West Rainton Satelite Home,Supplies and Services,324117,Provisions E324,05-Oct-2020,000007356354242,THE APPLE ORCHARD,5411,Catering costs - provisions,12.99,0.00,12.99
Children and Young Peoples Services,Head of Childrens Social Care,085334,West Rainton Satelite Home,Supplies and Services,384237,Miscellaneous Expenses,05-Oct-2020,000007356354244,WWW.ADVENTUREVALLEY.CO,7999,Recreational exps outings parties,54.50,0.00,54.50
Children and Young Peoples Services,Head of Childrens Social Care,085334,West Rainton Satelite Home,Supplies and Services,324117,Provisions E324,05-Oct-2020,000007356354246,B&M 681 - DURHAM,5399,Catering costs - provisions,3.99,0.00,3.99
Children and Young Peoples Services,Head of Childrens Social Care,085334,West Rainton Satelite Home,Supplies and Services,324117,Provisions E324,05-Oct-2020,000007356354248,TESCO STORES 2371,5411,Catering costs - provisions,218.38,0.00,218.38
Children and Young Peoples Services,Head of Childrens Social Care,085334,West Rainton Satelite Home,Supplies and Services,324117,Provisions E324,05-Oct-2020,000007356354250,TESCO STORES 2371,5411,Catering costs - provisions,36.00,0.00,36.00
Children and Young Peoples Services,Head of Childrens Social Care,085334,West Rainton Satelite Home,Supplies and Services,324117,Provisions E324,05-Oct-2020,000007356354252,TESCO STORES 2371,5411,Catering costs - provisions,20.10,0.00,20.10
Children and Young Peoples Services,Head of Childrens Social Care,085334,West Rainton Satelite Home,Supplies and Services,304259,Equipment and Materials,05-Oct-2020,000007356354254,SPORTSDIRECT 264,5941,Equipment-purchase and rental,3.00,0.00,3.00
Children and Young Peoples Services,Head of Childrens Social Care,085334,West Rainton Satelite Home,Supplies and Services,304259,Equipment and Materials,05-Oct-2020,000007356354256,SPORTSDIRECT 264,5941,Equipment-purchase and rental,45.00,0.00,45.00
Children and Young Peoples Services,Head of Childrens Social Care,085334,West Rainton Satelite Home,Supplies and Services,304259,Equipment and Materials,05-Oct-2020,000007356354258,SPORTSDIRECT 264,5941,Equipment-purchase and rental,49.97,0.00,49.97
Children and Young Peoples Services,Head of Childrens Social Care,085334,West Rainton Satelite Home,Supplies and Services,304999,Equipment and Materials,05-Oct-2020,000007356354262,HOME BARGAINS,5251,Misc equipment tools and materials,17.12,0.00,17.12
"Regeneration, Economy and Growth",Development and Housing,030771,Durham Advance Flexible Fund,Supplies and Services,304403,Equipment and Materials,05-Oct-2020,000007356354266,ACCESS SCREENING,5734,Other consumables,49.39,0.00,49.39
Children and Young Peoples Services,Head of Early Help Inclusion & Vulnerable Children.,085965,Barnard,Supplies and Services,372009,Subscriptions E372,05-Oct-2020,000007356354270,WWW.SUBSCRIPTION.CO.UK,2741,Subscriptions 372009,36.99,0.00,36.99
Children and Young Peoples Services,Head of Early Help Inclusion & Vulnerable Children.,085957,Secure Management,Supplies and Services,304245,Equipment and Materials,05-Oct-2020,000007356354272,FAST KEY SERVICES LIMI,7399,Materials,14.56,2.43,12.13
"Regeneration, Economy and Growth",Business Durham CL0850,030690,Durham Dales Centre - Tourist Information Centre,Supplies and Services,304403,Equipment and Materials,05-Oct-2020,000007356354282,JOE DAVIES (MANCHESTER,5947,Other consumables,"1,211.34",0.00,1211.34
"Regeneration, Economy and Growth",Culture Sport and Tourism,054235,Bishop Auckland Town Hall Cafe,Supplies and Services,324117,Provisions E324,05-Oct-2020,000007356354284,JR HOLLAND FOODSERVICE,5499,Catering costs - provisions,48.40,0.00,48.40
"Regeneration, Economy and Growth",Culture Sport and Tourism,054235,Bishop Auckland Town Hall Cafe,Supplies and Services,324117,Provisions E324,05-Oct-2020,000007356354286,JR HOLLAND FOODSERVICE,5499,Catering costs - provisions,190.71,0.00,190.71
Children and Young Peoples Services,Head of Education and Skills,071802,Louisa Cent Nursery,Supplies and Services,324117,Provisions E324,05-Oct-2020,000007356354310,ASDA GROCERIES ONLINE,5411,Catering costs - provisions,125.93,0.00,125.93
Children and Young Peoples Services,Head of Childrens Social Care,085633,Families First Chester-Le-Street,Supplies and Services,364340,Grants to Voluntary Organisations,05-Oct-2020,000007356354314,GO NORTH EAST LIMITED,4131,Contact expenses,20.00,0.00,20.00
Children and Young Peoples Services,Head of Childrens Social Care,085332,Middlestone Moor CU,Supplies and Services,324117,Provisions E324,05-Oct-2020,000007356354328,MCQUEENS DAIRIES LTD,5499,Catering costs - provisions,3.98,0.00,3.98
Children and Young Peoples Services,Head of Childrens Social Care,085332,Middlestone Moor CU,Supplies and Services,304221,Equipment and Materials,05-Oct-2020,000007356354330,WICKES BUILDING,5211,Direct materials,110.00,0.00,110.00
Children and Young Peoples Services,Head of Childrens Social Care,085332,Middlestone Moor CU,Supplies and Services,328041,Clothing uniforms and laundry E328,05-Oct-2020,000007356354332,CLEARANCE BARGAINS,5310,Clothing uniforms and laundry,99.99,0.00,99.99
Resources BK0010,COVID19 - Resources,091007,COVID19 - Resources,Supplies and Services,332047,Printing Stationery and Gen Off Exps,05-Oct-2020,000007356354364,Amazon.co.uk OD5ZV0GJ5,5969,Stationery,32.16,5.36,26.80
Children and Young Peoples Services,Head of Early Help Inclusion & Vulnerable Children.,085810,CDYJS - Interventions Team,Supplies and Services,348037,Subsistence E348,05-Oct-2020,000007356354392,McDonalds UK,5814,Subsistence,18.46,0.00,18.46
Children and Young Peoples Services,Head of Childrens Social Care,085372,Young Peoples Service Team 2,Supplies and Services,344033,Telephones,05-Oct-2020,000009207617603,AMZNMKTPLACE AMAZON.CO,5999,Telephones general-all costs,11.99,2.00,9.99
"Regeneration, Economy and Growth",Culture Sport and Tourism,054798,dli Museum - WW1 Education Programme,Supplies and Services,304259,Equipment and Materials,05-Oct-2020,000009207617663,PAYPAL BLUNTSSHOES EB,5641,Equipment-purchase and rental,5.24,0.00,5.24
Children and Young Peoples Services,Head of Childrens Social Care,085332,Middlestone Moor CU,Supplies and Services,324117,Provisions E324,05-Oct-2020,000009207617915,ASDA SUPERSTORE 4987,5411,Catering costs - provisions,42.68,0.00,42.68
Children and Young Peoples Services,Head of Childrens Social Care,085351,Framwellgate Moor CU,Supplies and Services,324117,Provisions E324,05-Oct-2020,000009207618349,ASDA STORES LTD 4313,5411,Catering costs - provisions,54.29,0.00,54.29
Children and Young Peoples Services,Head of Education and Skills,071802,Louisa Cent Nursery,Supplies and Services,324117,Provisions E324,05-Oct-2020,000009207618397,ASDA SUPERSTORE,5411,Catering costs - provisions,7.19,0.00,7.19
Children and Young Peoples Services,Head of Education and Skills,071802,Louisa Cent Nursery,Supplies and Services,324117,Provisions E324,05-Oct-2020,000009207618607,ASDA SUPERSTORE,5411,Catering costs - provisions,3.05,0.00,3.05
Children and Young Peoples Services,Head of Childrens Social Care,085332,Middlestone Moor CU,Supplies and Services,324117,Provisions E324,05-Oct-2020,000009207618645,ASDA SUPERSTORE,5411,Catering costs - provisions,26.75,0.00,26.75
Children and Young Peoples Services,Head of Childrens Social Care,085612,Families First Consett,Supplies and Services,364301,Grants to Voluntary Organisations,05-Oct-2020,000009217416391,Klarna cosatto com,5641,Hardship,339.90,0.00,339.90
Children and Young Peoples Services,Head of Childrens Social Care,085611,Families First Stanley,Supplies and Services,364301,Grants to Voluntary Organisations,06-Oct-2020,000009207617553,ARGOS LTD,5310,Hardship,189.99,0.00,189.99
Children and Young Peoples Services,Head of Education and Skills,071801,Selby Cottage Childcare Centre,Supplies and Services,304403,Equipment and Materials,06-Oct-2020,000009207617561,AMZNMktplace,5999,Other consumables,58.00,9.68,48.32
Children and Young Peoples Services,Head of Education and Skills,071801,Selby Cottage Childcare Centre,Supplies and Services,324117,Provisions E324,06-Oct-2020,000009207617569,TESCO STORES 2371,5411,Catering costs - provisions,65.27,0.00,65.27
Resources BK0010,Digital and Customer Services,065433,Data and Analytics,Supplies and Services,312009,Newspapers books and periodicals E312,06-Oct-2020,000009207617615,Amazon.co.uk LB5810U45,5969,Newspapers books and periodicals,123.98,0.00,123.98
Children and Young Peoples Services,Head of Childrens Social Care,085501,Child Care Cases Legal Expenses,Supplies and Services,304403,Equipment and Materials,06-Oct-2020,000009207617631,DARLINGTON BC INTERNET,9399,Other consumables,11.00,0.00,11.00
Children and Young Peoples Services,Head of Childrens Social Care,085501,Child Care Cases Legal Expenses,Supplies and Services,304403,Equipment and Materials,06-Oct-2020,000009207617637,DARLINGTON BC INTERNET,9399,Other consumables,11.00,0.00,11.00
Children and Young Peoples Services,Head of Childrens Social Care,085501,Child Care Cases Legal Expenses,Supplies and Services,304403,Equipment and Materials,06-Oct-2020,000009207617641,DARLINGTON BC INTERNET,9399,Other consumables,11.00,0.00,11.00
Adult and Health Services,Head of Adults,055302,Durham Pathways,Third Party Payments,474101,Purchase of Care,06-Oct-2020,000009207617645,PIONEERING CARE PARTNE,8050,Nursing care payments,80.00,0.00,80.00
Children and Young Peoples Services,Head of Childrens Social Care,085332,Middlestone Moor CU,Supplies and Services,324117,Provisions E324,06-Oct-2020,000009207617673,TESCO STORES 2371,5411,Catering costs - provisions,121.99,0.00,121.99
Neighbourhoods and Climate Change,Environmental Services,031239,North Pennines - Carbon Connect,Supplies and Services,304259,Equipment and Materials,06-Oct-2020,000009207617731,NHBS LTD,5942,Equipment-purchase and rental,28.51,4.75,23.76
Neighbourhoods and Climate Change,Environmental Services,010367,C&G - South Grounds Maintenance,Supplies and Services,304221,Equipment and Materials,06-Oct-2020,000009207617809,MKM PETERLEE,5211,Direct materials,24.64,0.00,24.64
Neighbourhoods and Climate Change,Environmental Services,010367,C&G - South Grounds Maintenance,Supplies and Services,304221,Equipment and Materials,06-Oct-2020,000009207617815,SCREWFIX DIRECT,5211,Direct materials,43.30,0.00,43.30
Children and Young Peoples Services,Head of Childrens Social Care,085380,Operations Manager LAC Resources,Supplies and Services,328041,Clothing uniforms and laundry E328,06-Oct-2020,000009207617879,ARGOS LTD,5310,Clothing uniforms and laundry,-10.49,0.00,-10.49
Children and Young Peoples Services,Head of Childrens Social Care,085380,Operations Manager LAC Resources,Supplies and Services,328041,Clothing uniforms and laundry E328,06-Oct-2020,000009207617887,ARGOS LTD,5310,Clothing uniforms and laundry,-39.99,0.00,-39.99
Children and Young Peoples Services,Head of Childrens Social Care,085380,Operations Manager LAC Resources,Supplies and Services,328041,Clothing uniforms and laundry E328,06-Oct-2020,000009207617891,ARGOS LTD,5310,Clothing uniforms and laundry,-99.99,0.00,-99.99
Children and Young Peoples Services,Head of Childrens Social Care,085380,Operations Manager LAC Resources,Supplies and Services,328041,Clothing uniforms and laundry E328,06-Oct-2020,000009207617897,ARGOS LTD,5310,Clothing uniforms and laundry,-14.99,0.00,-14.99
"Regeneration, Economy and Growth",Culture Sport and Tourism,054233,Bishop Auckland Town Hall Library,Supplies and Services,324117,Provisions E324,06-Oct-2020,000009207617907,SAINSBURYS SACAT 2070,5411,Catering costs - provisions,17.40,0.00,17.40
Children and Young Peoples Services,Head of Childrens Social Care,085332,Middlestone Moor CU,Supplies and Services,308011,Furniture,06-Oct-2020,000009207617913,AMZNMktplace,5999,Furniture repair and replacement,64.99,10.83,54.16
"Regeneration, Economy and Growth",Development and Housing,030776,LINKCD Flexible Fund,Supplies and Services,384700,Miscellaneous Expenses,06-Oct-2020,000009207617941,GEN REGISTER OFFICE,9399,Miscellaneous grants,14.00,0.00,14.00
Children and Young Peoples Services,Head of Early Help Inclusion & Vulnerable Children.,085957,Secure Management,Supplies and Services,328041,Clothing uniforms and laundry E328,06-Oct-2020,000009207617959,WWW.NIKESTORE.COM,5691,Clothing uniforms and laundry,-32.95,0.00,-32.95
"Regeneration, Economy and Growth",Development and Housing,030772,CLLD South,Transport,235057,Public Transport,06-Oct-2020,000009207617989,ARRIVA UK BUS,4131,Staff travelling,-19.10,0.00,-19.10
Children and Young Peoples Services,Head of Childrens Social Care,085362,LAC & Permanence Team 2,Supplies and Services,384999,Miscellaneous Expenses,06-Oct-2020,000009207617993,HM PASSPORT OFFICE,9399,Other expenses,49.00,0.00,49.00
Children and Young Peoples Services,Head of Childrens Social Care,085361,LAC & Permanence Team 1,Supplies and Services,384999,Miscellaneous Expenses,06-Oct-2020,000009207617999,HM PASSPORT OFFICE,9399,Other expenses,49.00,0.00,49.00
Children and Young Peoples Services,Head of Childrens Social Care,085362,LAC & Permanence Team 2,Supplies and Services,384999,Miscellaneous Expenses,06-Oct-2020,000009207618003,HM PASSPORT OFFICE,9399,Other expenses,49.00,0.00,49.00
Children and Young Peoples Services,Head of Childrens Social Care,085361,LAC & Permanence Team 1,Supplies and Services,384999,Miscellaneous Expenses,06-Oct-2020,000009207618005,HM PASSPORT OFFICE,9399,Other expenses,49.00,0.00,49.00
Children and Young Peoples Services,Head of Childrens Social Care,085361,LAC & Permanence Team 1,Supplies and Services,384999,Miscellaneous Expenses,06-Oct-2020,000009207618011,HM PASSPORT OFFICE,9399,Other expenses,49.00,0.00,49.00
Children and Young Peoples Services,Head of Early Help Inclusion & Vulnerable Children.,073998,TTF-Co-ordinator Grant,Transfer Payments,525033,Other,06-Oct-2020,000009207618037,ASDA GEORGE COM LEEDS,5411,Grants to individuals,96.90,16.15,80.75
"Regeneration, Economy and Growth",Development and Housing,031576,B& B - Temp Accom,Supplies and Services,364320,Grants to Voluntary Organisations,06-Oct-2020,000009207618043,AYCLIFFE BIZ,7011,Accommodation assistance,38.00,0.00,38.00
Resources BK0010,Digital and Customer Services,065256,Nodes/Circuits,Supplies and Services,344110,Telephones,06-Oct-2020,000009207618085,BT REPAYMENT WORKS,4814,Landlines installation (PSTN),"1,597.44",266.24,1331.20
Children and Young Peoples Services,Head of Education and Skills,071732,Dean Bank Childcare,Supplies and Services,328041,Clothing uniforms and laundry E328,06-Oct-2020,000009207618093,ARGOS LTD,5310,Clothing uniforms and laundry,420.99,0.00,420.99
Children and Young Peoples Services,Head of Education and Skills,071732,Dean Bank Childcare,Supplies and Services,324117,Provisions E324,06-Oct-2020,000009207618097,ALDI 59 774,5411,Catering costs - provisions,35.95,0.00,35.95
Children and Young Peoples Services,Head of Childrens Social Care,085334,West Rainton Satelite Home,Supplies and Services,304221,Equipment and Materials,06-Oct-2020,000009207618111,B & Q 1343,5200,Direct materials,28.00,0.00,28.00
"Regeneration, Economy and Growth",Development and Housing,030771,Durham Advance Flexible Fund,Employees,040149,Recruitment Instruction and Training,06-Oct-2020,000009207618149,FUTURELEARN.COM,8299,Training-all costs,-499.00,0.00,-499.00
"Regeneration, Economy and Growth",Development and Housing,031500,Housing Solutions - Core Team,Supplies and Services,352001,Conference Expenses,06-Oct-2020,000009207618171,BUDGET H EXPRESS HOTEL,7011,Conferencesseminars fees etc,89.00,0.00,89.00
"Regeneration, Economy and Growth",Development and Housing,031500,Housing Solutions - Core Team,Supplies and Services,352001,Conference Expenses,06-Oct-2020,000009207618187,AYCLIFFE BIZ,7011,Conferencesseminars fees etc,152.00,0.00,152.00
"Regeneration, Economy and Growth",Development and Housing,031500,Housing Solutions - Core Team,Transport,235057,Public Transport,06-Oct-2020,000009207618191,BLUE LINE TAXIS,4121,Staff travelling,57.80,0.00,57.80
Children and Young Peoples Services,Head of Childrens Social Care,085334,West Rainton Satelite Home,Supplies and Services,304999,Equipment and Materials,06-Oct-2020,000009207618203,HOME BARGAINS SPENNYMO,5251,Misc equipment tools and materials,15.61,0.00,15.61
Children and Young Peoples Services,Head of Early Help Inclusion & Vulnerable Children.,085956,Lumley,Supplies and Services,304403,Equipment and Materials,06-Oct-2020,000009207618207,AMZNMktplace,5999,Other consumables,51.98,8.66,43.32
"Regeneration, Economy and Growth",Development and Housing,031500,Housing Solutions - Core Team,Supplies and Services,352001,Conference Expenses,06-Oct-2020,000009207618251,AYCLIFFE BIZ,7011,Conferencesseminars fees etc,228.00,0.00,228.00
"Regeneration, Economy and Growth",Development and Housing,031500,Housing Solutions - Core Team,Supplies and Services,352001,Conference Expenses,06-Oct-2020,000009207618253,BUDGET H EXPRESS HOTEL,7011,Conferencesseminars fees etc,142.86,23.81,119.05
"Regeneration, Economy and Growth",Development and Housing,031500,Housing Solutions - Core Team,Supplies and Services,352001,Conference Expenses,06-Oct-2020,000009207618253 - 1,BUDGET H EXPRESS HOTEL,7011,Conferencesseminars fees etc,357.14,,357.14
"Regeneration, Economy and Growth",Development and Housing,031500,Housing Solutions - Core Team,Supplies and Services,352001,Conference Expenses,06-Oct-2020,000009207618259,BUDGET H EXPRESS HOTEL,7011,Conferencesseminars fees etc,35.16,5.86,29.30
"Regeneration, Economy and Growth",Development and Housing,031500,Housing Solutions - Core Team,Supplies and Services,352001,Conference Expenses,06-Oct-2020,000009207618259 - 1,BUDGET H EXPRESS HOTEL,7011,Conferencesseminars fees etc,87.84,,87.84
Children and Young Peoples Services,Head of Early Help Inclusion & Vulnerable Children.,088119,Durham 0-19 Community Family Hub,Supplies and Services,304403,Equipment and Materials,06-Oct-2020,000009207618263,AMZNMktplace,5999,Other consumables,26.14,4.36,21.78
Children and Young Peoples Services,Head of Early Help Inclusion & Vulnerable Children.,088109,Spennymoor & Shildon 0-19 Community Family Hub,Supplies and Services,312009,Newspapers books and periodicals E312,06-Oct-2020,000009207618297,Amazon.co.uk P10RJ6PJ5,5969,Newspapers books and periodicals,134.70,0.00,134.70
Children and Young Peoples Services,Head of Childrens Social Care,085341,High Etherley Satelite Home,Supplies and Services,348037,Subsistence E348,06-Oct-2020,000009207618333,SPENNYMOOR CROWN TAKEA,5814,Subsistence,40.30,0.00,40.30
Adult and Health Services,Head of Adults,055643,Hawthorn House LD Respite Unit,Supplies and Services,324117,Provisions E324,06-Oct-2020,000009207618383,WM MORRISONS STORE,5411,Catering costs - provisions,7.60,0.00,7.60
Children and Young Peoples Services,Head of Education and Skills,071802,Louisa Cent Nursery,Supplies and Services,324117,Provisions E324,06-Oct-2020,000009207618403,ALDI STORES,5411,Catering costs - provisions,7.29,0.00,7.29
Children and Young Peoples Services,Head of Childrens Social Care,085333,Coxhoe Satelite Home,Supplies and Services,324001,Provisions E324,06-Oct-2020,000009207618411,COXHOE DISCOUNT STORE,5921,Bar supplies,6.03,0.00,6.03
Children and Young Peoples Services,Head of Childrens Social Care,085333,Coxhoe Satelite Home,Supplies and Services,324117,Provisions E324,06-Oct-2020,000009207618427,SAINSBURYS (2303),5411,Catering costs - provisions,13.10,0.00,13.10
Children and Young Peoples Services,Head of Childrens Social Care,085333,Coxhoe Satelite Home,Supplies and Services,324117,Provisions E324,06-Oct-2020,000009207618429,SAINSBURYS (2303),5411,Catering costs - provisions,31.70,0.00,31.70
Children and Young Peoples Services,Head of Childrens Social Care,085352,Tow Law CU,Supplies and Services,324117,Provisions E324,06-Oct-2020,000009207618461,ASDA SUPERSTORE 4987,5411,Catering costs - provisions,79.89,0.00,79.89
Children and Young Peoples Services,Head of Childrens Social Care,085352,Tow Law CU,Supplies and Services,324117,Provisions E324,06-Oct-2020,000009207618463,ASDA SUPERSTORE 4987,5411,Catering costs - provisions,35.50,0.00,35.50
Children and Young Peoples Services,Head of Childrens Social Care,085352,Tow Law CU,Supplies and Services,324117,Provisions E324,06-Oct-2020,000009207618465,ASDA SUPERSTORE 4987,5411,Catering costs - provisions,29.23,0.00,29.23
Children and Young Peoples Services,Head of Childrens Social Care,085334,West Rainton Satelite Home,Supplies and Services,324117,Provisions E324,06-Oct-2020,000009207618483,B&M 681 - DURHAM,5399,Catering costs - provisions,73.98,0.00,73.98
Children and Young Peoples Services,Head of Childrens Social Care,085334,West Rainton Satelite Home,Supplies and Services,324117,Provisions E324,06-Oct-2020,000009207618489,B&M 681 - DURHAM,5399,Catering costs - provisions,12.74,0.00,12.74
Children and Young Peoples Services,Head of Early Help Inclusion & Vulnerable Children.,088102,Consett & Stanley 0-19 Targeted Family Support,Transport,235057,Public Transport,06-Oct-2020,000009207618505,STANLEY TRAVEL (NORTH,4121,Staff travelling,26.00,0.00,26.00
Resources BK0010,Digital and Customer Services,065335,School Services - Implementations,Supplies and Services,304259,Equipment and Materials,06-Oct-2020,000009207618511,WWW.TOOLSTATION.COM,5251,Equipment-purchase and rental,76.21,0.00,76.21
"Regeneration, Economy and Growth",Development and Housing,030771,Durham Advance Flexible Fund,Supplies and Services,304221,Equipment and Materials,06-Oct-2020,000009207618523,SCREWFIX DIRECT,5211,Direct materials,117.97,0.00,117.97
Children and Young Peoples Services,Head of Early Help Inclusion & Vulnerable Children.,085957,Secure Management,Employees,040149,Recruitment Instruction and Training,06-Oct-2020,000009207618527,ARCOLA/HOUSE SIGN,8999,Training-all costs,-20.00,0.00,-20.00
Resources BK0010,Legal & Democratic Services,067801,Registrars,Supplies and Services,372009,Subscriptions E372,06-Oct-2020,000009207618531,WWW.ICO.ORG.UK,9399,Subscriptions 372009,40.00,0.00,40.00
Resources BK0010,Business Support,052986,CYPS - Locality and Operational Support,Supplies and Services,328041,Clothing uniforms and laundry E328,06-Oct-2020,000009207618537,ARGOS LTD,5310,Clothing uniforms and laundry,179.99,0.00,179.99
Resources BK0010,Business Support,052986,CYPS - Locality and Operational Support,Supplies and Services,328041,Clothing uniforms and laundry E328,06-Oct-2020,000009207618539,ARGOS LTD,5310,Clothing uniforms and laundry,349.98,0.00,349.98
"Regeneration, Economy and Growth",Business Durham CL0850,030671,Business Space 030671,Supplies and Services,304999,Equipment and Materials,06-Oct-2020,000009207618565,HOME BARGAINS,5251,Misc equipment tools and materials,2.37,0.00,2.37
"Regeneration, Economy and Growth",Business Durham CL0850,030671,Business Space 030671,Supplies and Services,342033,Computers and Communications,06-Oct-2020,000009207618573,WWW.NISBETS.COM,5964,Computer hardware,15.08,0.00,15.08
Children and Young Peoples Services,Head of Childrens Social Care,085352,Tow Law CU,Supplies and Services,384999,Miscellaneous Expenses,06-Oct-2020,000009207618593,Amazon.co.uk 3G3SX8Z15,5969,Other expenses,118.72,19.79,98.93
Children and Young Peoples Services,Head of Childrens Social Care,085352,Tow Law CU,Supplies and Services,344033,Telephones,06-Oct-2020,000009207618595,VESTA VODAFONE,4814,Telephones general-all costs,20.00,0.00,20.00
Children and Young Peoples Services,Head of Childrens Social Care,085352,Tow Law CU,Supplies and Services,324117,Provisions E324,06-Oct-2020,000009207618597,WILKO RETAIL LIMITED,5399,Catering costs - provisions,25.00,0.00,25.00
Children and Young Peoples Services,Head of Childrens Social Care,085352,Tow Law CU,Supplies and Services,304999,Equipment and Materials,06-Oct-2020,000009207618601,SUPERDRUG STORES PLC,5912,Misc equipment tools and materials,5.96,0.00,5.96
Children and Young Peoples Services,Head of Childrens Social Care,085352,Tow Law CU,Supplies and Services,304259,Equipment and Materials,06-Oct-2020,000009207618603,J D SPORTS,5941,Equipment-purchase and rental,66.60,0.00,66.60
Children and Young Peoples Services,Head of Early Help Inclusion & Vulnerable Children.,088107,Ferryhill & Newton Aycliffe 0-19 Community Family Hub,Supplies and Services,384999,Miscellaneous Expenses,06-Oct-2020,000009207618649,Amazon.co.uk 7A0KV69F5,5969,Other expenses,35.70,5.95,29.75
Children and Young Peoples Services,Head of Early Help Inclusion & Vulnerable Children.,088107,Ferryhill & Newton Aycliffe 0-19 Community Family Hub,Supplies and Services,384999,Miscellaneous Expenses,06-Oct-2020,000009207618649 - 1,Amazon.co.uk 7A0KV69F5,5969,Other expenses,15.48,,15.48
Children and Young Peoples Services,Head of Early Help Inclusion & Vulnerable Children.,088107,Ferryhill & Newton Aycliffe 0-19 Community Family Hub,Supplies and Services,328041,Clothing uniforms and laundry E328,06-Oct-2020,000009207618653,WWW.THEWORKS.CO.UK,5310,Clothing uniforms and laundry,80.00,0.00,80.00
"Regeneration, Economy and Growth",Business Durham CL0850,030694,Plexus 2,Supplies and Services,304403,Equipment and Materials,06-Oct-2020,000009207618797,AMZNMktplace,5999,Other consumables,11.28,0.00,11.28
Resources BK0010,Digital and Customer Services,065256,Nodes/Circuits,Supplies and Services,342033,Computers and Communications,06-Oct-2020,000009210479125,RS COMPONENTS,5065,Computer hardware,125.06,0.00,125.06
Neighbourhoods and Climate Change,Environmental Services,011060,C&G - Hardwick Park Catering,Supplies and Services,324117,Provisions E324,06-Oct-2020,000009210479523,BATLEYS PERTH,5300,Catering costs - provisions,-30.17,0.00,-30.17
Resources BK0010,People & Talent Management,010984,Training and Development,Supplies and Services,384999,Miscellaneous Expenses,06-Oct-2020,000009210479541,WWW.LIFESAVERSDIRECT,5965,Other expenses,58.00,0.00,58.00
Resources BK0010,Digital and Customer Services,065335,School Services - Implementations,Supplies and Services,304639,Equipment and Materials,06-Oct-2020,000009210479775,AMZNMKTPLACE AMAZON.CO,5999,Technicians-supplies,14.99,2.50,12.49
Children and Young Peoples Services,Head of Childrens Social Care,085341,High Etherley Satelite Home,Supplies and Services,348037,Subsistence E348,07-Oct-2020,000009207618115,Just Eat,5814,Subsistence,25.50,0.00,25.50
"Regeneration, Economy and Growth",Business Durham CL0850,030689,Inward Investment and Aftercare,Supplies and Services,304999,Equipment and Materials,07-Oct-2020,000009210479089,LINKEDIN-596 3653004,5968,Misc equipment tools and materials,69.58,0.00,69.58
Children and Young Peoples Services,Head of Childrens Social Care,085612,Families First Consett,Supplies and Services,364301,Grants to Voluntary Organisations,07-Oct-2020,000009210479113,AMZNMktplace,5999,Hardship,97.89,16.32,81.57
Children and Young Peoples Services,Head of Childrens Social Care,085611,Families First Stanley,Supplies and Services,364301,Grants to Voluntary Organisations,07-Oct-2020,000009210479117,HOMEDONE.CO.UK,5712,Hardship,289.99,0.00,289.99
Resources BK0010,Digital and Customer Services,065481,Technical Services 065481,Supplies and Services,342033,Computers and Communications,07-Oct-2020,000009210479129,AMZNMKTPLACE AMAZON.CO,5999,Computer hardware,6.99,1.17,5.82
Resources BK0010,Digital and Customer Services,065432,Web Development Group,Supplies and Services,342053,Computers and Communications,07-Oct-2020,000009210479131,WPMU DEV INCSUBFEE.COM,7372,Computer software,14.71,0.00,14.71
"Regeneration, Economy and Growth",Development and Housing,031500,Housing Solutions - Core Team,Supplies and Services,352001,Conference Expenses,07-Oct-2020,000009210479147,BUDGET H EXPRESS HOTEL,7011,Conferencesseminars fees etc,500.00,0.00,500.00
"Regeneration, Economy and Growth",Development and Housing,031500,Housing Solutions - Core Team,Supplies and Services,352001,Conference Expenses,07-Oct-2020,000009210479149,BUDGET H EXPRESS HOTEL,7011,Conferencesseminars fees etc,123.00,0.00,123.00
Children and Young Peoples Services,Head of Childrens Social Care,085501,Child Care Cases Legal Expenses,Supplies and Services,304403,Equipment and Materials,07-Oct-2020,000009210479153,CITY OF NEWCASTLE INTE,9399,Other consumables,11.00,0.00,11.00
Children and Young Peoples Services,Head of Education and Skills,075021,Youth Employment Initiative,Supplies and Services,364301,Grants to Voluntary Organisations,07-Oct-2020,000009210479159,HARTLEPOOL BC,9399,Hardship,11.00,0.00,11.00
Children and Young Peoples Services,Head of Education and Skills,075021,Youth Employment Initiative,Supplies and Services,332048,Printing Stationery and Gen Off Exps,07-Oct-2020,000009210479161,Amazon.co.uk 790KV09T5,5969,Administrative stationery etc,15.66,2.61,13.05
Children and Young Peoples Services,Head of Education and Skills,075021,Youth Employment Initiative,Supplies and Services,364301,Grants to Voluntary Organisations,07-Oct-2020,000009210479163,SCREWFIX DIRECT,5211,Hardship,329.50,0.00,329.50
Adult and Health Services,Head of Adults,055302,Durham Pathways,Supplies and Services,304403,Equipment and Materials,07-Oct-2020,000009210479165,AMZNMktplace,5999,Other consumables,9.98,1.66,8.32
Adult and Health Services,Head of Adults,055302,Durham Pathways,Supplies and Services,324117,Provisions E324,07-Oct-2020,000009210479167,SAINSBURYS SACAT 0776,5411,Catering costs - provisions,16.90,0.00,16.90
Neighbourhoods and Climate Change,Environmental Services,010383,C&G - South Street Cleansing,Supplies and Services,304221,Equipment and Materials,07-Oct-2020,000009210479171,BREWERS,5211,Direct materials,263.76,0.00,263.76
"Regeneration, Economy and Growth",Culture Sport and Tourism,054798,dli Museum - WW1 Education Programme,Supplies and Services,304259,Equipment and Materials,07-Oct-2020,000009210479175,PRINFAB,7372,Equipment-purchase and rental,30.00,5.00,25.00
Children and Young Peoples Services,Head of Childrens Social Care,085342,16 Hickstead Rise (previously 9 Cedar Ave),Supplies and Services,324117,Provisions E324,07-Oct-2020,000009210479181,TESCO STORES 2916,5411,Catering costs - provisions,25.00,0.00,25.00
Children and Young Peoples Services,Head of Childrens Social Care,085342,16 Hickstead Rise (previously 9 Cedar Ave),Supplies and Services,324117,Provisions E324,07-Oct-2020,000009210479183,TESCO STORES 2916,5411,Catering costs - provisions,220.97,0.00,220.97
Children and Young Peoples Services,Head of Early Help Inclusion & Vulnerable Children.,085957,Secure Management,Supplies and Services,304403,Equipment and Materials,07-Oct-2020,000009210479295,AMZNMktplace,5999,Other consumables,35.98,0.00,35.98
Children and Young Peoples Services,Head of Early Help Inclusion & Vulnerable Children.,085957,Secure Management,Supplies and Services,328041,Clothing uniforms and laundry E328,07-Oct-2020,000009210479299,PRETTYLITTLETHING.COM,5691,Clothing uniforms and laundry,6.00,0.00,6.00
Children and Young Peoples Services,Head of Early Help Inclusion & Vulnerable Children.,085957,Secure Management,Supplies and Services,328041,Clothing uniforms and laundry E328,07-Oct-2020,000009210479303,PRETTYLITTLETHING.COM,5691,Clothing uniforms and laundry,16.00,0.00,16.00
Children and Young Peoples Services,Head of Early Help Inclusion & Vulnerable Children.,085957,Secure Management,Supplies and Services,328041,Clothing uniforms and laundry E328,07-Oct-2020,000009210479311,THE NORTH FACE,5651,Clothing uniforms and laundry,35.00,0.00,35.00
Children and Young Peoples Services,Head of Early Help Inclusion & Vulnerable Children.,085957,Secure Management,Supplies and Services,304403,Equipment and Materials,07-Oct-2020,000009210479315,AMZNMKTPLACE AMAZON.CO,5999,Other consumables,9.89,0.00,9.89
Children and Young Peoples Services,Head of Early Help Inclusion & Vulnerable Children.,073998,TTF-Co-ordinator Grant,Transfer Payments,525033,Other,07-Oct-2020,000009210479343,ASDA GEORGE COM LEEDS,5411,Grants to individuals,-96.90,0.00,-96.90
"Regeneration, Economy and Growth",Development and Housing,031576,B& B - Temp Accom,Supplies and Services,364320,Grants to Voluntary Organisations,07-Oct-2020,000009210479349,WWW.HOTEL52.CO.UK,7011,Accommodation assistance,420.00,0.00,420.00
Resources BK0010,Business Support,052986,CYPS - Locality and Operational Support,Third Party Payments,430100,Rendered by Private Contractors,07-Oct-2020,000009210479359,WWW.HEALTHCARECONFEREN,7399,Payments to sub-contractors,318.60,0.00,318.60
Children and Young Peoples Services,Head of Education and Skills,071732,Dean Bank Childcare,Supplies and Services,304403,Equipment and Materials,07-Oct-2020,000009210479399,AMZNMktplace,5999,Other consumables,14.98,2.50,12.48
Children and Young Peoples Services,Head of Education and Skills,071732,Dean Bank Childcare,Third Party Payments,430100,Rendered by Private Contractors,07-Oct-2020,000009210479403,WWW.EYFS.INFO,7399,Payments to sub-contractors,121.20,0.00,121.20
Children and Young Peoples Services,Head of Education and Skills,071732,Dean Bank Childcare,Supplies and Services,324117,Provisions E324,07-Oct-2020,000009210479405,SAINSBURYS SACAT (2303,5411,Catering costs - provisions,8.75,0.00,8.75
"Regeneration, Economy and Growth",Culture Sport and Tourism,054967,Theatre - Technical Staffing,Supplies and Services,304403,Equipment and Materials,07-Oct-2020,000009210479409,AMZNMktplace,5999,Other consumables,67.02,0.00,67.02
Neighbourhoods and Climate Change,Environmental Services,031221,North Pennines - Bowlees,Supplies and Services,304403,Equipment and Materials,07-Oct-2020,000009210479415,AMZNMKTPLACE AMAZON.CO,5999,Other consumables,32.10,5.35,26.75
Neighbourhoods and Climate Change,Environmental Services,031221,North Pennines - Bowlees,Supplies and Services,304403,Equipment and Materials,07-Oct-2020,000009210479415 - 1,AMZNMKTPLACE AMAZON.CO,5999,Other consumables,0.10,,0.10
Children and Young Peoples Services,Head of Childrens Social Care,085334,West Rainton Satelite Home,Supplies and Services,324117,Provisions E324,07-Oct-2020,000009210479421,SPAR,5411,Catering costs - provisions,8.88,0.00,8.88
"Regeneration, Economy and Growth",Development and Housing,030771,Durham Advance Flexible Fund,Supplies and Services,384999,Miscellaneous Expenses,07-Oct-2020,000009210479447,NEXT DIRECTORY,5965,Other expenses,86.99,0.00,86.99
Children and Young Peoples Services,Head of Early Help Inclusion & Vulnerable Children.,071445,Chester le Street One Point Hub,Supplies and Services,304259,Equipment and Materials,07-Oct-2020,000009210479457,DARLINGTON BC INTERNET,9399,Equipment-purchase and rental,22.00,0.00,22.00
Children and Young Peoples Services,Head of Early Help Inclusion & Vulnerable Children.,085956,Lumley,Transfer Payments,515140,Social Services Clients,07-Oct-2020,000009210479461,SuperDry,5691,Clothing allowances,119.99,0.00,119.99
Children and Young Peoples Services,Head of Early Help Inclusion & Vulnerable Children.,085956,Lumley,Supplies and Services,304403,Equipment and Materials,07-Oct-2020,000009210479463,AMZNMktplace,5999,Other consumables,31.92,5.36,26.56
Children and Young Peoples Services,Head of Early Help Inclusion & Vulnerable Children.,085962,Aycliffe Secure - Durham,Supplies and Services,304649,Equipment and Materials,07-Oct-2020,000009210479465,CEX LTD,5065,Toys,36.30,0.00,36.30
Children and Young Peoples Services,Head of Early Help Inclusion & Vulnerable Children.,085962,Aycliffe Secure - Durham,Supplies and Services,324117,Provisions E324,07-Oct-2020,000009210479467,TESCO STORES 6329,5411,Catering costs - provisions,115.69,0.00,115.69
Children and Young Peoples Services,Head of Early Help Inclusion & Vulnerable Children.,085965,Barnard,Supplies and Services,304403,Equipment and Materials,07-Oct-2020,000009210479469,AMZNMktplace,5999,Other consumables,10.99,0.00,10.99
Children and Young Peoples Services,Head of Early Help Inclusion & Vulnerable Children.,085965,Barnard,Transfer Payments,515140,Social Services Clients,07-Oct-2020,000009210479475,JD SPORTS INTERNET,5941,Clothing allowances,125.00,0.00,125.00
Children and Young Peoples Services,Head of Early Help Inclusion & Vulnerable Children.,085954,Walworth,Supplies and Services,328041,Clothing uniforms and laundry E328,07-Oct-2020,000009210479477,FOOTASYLUM PLC,5691,Clothing uniforms and laundry,-14.99,0.00,-14.99
Children and Young Peoples Services,Head of Early Help Inclusion & Vulnerable Children.,088113,Seaham  0-19 Community Family Hub,Supplies and Services,304403,Equipment and Materials,07-Oct-2020,000009210479495,AMZNMKTPLACE AMAZON.CO,5999,Other consumables,50.48,0.00,50.48
Neighbourhoods and Climate Change,Environmental Services,010367,C&G - South Grounds Maintenance,Supplies and Services,304403,Equipment and Materials,07-Oct-2020,000009210479507,MAXWELLS DIY,5231,Other consumables,12.99,0.00,12.99
Neighbourhoods and Climate Change,Environmental Services,011060,C&G - Hardwick Park Catering,Premises,145009,Cleaning and Domestic Supplies,07-Oct-2020,000009210479511,ALLIANCE DISPOSABLES L,2842,Other cleaning and domestic costs,21.65,3.61,18.04
Neighbourhoods and Climate Change,Environmental Services,011060,C&G - Hardwick Park Catering,Premises,145009,Cleaning and Domestic Supplies,07-Oct-2020,000009210479515,ALLIANCE DISPOSABLES L,2842,Other cleaning and domestic costs,325.90,54.32,271.58
Neighbourhoods and Climate Change,Environmental Services,011060,C&G - Hardwick Park Catering,Premises,145009,Cleaning and Domestic Supplies,07-Oct-2020,000009210479519,ALLIANCE DISPOSABLES L,2842,Other cleaning and domestic costs,114.80,19.13,95.67
"Regeneration, Economy and Growth",Corporate Property and Land,021234,Catering - Locomotion,Supplies and Services,324117,Provisions E324,07-Oct-2020,000009210479547,JR HOLLAND FOODSERVICE,5499,Catering costs - provisions,97.35,0.00,97.35
"Regeneration, Economy and Growth",Corporate Property and Land,021234,Catering - Locomotion,Supplies and Services,324117,Provisions E324,07-Oct-2020,000009210479551,JR HOLLAND FOODSERVICE,5499,Catering costs - provisions,3.10,0.00,3.10
"Regeneration, Economy and Growth",Development and Housing,031500,Housing Solutions - Core Team,Supplies and Services,352001,Conference Expenses,07-Oct-2020,000009210479553,WWW.HOTEL52.CO.UK,7011,Conferencesseminars fees etc,136.00,0.00,136.00
"Regeneration, Economy and Growth",Development and Housing,031500,Housing Solutions - Core Team,Supplies and Services,352001,Conference Expenses,07-Oct-2020,000009210479557,WWW.HOTEL52.CO.UK,7011,Conferencesseminars fees etc,136.00,0.00,136.00
Children and Young Peoples Services,Head of Childrens Social Care,085551,Short Break Services-Park Hse Sher,Supplies and Services,324117,Provisions E324,07-Oct-2020,000009210479611,J FREEMAN & SONS LTD,5499,Catering costs - provisions,256.20,0.00,256.20
Children and Young Peoples Services,Head of Childrens Social Care,085551,Short Break Services-Park Hse Sher,Supplies and Services,324117,Provisions E324,07-Oct-2020,000009210479615,JR HOLLAND FOODSERVICE,5499,Catering costs - provisions,310.84,0.00,310.84
Children and Young Peoples Services,Head of Childrens Social Care,085551,Short Break Services-Park Hse Sher,Supplies and Services,324117,Provisions E324,07-Oct-2020,000009210479617,JR HOLLAND FOODSERVICE,5499,Catering costs - provisions,235.71,0.00,235.71
Children and Young Peoples Services,Head of Childrens Social Care,085626,Families First Shildon/Chilton,Supplies and Services,364301,Grants to Voluntary Organisations,07-Oct-2020,000009210479623,ARGOS LTD,5310,Hardship,52.95,0.00,52.95
Neighbourhoods and Climate Change,Community Protection,011035,Consumer Protection 011035,Supplies and Services,328041,Clothing uniforms and laundry E328,07-Oct-2020,000009210479647,ARGOS LTD,5310,Clothing uniforms and laundry,53.96,0.00,53.96
Adult and Health Services,Head of Adults,055643,Hawthorn House LD Respite Unit,Supplies and Services,324117,Provisions E324,07-Oct-2020,000009210479671,SAINSBURYS 0776,5411,Catering costs - provisions,14.60,0.00,14.60
Children and Young Peoples Services,Head of Childrens Social Care,085342,16 Hickstead Rise (previously 9 Cedar Ave),Supplies and Services,304403,Equipment and Materials,07-Oct-2020,000009210479691,AMZNMktplace,5999,Other consumables,17.32,0.00,17.32
Children and Young Peoples Services,Head of Childrens Social Care,085352,Tow Law CU,Transport,215995,Running Costs of Vehicles,07-Oct-2020,000009210479713,MOUNT PLEASANT GARAGE,5541,Vehicle running expenses,240.00,0.00,240.00
Children and Young Peoples Services,Head of Childrens Social Care,085352,Tow Law CU,Supplies and Services,324117,Provisions E324,07-Oct-2020,000009210479717,ASDA SUPERSTORE 4987,5411,Catering costs - provisions,23.00,0.00,23.00
Children and Young Peoples Services,Head of Childrens Social Care,085352,Tow Law CU,Supplies and Services,304221,Equipment and Materials,07-Oct-2020,000009210479719,B & Q 1120,5200,Direct materials,34.79,0.00,34.79
Children and Young Peoples Services,Head of Childrens Social Care,085352,Tow Law CU,Supplies and Services,304221,Equipment and Materials,07-Oct-2020,000009210479721,B & Q 1120,5200,Direct materials,143.05,0.00,143.05
"Regeneration, Economy and Growth",Corporate Property and Land,030691,Catering - Durham Dales Centre,Supplies and Services,324117,Provisions E324,07-Oct-2020,000009210479725,JR HOLLAND FOODSERVICE,5499,Catering costs - provisions,44.12,0.00,44.12
Adult and Health Services,Head of Adults,055643,Hawthorn House LD Respite Unit,Supplies and Services,324117,Provisions E324,07-Oct-2020,000009210479737,JR HOLLAND FOODSERVICE,5499,Catering costs - provisions,9.74,0.00,9.74
Adult and Health Services,Head of Adults,055643,Hawthorn House LD Respite Unit,Supplies and Services,324117,Provisions E324,07-Oct-2020,000009210479743,JR HOLLAND FOODSERVICE,5499,Catering costs - provisions,10.74,0.00,10.74
Children and Young Peoples Services,Head of Education and Skills,071903,Early Years Sustainability,Supplies and Services,384999,Miscellaneous Expenses,07-Oct-2020,000009210479747,PAYPAL EB OFSTED BIG,7922,Other expenses,8.68,0.00,8.68
Children and Young Peoples Services,Head of Education and Skills,071903,Early Years Sustainability,Third Party Payments,430100,Rendered by Private Contractors,07-Oct-2020,000009210479749,EB OFSTED BIG CONVERS,7399,Payments to sub-contractors,8.68,0.00,8.68
Children and Young Peoples Services,Head of Early Help Inclusion & Vulnerable Children.,088102,Consett & Stanley 0-19 Targeted Family Support,Supplies and Services,384302,Miscellaneous Expenses,07-Oct-2020,000009210479763,ETSY.COM SENAXUSPRINT,5699,Activity expenses,155.82,0.00,155.82
Children and Young Peoples Services,Head of Early Help Inclusion & Vulnerable Children.,088102,Consett & Stanley 0-19 Targeted Family Support,Supplies and Services,384302,Miscellaneous Expenses,07-Oct-2020,000009210479765,ETSY.COM SMCBANDSONSTR,5699,Activity expenses,2.89,0.00,2.89
Resources BK0010,Digital and Customer Services,065335,School Services - Implementations,Supplies and Services,342033,Computers and Communications,07-Oct-2020,000009210479777,CURRYS ONLINE,5732,Computer hardware,39.99,0.00,39.99
Resources BK0010,Digital and Customer Services,065335,School Services - Implementations,Supplies and Services,304639,Equipment and Materials,07-Oct-2020,000009210479781,AMZNMktplace,5999,Technicians-supplies,13.54,2.26,11.28
Children and Young Peoples Services,Head of Childrens Social Care,085334,West Rainton Satelite Home,Supplies and Services,324117,Provisions E324,07-Oct-2020,000009210479783,WILKO RETAIL LIMITED,5399,Catering costs - provisions,18.50,0.00,18.50
Children and Young Peoples Services,Head of Childrens Social Care,085334,West Rainton Satelite Home,Supplies and Services,324117,Provisions E324,07-Oct-2020,000009210479787,WILKO RETAIL LIMITED,5399,Catering costs - provisions,20.00,0.00,20.00
Children and Young Peoples Services,Head of Childrens Social Care,085334,West Rainton Satelite Home,Supplies and Services,304999,Equipment and Materials,07-Oct-2020,000009210479789,HOME BARGAINS,5251,Misc equipment tools and materials,4.99,0.00,4.99
Children and Young Peoples Services,Head of Childrens Social Care,085334,West Rainton Satelite Home,Supplies and Services,304999,Equipment and Materials,07-Oct-2020,000009210479791,HOME BARGAINS,5251,Misc equipment tools and materials,51.77,0.00,51.77
Children and Young Peoples Services,Head of Childrens Social Care,085334,West Rainton Satelite Home,Supplies and Services,324117,Provisions E324,07-Oct-2020,000009210479793,TESCO STORES 2371,5411,Catering costs - provisions,36.67,0.00,36.67
Children and Young Peoples Services,Head of Early Help Inclusion & Vulnerable Children.,085954,Walworth,Supplies and Services,384999,Miscellaneous Expenses,07-Oct-2020,000009210479797,AMZNMktplace,5999,Other expenses,29.99,0.00,29.99
Children and Young Peoples Services,Head of Early Help Inclusion & Vulnerable Children.,085952,Secure Education,Supplies and Services,304245,Equipment and Materials,07-Oct-2020,000009210479801,FAST KEY SERVICES LIMI,7399,Materials,8.44,1.41,7.03
Resources BK0010,Legal & Democratic Services,067801,Registrars,Supplies and Services,340001,Postages E340,07-Oct-2020,000009210479805,ROYAL MAIL ONLINE SHOP,9402,Postages,48.25,0.00,48.25
Resources BK0010,Business Support,052986,CYPS - Locality and Operational Support,Employees,040149,Recruitment Instruction and Training,07-Oct-2020,000009210479807,HSQE LTD,8299,Training-all costs,28.80,0.00,28.80
"Regeneration, Economy and Growth",Culture Sport and Tourism,054235,Bishop Auckland Town Hall Cafe,Supplies and Services,324117,Provisions E324,07-Oct-2020,000009210479811,JR HOLLAND FOODSERVICE,5499,Catering costs - provisions,21.78,0.00,21.78
Adult and Health Services,Head of Adults,055301,Stanley Pathways,Supplies and Services,324117,Provisions E324,07-Oct-2020,000009210479827,SAINSBURYS 0776,5411,Catering costs - provisions,3.90,0.00,3.90
Children and Young Peoples Services,Head of Childrens Social Care,085352,Tow Law CU,Supplies and Services,348037,Subsistence E348,07-Oct-2020,000009210479899,HARDWICK HALL HOTEL,5812,Subsistence,35.00,0.00,35.00
Children and Young Peoples Services,Head of Education and Skills,071802,Louisa Cent Nursery,Supplies and Services,324117,Provisions E324,07-Oct-2020,000009210479901,ASDA SUPERSTORE,5411,Catering costs - provisions,2.53,0.00,2.53
Children and Young Peoples Services,Head of Early Help Inclusion & Vulnerable Children.,071593,Bullion Childrens Centre,Supplies and Services,364301,Grants to Voluntary Organisations,07-Oct-2020,000009210479919,WWW.EMBLEMATIC.CO.UK,5611,Hardship,116.98,0.00,116.98
Children and Young Peoples Services,Head of Early Help Inclusion & Vulnerable Children.,088100,Durham West & CLS 0-19 Targeted Family Support,Supplies and Services,384302,Miscellaneous Expenses,07-Oct-2020,000009210479923,WWW.BEAMISH.ORG.UK,7922,Activity expenses,44.50,0.00,44.50
Resources BK0010,Transformation,060290,Riep - Modern ways of working,Supplies and Services,332047,Printing Stationery and Gen Off Exps,07-Oct-2020,000009210479977,AMZNMKTPLACE AMAZON.CO,5999,Stationery,86.99,14.50,72.49
Resources BK0010,Transformation,060290,Riep - Modern ways of working,Supplies and Services,332047,Printing Stationery and Gen Off Exps,07-Oct-2020,000009210479981,AMZNMKTPLACE AMAZON.CO,5999,Stationery,76.20,0.00,76.20
Resources BK0010,Legal & Democratic Services,067953,Coroner County Durham & Darlington,Supplies and Services,312009,Newspapers books and periodicals E312,07-Oct-2020,000009210479983,HOLISTICSHOP.CO.UK,5399,Newspapers books and periodicals,9.53,0.00,9.53
Children and Young Peoples Services,Head of Childrens Social Care,085341,High Etherley Satelite Home,Supplies and Services,324117,Provisions E324,07-Oct-2020,000009210479999,ASDA STORES,5411,Catering costs - provisions,33.79,0.00,33.79
"Regeneration, Economy and Growth",Development and Housing,030771,Durham Advance Flexible Fund,Supplies and Services,324117,Provisions E324,07-Oct-2020,000009210480055,ASDA,5411,Catering costs - provisions,150.00,0.00,150.00
"Regeneration, Economy and Growth",Development and Housing,031500,Housing Solutions - Core Team,Supplies and Services,372009,Subscriptions E372,07-Oct-2020,000009213611161,UKDEEDPOLLO,8111,Subscriptions 372009,27.45,0.00,27.45
Children and Young Peoples Services,Head of Childrens Social Care,085333,Coxhoe Satelite Home,Supplies and Services,304403,Equipment and Materials,07-Oct-2020,000009213611371,AMZNMKTPLACE AMAZON.CO,5999,Other consumables,21.99,3.67,18.32
Resources BK0010,Legal & Democratic Services,067953,Coroner County Durham & Darlington,Supplies and Services,312009,Newspapers books and periodicals E312,07-Oct-2020,000009213611595,PAYPAL ISLAMICGIFT EB,5947,Newspapers books and periodicals,12.98,0.00,12.98
Resources BK0010,Legal & Democratic Services,067953,Coroner County Durham & Darlington,Supplies and Services,312009,Newspapers books and periodicals E312,07-Oct-2020,000009213611599,PAYPAL ONLINESIKHS EB,5973,Newspapers books and periodicals,23.96,0.00,23.96
Resources BK0010,Digital and Customer Services,065432,Web Development Group,Supplies and Services,342053,Computers and Communications,08-Oct-2020,000009210479135,WPMU DEV INCSUBFEE.COM,7372,Computer software,0.40,0.00,0.40
Children and Young Peoples Services,Head of Early Help Inclusion & Vulnerable Children.,085956,Lumley,Supplies and Services,304403,Equipment and Materials,08-Oct-2020,000009210479471,AMZNMktplace,5999,Other consumables,43.92,7.36,36.56
Children and Young Peoples Services,Head of Education and Skills,071801,Selby Cottage Childcare Centre,Supplies and Services,304999,Equipment and Materials,08-Oct-2020,000009213610481,Amazon Prime AN5U12J55,5968,Misc equipment tools and materials,7.99,0.00,7.99
Children and Young Peoples Services,Head of Early Help Inclusion & Vulnerable Children.,079033,SEND LOOKED AFTER AND VULNERABLE MGT,Supplies and Services,304335,Equipment and Materials,08-Oct-2020,000009213610517,AMZNMktplace,5999,ICT supplies etc,26.99,4.50,22.49
Children and Young Peoples Services,Head of Childrens Social Care,085371,Young Peoples Service Team 1,Supplies and Services,344033,Telephones,08-Oct-2020,000009213610521,AMZNMktplace,5999,Telephones general-all costs,7.99,1.33,6.66
Children and Young Peoples Services,Head of Early Help Inclusion & Vulnerable Children.,071593,Bullion Childrens Centre,Supplies and Services,342033,Computers and Communications,08-Oct-2020,000009213610527,AMZNMktplace,5999,Computer hardware,36.99,6.17,30.82
"Regeneration, Economy and Growth",Development and Housing,031500,Housing Solutions - Core Team,Supplies and Services,352001,Conference Expenses,08-Oct-2020,000009213610545,WWW.HOTEL52.CO.UK,7011,Conferencesseminars fees etc,337.00,0.00,337.00
"Regeneration, Economy and Growth",Development and Housing,031500,Housing Solutions - Core Team,Supplies and Services,352001,Conference Expenses,08-Oct-2020,000009213610551,WWW.HOTEL52.CO.UK,7011,Conferencesseminars fees etc,58.00,0.00,58.00
"Regeneration, Economy and Growth",Development and Housing,031500,Housing Solutions - Core Team,Supplies and Services,352001,Conference Expenses,08-Oct-2020,000009213610555,WWW.HOTEL52.CO.UK,7011,Conferencesseminars fees etc,234.00,0.00,234.00
Children and Young Peoples Services,Head of Education and Skills,075021,Youth Employment Initiative,Supplies and Services,364301,Grants to Voluntary Organisations,08-Oct-2020,000009213610565,GO NORTH EAST LIMITED,4131,Hardship,17.00,0.00,17.00
Dedicated Schools Grant BG0015,DSG High Needs Block,079050,SENSS-Sensory,Supplies and Services,304403,Equipment and Materials,08-Oct-2020,000009213610595,AMZNMktplace,5999,Other consumables,2.99,0.00,2.99
Dedicated Schools Grant BG0015,DSG High Needs Block,079050,SENSS-Sensory,Supplies and Services,304403,Equipment and Materials,08-Oct-2020,000009213610601,AMZNMktplace,5999,Other consumables,22.99,3.83,19.16
Dedicated Schools Grant BG0015,DSG High Needs Block,079050,SENSS-Sensory,Supplies and Services,304403,Equipment and Materials,08-Oct-2020,000009213610605,AMZNMktplace,5999,Other consumables,69.12,11.52,57.60
Dedicated Schools Grant BG0015,DSG High Needs Block,079050,SENSS-Sensory,Supplies and Services,304403,Equipment and Materials,08-Oct-2020,000009213610605 - 1,AMZNMktplace,5999,Other consumables,0.05,,0.05
Dedicated Schools Grant BG0015,DSG High Needs Block,079050,SENSS-Sensory,Supplies and Services,304403,Equipment and Materials,08-Oct-2020,000009213610607,AMZNMktplace,5999,Other consumables,29.93,4.99,24.94
Children and Young Peoples Services,Head of Childrens Social Care,085332,Middlestone Moor CU,Supplies and Services,324117,Provisions E324,08-Oct-2020,000009213610751,TESCO STORES 4358,5411,Catering costs - provisions,3.40,0.00,3.40
"Regeneration, Economy and Growth",Development and Housing,030776,LINKCD Flexible Fund,Employees,080025,Agency Staff,08-Oct-2020,000009213610793,WWW.REED.CO.UK,7361,Agency supply staff,10.00,1.67,8.33
"Regeneration, Economy and Growth",Development and Housing,030776,LINKCD Flexible Fund,Supplies and Services,304999,Equipment and Materials,08-Oct-2020,000009213610797,HIGHSPEEDTRAINING.CO.U,8244,Misc equipment tools and materials,48.00,0.00,48.00
Children and Young Peoples Services,Head of Early Help Inclusion & Vulnerable Children.,071569,Woodhouse Close Childrens Centre,Supplies and Services,308011,Furniture,08-Oct-2020,000009213610819,ARGOS LTD,5310,Furniture repair and replacement,162.00,27.00,135.00
Children and Young Peoples Services,Head of Early Help Inclusion & Vulnerable Children.,071569,Woodhouse Close Childrens Centre,Supplies and Services,308011,Furniture,08-Oct-2020,000009213610823,ARGOS LTD,5310,Furniture repair and replacement,206.95,34.49,172.46
Children and Young Peoples Services,Head of Early Help Inclusion & Vulnerable Children.,079599,Psychological-HQ,Supplies and Services,304403,Equipment and Materials,08-Oct-2020,000009213610853,WWW.COURSEBEETLE.CO.UK,5734,Other consumables,299.00,0.00,299.00
Children and Young Peoples Services,Head of Early Help Inclusion & Vulnerable Children.,085957,Secure Management,Supplies and Services,328041,Clothing uniforms and laundry E328,08-Oct-2020,000009213610861,PAYPAL CREP SELECT CR,5611,Clothing uniforms and laundry,55.00,0.00,55.00
"Regeneration, Economy and Growth",Development and Housing,030772,CLLD South,Supplies and Services,304403,Equipment and Materials,08-Oct-2020,000009213610893,SP SMARTBREEDER.COM,5734,Other consumables,495.00,82.50,412.50
Children and Young Peoples Services,Head of Childrens Social Care,085361,LAC & Permanence Team 1,Supplies and Services,384999,Miscellaneous Expenses,08-Oct-2020,000009213610899,HM PASSPORT OFFICE,9399,Other expenses,49.00,0.00,49.00
Children and Young Peoples Services,Head of Childrens Social Care,085352,Tow Law CU,Supplies and Services,308011,Furniture,08-Oct-2020,000009213610973,IKEA LTD 143 GATESHEAD,5712,Furniture repair and replacement,470.00,0.00,470.00
Children and Young Peoples Services,Head of Childrens Social Care,085352,Tow Law CU,Supplies and Services,324117,Provisions E324,08-Oct-2020,000009213610979,CO-OP GROUP 010486,5411,Catering costs - provisions,6.60,0.00,6.60
Children and Young Peoples Services,Head of Childrens Social Care,085352,Tow Law CU,Supplies and Services,348037,Subsistence E348,08-Oct-2020,000009213610983,GREGGS,5812,Subsistence,10.85,0.00,10.85
Resources BK0010,Digital and Customer Services,070204,School Services - Systems,Employees,040029,Recruitment Instruction and Training,08-Oct-2020,000009213610997,NOMINET UK,7392,Interview expenses,18.72,3.12,15.60
Resources BK0010,Digital and Customer Services,070204,School Services - Systems,Supplies and Services,372009,Subscriptions E372,08-Oct-2020,000009213611001,NOMINET UK,7392,Subscriptions 372009,280.80,46.80,234.00
"Regeneration, Economy and Growth",Culture Sport and Tourism,010664,Freemans Quay Leisure Centre,Supplies and Services,328041,Clothing uniforms and laundry E328,08-Oct-2020,000009213611007,ARGOS LTD,5310,Clothing uniforms and laundry,249.99,0.00,249.99
"Regeneration, Economy and Growth",Culture Sport and Tourism,010664,Freemans Quay Leisure Centre,Supplies and Services,328041,Clothing uniforms and laundry E328,08-Oct-2020,000009213611009,ARGOS LTD,5310,Clothing uniforms and laundry,99.00,0.00,99.00
Children and Young Peoples Services,Head of Education and Skills,071732,Dean Bank Childcare,Supplies and Services,324117,Provisions E324,08-Oct-2020,000009213611019,ASDA GROCERIES ONLINE,5411,Catering costs - provisions,168.00,0.00,168.00
Children and Young Peoples Services,Head of Education and Skills,071732,Dean Bank Childcare,Supplies and Services,324117,Provisions E324,08-Oct-2020,000009213611023,TESCO STORES 2916,5411,Catering costs - provisions,83.12,0.00,83.12
Children and Young Peoples Services,Head of Education and Skills,071732,Dean Bank Childcare,Supplies and Services,324117,Provisions E324,08-Oct-2020,000009213611025,ASDA GROCERIES ONLINE,5411,Catering costs - provisions,-60.00,0.00,-60.00
"Regeneration, Economy and Growth",Development and Housing,030771,Durham Advance Flexible Fund,Supplies and Services,328041,Clothing uniforms and laundry E328,08-Oct-2020,000009213611063,ARGOS LTD,5310,Clothing uniforms and laundry,113.93,0.00,113.93
"Regeneration, Economy and Growth",Development and Housing,030771,Durham Advance Flexible Fund,Supplies and Services,304259,Equipment and Materials,08-Oct-2020,000009213611065,SPORTSDIRECT.COM,5941,Equipment-purchase and rental,24.98,0.00,24.98
"Regeneration, Economy and Growth",Development and Housing,031500,Housing Solutions - Core Team,Supplies and Services,352001,Conference Expenses,08-Oct-2020,000009213611081,WWW.HOTEL52.CO.UK,7011,Conferencesseminars fees etc,420.00,0.00,420.00
"Regeneration, Economy and Growth",Development and Housing,031500,Housing Solutions - Core Team,Supplies and Services,352001,Conference Expenses,08-Oct-2020,000009213611097,AYCLIFFE BIZ,7011,Conferencesseminars fees etc,266.00,0.00,266.00
Children and Young Peoples Services,Head of Early Help Inclusion & Vulnerable Children.,085956,Lumley,Supplies and Services,304403,Equipment and Materials,08-Oct-2020,000009213611115,AMZNMktplace,5999,Other consumables,48.96,8.16,40.80
Children and Young Peoples Services,Head of Early Help Inclusion & Vulnerable Children.,085956,Lumley,Supplies and Services,304403,Equipment and Materials,08-Oct-2020,000009213611115 - 1,AMZNMktplace,5999,Other consumables,0.08,,0.08
Neighbourhoods and Climate Change,Environmental Services,010367,C&G - South Grounds Maintenance,Supplies and Services,304221,Equipment and Materials,08-Oct-2020,000009213611129,MKM PETERLEE,5211,Direct materials,20.83,0.00,20.83
Neighbourhoods and Climate Change,Environmental Services,011060,C&G - Hardwick Park Catering,Supplies and Services,324117,Provisions E324,08-Oct-2020,000009213611137,JR HOLLAND FOODSERVICE,5499,Catering costs - provisions,65.60,0.00,65.60
"Regeneration, Economy and Growth",Corporate Property and Land,021234,Catering - Locomotion,Supplies and Services,324117,Provisions E324,08-Oct-2020,000009213611155,JR HOLLAND FOODSERVICE,5499,Catering costs - provisions,-1.06,0.00,-1.06
"Regeneration, Economy and Growth",Development and Housing,031500,Housing Solutions - Core Team,Supplies and Services,352001,Conference Expenses,08-Oct-2020,000009213611171,AYCLIFFE BIZ,7011,Conferencesseminars fees etc,114.00,0.00,114.00
"Regeneration, Economy and Growth",Development and Housing,031500,Housing Solutions - Core Team,Transport,235057,Public Transport,08-Oct-2020,000009213611175,BLUE LINE TAXIS,4121,Staff travelling,29.70,0.00,29.70
"Regeneration, Economy and Growth",Development and Housing,031500,Housing Solutions - Core Team,Transport,235057,Public Transport,08-Oct-2020,000009213611177,BLUE LINE TAXIS,4121,Staff travelling,18.00,0.00,18.00
"Regeneration, Economy and Growth",Development and Housing,031500,Housing Solutions - Core Team,Supplies and Services,352001,Conference Expenses,08-Oct-2020,000009213611183,WWW.HOTEL52.CO.UK,7011,Conferencesseminars fees etc,252.00,0.00,252.00
Children and Young Peoples Services,Head of Childrens Social Care,085331,New Lea Childrens Home,Supplies and Services,324117,Provisions E324,08-Oct-2020,000009213611187,ASDA SUPERSTORE,5411,Catering costs - provisions,21.98,0.00,21.98
Children and Young Peoples Services,Head of Childrens Social Care,085331,New Lea Childrens Home,Supplies and Services,324117,Provisions E324,08-Oct-2020,000009213611189,ASDA SUPERSTORE,5411,Catering costs - provisions,237.75,0.00,237.75
Children and Young Peoples Services,Head of Childrens Social Care,085331,New Lea Childrens Home,Supplies and Services,324117,Provisions E324,08-Oct-2020,000009213611191,ASDA SUPERSTORE,5411,Catering costs - provisions,13.90,0.00,13.90
Children and Young Peoples Services,Head of Childrens Social Care,085331,New Lea Childrens Home,Supplies and Services,324117,Provisions E324,08-Oct-2020,000009213611195,ASDA SUPERSTORE,5411,Catering costs - provisions,10.00,0.00,10.00
Children and Young Peoples Services,Head of Childrens Social Care,085331,New Lea Childrens Home,Supplies and Services,324117,Provisions E324,08-Oct-2020,000009213611197,TESCO STORES 4358,5411,Catering costs - provisions,212.76,0.00,212.76
Children and Young Peoples Services,Head of Childrens Social Care,085331,New Lea Childrens Home,Supplies and Services,324117,Provisions E324,08-Oct-2020,000009213611199,TESCO STORES 4358,5411,Catering costs - provisions,381.25,0.00,381.25
Children and Young Peoples Services,Head of Early Help Inclusion & Vulnerable Children.,088108,Spennymoor & Shildon 0-19 Targeted Family Support,Supplies and Services,304259,Equipment and Materials,08-Oct-2020,000009213611273,ASDA STORES,5411,Equipment-purchase and rental,22.50,0.00,22.50
Children and Young Peoples Services,Head of Childrens Social Care,085341,High Etherley Satelite Home,Supplies and Services,304403,Equipment and Materials,08-Oct-2020,000009213611303,AMZNMKTPLACE AMAZON.CO,5999,Other consumables,19.25,0.00,19.25
Children and Young Peoples Services,Head of Childrens Social Care,085341,High Etherley Satelite Home,Supplies and Services,332047,Printing Stationery and Gen Off Exps,08-Oct-2020,000009213611307,MANUTAN UK LTD,5943,Stationery,153.60,0.00,153.60
Children and Young Peoples Services,Head of Childrens Social Care,085341,High Etherley Satelite Home,Supplies and Services,324117,Provisions E324,08-Oct-2020,000009213611309,ASDA SUPERSTORE 4987,5411,Catering costs - provisions,13.70,0.00,13.70
Neighbourhoods and Climate Change,Environmental Services,010367,C&G - South Grounds Maintenance,Supplies and Services,304221,Equipment and Materials,08-Oct-2020,000009213611325,CARRS BILLINGTON SPENN,5599,Direct materials,80.50,0.00,80.50
Neighbourhoods and Climate Change,Community Protection,011035,Consumer Protection 011035,Supplies and Services,324117,Provisions E324,08-Oct-2020,000009213611341,SAINSBURYS 0776,5411,Catering costs - provisions,51.96,0.00,51.96
Neighbourhoods and Climate Change,Community Protection,011035,Consumer Protection 011035,Supplies and Services,324117,Provisions E324,08-Oct-2020,000009213611351,ASDA STORES LTD 4313,5411,Catering costs - provisions,60.00,0.00,60.00
Children and Young Peoples Services,Head of Education and Skills,071802,Louisa Cent Nursery,Supplies and Services,324117,Provisions E324,08-Oct-2020,000009213611369,ALDI STORES,5411,Catering costs - provisions,12.58,0.00,12.58
Children and Young Peoples Services,Head of Childrens Social Care,085352,Tow Law CU,Supplies and Services,304403,Equipment and Materials,08-Oct-2020,000009213611425,AMZNMKTPLACE AMAZON.CO,5999,Other consumables,69.96,0.00,69.96
Children and Young Peoples Services,Head of Childrens Social Care,085352,Tow Law CU,Supplies and Services,304221,Equipment and Materials,08-Oct-2020,000009213611429,B & Q 1343,5200,Direct materials,47.94,0.00,47.94
Children and Young Peoples Services,Head of Education and Skills,075021,Youth Employment Initiative,Transport,235057,Public Transport,08-Oct-2020,000009213611433,GO NORTH EAST - V/T,4131,Staff travelling,8.50,0.00,8.50
Neighbourhoods and Climate Change,Environmental Services,010367,C&G - South Grounds Maintenance,Supplies and Services,304221,Equipment and Materials,08-Oct-2020,000009213611447,SCREWFIX DIRECT,5211,Direct materials,10.38,0.00,10.38
Children and Young Peoples Services,Head of Childrens Social Care,085334,West Rainton Satelite Home,Supplies and Services,384999,Miscellaneous Expenses,08-Oct-2020,000009213611449,SMYTHS TOYS DURHAM,5945,Other expenses,116.51,0.00,116.51
Children and Young Peoples Services,Head of Childrens Social Care,085334,West Rainton Satelite Home,Supplies and Services,328041,Clothing uniforms and laundry E328,08-Oct-2020,000009213611455,Argos Durham Arnis,5310,Clothing uniforms and laundry,25.00,0.00,25.00
Children and Young Peoples Services,Head of Early Help Inclusion & Vulnerable Children.,088103,Consett & Stanley 0-19 Community Family Hub,Supplies and Services,340001,Postages E340,08-Oct-2020,000009213611457,POST OFFICE COUNTER,9402,Postages,1.40,0.00,1.40
Children and Young Peoples Services,Head of Early Help Inclusion & Vulnerable Children.,088103,Consett & Stanley 0-19 Community Family Hub,Supplies and Services,384302,Miscellaneous Expenses,08-Oct-2020,000009213611459,MINI FIRST AID,8299,Activity expenses,20.00,0.00,20.00
Resources BK0010,Digital and Customer Services,065335,School Services - Implementations,Supplies and Services,304639,Equipment and Materials,08-Oct-2020,000009213611467,AMZNMktplace,5999,Technicians-supplies,83.97,14.01,69.96
Children and Young Peoples Services,Head of Early Help Inclusion & Vulnerable Children.,085957,Secure Management,Supplies and Services,304252,Equipment and Materials,08-Oct-2020,000009213611481,BARRIER-COMPONENTS,5251,Equipment-repairsserviceinsurance,169.18,28.20,140.98
Resources BK0010,Business Support,052986,CYPS - Locality and Operational Support,Supplies and Services,328041,Clothing uniforms and laundry E328,08-Oct-2020,000009213611487,ARGOS LTD,5310,Clothing uniforms and laundry,176.95,0.00,176.95
Resources BK0010,Business Support,052986,CYPS - Locality and Operational Support,Supplies and Services,328041,Clothing uniforms and laundry E328,08-Oct-2020,000009213611489,ARGOS LTD,5310,Clothing uniforms and laundry,164.99,0.00,164.99
Resources BK0010,Business Support,052986,CYPS - Locality and Operational Support,Supplies and Services,328041,Clothing uniforms and laundry E328,08-Oct-2020,000009213611493,ARGOS LTD,5310,Clothing uniforms and laundry,50.00,0.00,50.00
Neighbourhoods and Climate Change,Environmental Services,010301,C&G - North Grounds Maintenance,Supplies and Services,304999,Equipment and Materials,08-Oct-2020,000009213611521,GUSTHARTS,5072,Misc equipment tools and materials,232.20,0.00,232.20
Neighbourhoods and Climate Change,Environmental Services,010301,C&G - North Grounds Maintenance,Supplies and Services,304999,Equipment and Materials,08-Oct-2020,000009213611527,GUSTHARTS,5072,Misc equipment tools and materials,417.48,0.00,417.48
Neighbourhoods and Climate Change,Environmental Services,010301,C&G - North Grounds Maintenance,Supplies and Services,304999,Equipment and Materials,08-Oct-2020,000009213611529,GUSTHARTS,5072,Misc equipment tools and materials,121.90,0.00,121.90
Children and Young Peoples Services,Head of Education and Skills,071802,Louisa Cent Nursery,Supplies and Services,324117,Provisions E324,08-Oct-2020,000009213611541,ASDA SUPERSTORE,5411,Catering costs - provisions,5.00,0.00,5.00
Children and Young Peoples Services,Head of Education and Skills,071802,Louisa Cent Nursery,Supplies and Services,324117,Provisions E324,08-Oct-2020,000009213611545,ASDA SUPERSTORE,5411,Catering costs - provisions,47.63,0.00,47.63
"Regeneration, Economy and Growth",Culture Sport and Tourism,054233,Bishop Auckland Town Hall Library,Supplies and Services,324117,Provisions E324,08-Oct-2020,000009213611567,ASDA STORES,5411,Catering costs - provisions,10.00,0.00,10.00
"Regeneration, Economy and Growth",Culture Sport and Tourism,011263,Louisa Centre 011263,Supplies and Services,328041,Clothing uniforms and laundry E328,08-Oct-2020,000009213611593,ARGOS LTD,5310,Clothing uniforms and laundry,33.00,0.00,33.00
Adult and Health Services,Head of Adults,055309,Peterlee Pathways,Supplies and Services,324117,Provisions E324,08-Oct-2020,000009213611659,LIDL GB PETERLEE,5411,Catering costs - provisions,1.98,0.00,1.98
"Regeneration, Economy and Growth",Business Durham CL0850,030694,Plexus 2,Supplies and Services,304403,Equipment and Materials,08-Oct-2020,000009213611685,AMZNMktplace,5999,Other consumables,45.95,0.00,45.95
"Regeneration, Economy and Growth",Development and Housing,030770,Durham Advance,Supplies and Services,384999,Miscellaneous Expenses,08-Oct-2020,000009213611687,NEXT DIRECTORY,5965,Other expenses,71.99,0.00,71.99
Children and Young Peoples Services,Head of Education and Skills,071903,Early Years Sustainability,Supplies and Services,342053,Computers and Communications,08-Oct-2020,000009217416429,ZOOM.GBP,5968,Computer software,359.70,0.00,359.70
Children and Young Peoples Services,Head of Early Help Inclusion & Vulnerable Children.,085957,Secure Management,Supplies and Services,328041,Clothing uniforms and laundry E328,08-Oct-2020,000009217416849,ZARA INTERNET UK,5651,Clothing uniforms and laundry,53.94,0.00,53.94
Neighbourhoods and Climate Change,Environmental Services,011060,C&G - Hardwick Park Catering,Supplies and Services,324117,Provisions E324,08-Oct-2020,000009217417495,BATLEYS PERTH,5300,Catering costs - provisions,3.54,0.59,2.95
Neighbourhoods and Climate Change,Environmental Services,011060,C&G - Hardwick Park Catering,Supplies and Services,324117,Provisions E324,08-Oct-2020,000009217417495 - 1,BATLEYS PERTH,5300,Catering costs - provisions,213.28,,213.28
"Regeneration, Economy and Growth",Corporate Property and Land,030691,Catering - Durham Dales Centre,Supplies and Services,324117,Provisions E324,08-Oct-2020,000009217418087,BATLEYS PERTH,5300,Catering costs - provisions,82.12,0.00,82.12
Children and Young Peoples Services,Head of Early Help Inclusion & Vulnerable Children.,088102,Consett & Stanley 0-19 Targeted Family Support,Supplies and Services,384302,Miscellaneous Expenses,08-Oct-2020,000009217418219,ETSY.COM CREATEDUNIQUE,5699,Activity expenses,63.20,0.00,63.20
"Regeneration, Economy and Growth",Corporate Property and Land,021235,Catering - Wharton Park,Supplies and Services,324117,Provisions E324,08-Oct-2020,000009217418793,BATLEYS PERTH,5300,Catering costs - provisions,45.18,7.53,37.65
"Regeneration, Economy and Growth",Corporate Property and Land,021235,Catering - Wharton Park,Supplies and Services,324117,Provisions E324,08-Oct-2020,000009217418793 - 1,BATLEYS PERTH,5300,Catering costs - provisions,10.75,,10.75
Neighbourhoods and Climate Change,Partnerships & Community Engagement Div.,060473,COVID19 Shopping Community Hub,Supplies and Services,342506,Provisions E324,08-Oct-2020,000009233863017,BATLEYS PERTH,5300,Shopping Provision COVID19,933.90,155.65,778.25
Neighbourhoods and Climate Change,Partnerships & Community Engagement Div.,060473,COVID19 Shopping Community Hub,Supplies and Services,342506,Provisions E324,08-Oct-2020,000009233863017 - 1,BATLEYS PERTH,5300,Shopping Provision COVID19,"10,819.39",,10819.39
Dedicated Schools Grant BG0015,DSG High Needs Block,079050,SENSS-Sensory,Supplies and Services,304403,Equipment and Materials,09-Oct-2020,000009213610611,AMZNMktplace,5999,Other consumables,8.11,1.35,6.76
Children and Young Peoples Services,Head of Education and Skills,071903,Early Years Sustainability,Supplies and Services,342033,Computers and Communications,09-Oct-2020,000009213611073,STK Shutterstock,7333,Computer hardware,34.80,0.00,34.80
Children and Young Peoples Services,Head of Childrens Social Care,085341,High Etherley Satelite Home,Supplies and Services,324117,Provisions E324,09-Oct-2020,000009217416321,TESCO STORES 6329,5411,Catering costs - provisions,50.68,0.00,50.68
"Regeneration, Economy and Growth",Business Durham CL0850,030689,Inward Investment and Aftercare,Supplies and Services,304999,Equipment and Materials,09-Oct-2020,000009217416349,MAILCHIMP MONTHLY,5968,Misc equipment tools and materials,79.11,0.00,79.11
Children and Young Peoples Services,Head of Education and Skills,071801,Selby Cottage Childcare Centre,Supplies and Services,324117,Provisions E324,09-Oct-2020,000009217416397,ASDA GROCERIES ONLINE,5411,Catering costs - provisions,60.40,0.00,60.40
Children and Young Peoples Services,Head of Education and Skills,071801,Selby Cottage Childcare Centre,Supplies and Services,324117,Provisions E324,09-Oct-2020,000009217416403,ASDA GROCERIES ONLINE,5411,Catering costs - provisions,78.40,0.00,78.40
Children and Young Peoples Services,Head of Education and Skills,071801,Selby Cottage Childcare Centre,Supplies and Services,324117,Provisions E324,09-Oct-2020,000009217416411,ASDA GROCERIES ONLINE,5411,Catering costs - provisions,-40.00,0.00,-40.00
"Regeneration, Economy and Growth",Development and Housing,031576,B& B - Temp Accom,Supplies and Services,364320,Grants to Voluntary Organisations,09-Oct-2020,000009217416417,TOAST LETTINGS,7011,Accommodation assistance,500.00,0.00,500.00
"Regeneration, Economy and Growth",Development and Housing,031576,B& B - Temp Accom,Supplies and Services,364320,Grants to Voluntary Organisations,09-Oct-2020,000009217416423,TOAST LETTINGS,7011,Accommodation assistance,485.00,0.00,485.00
"Regeneration, Economy and Growth",Development and Housing,030773,CLLD North,Transport,235057,Public Transport,09-Oct-2020,000009217416477,GO NORTH EAST LIMITED,4131,Staff travelling,7.00,0.00,7.00
Children and Young Peoples Services,Head of Education and Skills,075021,Youth Employment Initiative,Supplies and Services,364301,Grants to Voluntary Organisations,09-Oct-2020,000009217416487,GO NORTH EAST LIMITED,4131,Hardship,4.50,0.00,4.50
Children and Young Peoples Services,Head of Education and Skills,075021,Youth Employment Initiative,Supplies and Services,364301,Grants to Voluntary Organisations,09-Oct-2020,000009217416491,GO NORTH EAST LIMITED,4131,Hardship,68.00,0.00,68.00
Children and Young Peoples Services,Head of Education and Skills,075021,Youth Employment Initiative,Supplies and Services,364301,Grants to Voluntary Organisations,09-Oct-2020,000009217416497,GO NORTH EAST LIMITED,4131,Hardship,17.00,0.00,17.00
Children and Young Peoples Services,Head of Education and Skills,075021,Youth Employment Initiative,Supplies and Services,364301,Grants to Voluntary Organisations,09-Oct-2020,000009217416505,GO NORTH EAST LIMITED,4131,Hardship,17.00,0.00,17.00
Children and Young Peoples Services,Head of Education and Skills,075021,Youth Employment Initiative,Supplies and Services,364301,Grants to Voluntary Organisations,09-Oct-2020,000009217416511,GO NORTH EAST LIMITED,4131,Hardship,4.50,0.00,4.50
Children and Young Peoples Services,Head of Education and Skills,075021,Youth Employment Initiative,Supplies and Services,364301,Grants to Voluntary Organisations,09-Oct-2020,000009217416517,SUNDERLAND CC,7523,Hardship,11.00,0.00,11.00
Children and Young Peoples Services,Head of Education and Skills,075021,Youth Employment Initiative,Supplies and Services,364301,Grants to Voluntary Organisations,09-Oct-2020,000009217416523,SCREWFIX DIRECT,5211,Hardship,4.98,0.83,4.15
Children and Young Peoples Services,Head of Education and Skills,075021,Youth Employment Initiative,Supplies and Services,364301,Grants to Voluntary Organisations,09-Oct-2020,000009217416523 - 1,SCREWFIX DIRECT,5211,Hardship,25.01,,25.01
Children and Young Peoples Services,Head of Education and Skills,075021,Youth Employment Initiative,Supplies and Services,364301,Grants to Voluntary Organisations,09-Oct-2020,000009217416533,WWW.DURHAM.GOV.UK,9399,Hardship,11.00,0.00,11.00
Dedicated Schools Grant BG0015,DSG High Needs Block,079050,SENSS-Sensory,Supplies and Services,304403,Equipment and Materials,09-Oct-2020,000009217416559,AMZNMktplace,5999,Other consumables,3.90,0.65,3.25
Dedicated Schools Grant BG0015,DSG High Needs Block,079050,SENSS-Sensory,Supplies and Services,304403,Equipment and Materials,09-Oct-2020,000009217416565,AMZNMktplace,5999,Other consumables,8.99,1.50,7.49
Dedicated Schools Grant BG0015,DSG High Needs Block,079050,SENSS-Sensory,Supplies and Services,304403,Equipment and Materials,09-Oct-2020,000009217416571,AMZNMktplace,5999,Other consumables,14.99,2.50,12.49
Children and Young Peoples Services,Head of Childrens Social Care,085332,Middlestone Moor CU,Supplies and Services,324117,Provisions E324,09-Oct-2020,000009217416579,TESCO STORES 2371,5411,Catering costs - provisions,99.91,0.00,99.91
Resources BK0010,Finance & Transactional Services,065184,Financial Assessments,Supplies and Services,384199,Miscellaneous Expenses,09-Oct-2020,000009217416767,WWW.GOV.UK,8999,Other hired and contracted services,1.50,0.00,1.50
"Regeneration, Economy and Growth",Culture Sport and Tourism,054233,Bishop Auckland Town Hall Library,Supplies and Services,324117,Provisions E324,09-Oct-2020,000009217416779,TESCO STORES 2971,5411,Catering costs - provisions,36.50,0.00,36.50
Children and Young Peoples Services,Head of Early Help Inclusion & Vulnerable Children.,085957,Secure Management,Supplies and Services,304403,Equipment and Materials,09-Oct-2020,000009217416855,AMZNMKTPLACE AMAZON.CO,5999,Other consumables,30.00,5.00,25.00
Children and Young Peoples Services,Head of Childrens Social Care,085362,LAC & Permanence Team 2,Supplies and Services,384999,Miscellaneous Expenses,09-Oct-2020,000009217416923,HM PASSPORT OFFICE,9399,Other expenses,49.00,0.00,49.00
Children and Young Peoples Services,Head of Childrens Social Care,085362,LAC & Permanence Team 2,Transfer Payments,515140,Social Services Clients,09-Oct-2020,000009217416929,EAST DURHAM COLLEGE,8220,Clothing allowances,55.00,0.00,55.00
Children and Young Peoples Services,Head of Childrens Social Care,085361,LAC & Permanence Team 1,Supplies and Services,384999,Miscellaneous Expenses,09-Oct-2020,000009217416933,WESTSUSSEX.GOV.UK,8220,Other expenses,11.00,0.00,11.00
Children and Young Peoples Services,Head of Early Help Inclusion & Vulnerable Children.,073998,TTF-Co-ordinator Grant,Transfer Payments,525033,Other,09-Oct-2020,000009217416963,WILKO.COM,5399,Grants to individuals,70.00,11.67,58.33
Children and Young Peoples Services,Head of Early Help Inclusion & Vulnerable Children.,073998,TTF-Co-ordinator Grant,Transfer Payments,525033,Other,09-Oct-2020,000009217416969,ASDA GEORGE COM LEEDS,5411,Grants to individuals,78.96,13.16,65.80
Neighbourhoods and Climate Change,Environmental Services,010367,C&G - South Grounds Maintenance,Supplies and Services,304999,Equipment and Materials,09-Oct-2020,000009217417123,NEW ROW FARM NURSERIES,780,Misc equipment tools and materials,37.00,0.00,37.00
"Regeneration, Economy and Growth",Culture Sport and Tourism,054967,Theatre - Technical Staffing,Supplies and Services,304221,Equipment and Materials,09-Oct-2020,000009217417159,SCREWFIX DIRECT,5211,Direct materials,11.99,0.00,11.99
Neighbourhoods and Climate Change,Environmental Services,010314,Nei.Prot - Bereavement Services,Supplies and Services,304259,Equipment and Materials,09-Oct-2020,000009217417217,Durham County CNCL,9399,Equipment-purchase and rental,11.00,0.00,11.00
Children and Young Peoples Services,Head of Early Help Inclusion & Vulnerable Children.,085962,Aycliffe Secure - Durham,Supplies and Services,304403,Equipment and Materials,09-Oct-2020,000009217417253,AMZNMktplace,5999,Other consumables,184.21,0.00,184.21
"Regeneration, Economy and Growth",Development and Housing,031500,Housing Solutions - Core Team,Supplies and Services,352001,Conference Expenses,09-Oct-2020,000009217417371,AYCLIFFE BIZ,7011,Conferencesseminars fees etc,152.00,0.00,152.00
Children and Young Peoples Services,Head of Early Help Inclusion & Vulnerable Children.,085965,Barnard,Supplies and Services,324117,Provisions E324,09-Oct-2020,000009217417447,TESCO STORES 6329,5411,Catering costs - provisions,95.05,0.00,95.05
Neighbourhoods and Climate Change,Environmental Services,011060,C&G - Hardwick Park Catering,Supplies and Services,324117,Provisions E324,09-Oct-2020,000009217417503,FREEMAN CATERING BUTCH,5422,Catering costs - provisions,64.04,0.00,64.04
Neighbourhoods and Climate Change,Environmental Services,011060,C&G - Hardwick Park Catering,Supplies and Services,324117,Provisions E324,09-Oct-2020,000009217417509,FREEMAN CATERING BUTCH,5422,Catering costs - provisions,55.54,0.00,55.54
Neighbourhoods and Climate Change,Environmental Services,011058,C&G - Wharton Park,Supplies and Services,304259,Equipment and Materials,09-Oct-2020,000009217417543,AMZNMktplace,5999,Equipment-purchase and rental,15.90,2.65,13.25
"Regeneration, Economy and Growth",Corporate Property and Land,021234,Catering - Locomotion,Premises,145009,Cleaning and Domestic Supplies,09-Oct-2020,000009217417577,ALLIANCE DISPOSABLES L,2842,Other cleaning and domestic costs,71.66,11.94,59.72
"Regeneration, Economy and Growth",Corporate Property and Land,021234,Catering - Locomotion,Supplies and Services,324117,Provisions E324,09-Oct-2020,000009217417587,JR HOLLAND FOODSERVICE,5499,Catering costs - provisions,72.04,0.00,72.04
"Regeneration, Economy and Growth",Development and Housing,031500,Housing Solutions - Core Team,Supplies and Services,352001,Conference Expenses,09-Oct-2020,000009217417621,WWW.HOTEL52.CO.UK,7011,Conferencesseminars fees etc,209.00,0.00,209.00
"Regeneration, Economy and Growth",Development and Housing,031500,Housing Solutions - Core Team,Supplies and Services,352001,Conference Expenses,09-Oct-2020,000009217417631,WWW.HOTEL52.CO.UK,7011,Conferencesseminars fees etc,209.00,0.00,209.00
Children and Young Peoples Services,Head of Childrens Social Care,085331,New Lea Childrens Home,Supplies and Services,324117,Provisions E324,09-Oct-2020,000009217417639,B&M 519 - CONSETT,5399,Catering costs - provisions,65.56,0.00,65.56
Children and Young Peoples Services,Head of Childrens Social Care,085551,Short Break Services-Park Hse Sher,Supplies and Services,324117,Provisions E324,09-Oct-2020,000009217417735,ICELAND,5411,Catering costs - provisions,38.93,0.00,38.93
Children and Young Peoples Services,Head of Childrens Social Care,085551,Short Break Services-Park Hse Sher,Supplies and Services,324117,Provisions E324,09-Oct-2020,000009217417743,ALDI 12 774,5411,Catering costs - provisions,62.56,0.00,62.56
Children and Young Peoples Services,Head of Early Help Inclusion & Vulnerable Children.,088109,Spennymoor & Shildon 0-19 Community Family Hub,Supplies and Services,312009,Newspapers books and periodicals E312,09-Oct-2020,000009217417787,Amazon.co.uk MI3ON8605,5969,Newspapers books and periodicals,3.59,0.00,3.59
Children and Young Peoples Services,Head of Early Help Inclusion & Vulnerable Children.,088106,Ferryhill & N.Aycliffe 0-19 Targeted Family Support,Supplies and Services,304259,Equipment and Materials,09-Oct-2020,000009217417797,WILKO RETAIL LIMITED,5399,Equipment-purchase and rental,9.90,0.00,9.90
Children and Young Peoples Services,Head of Early Help Inclusion & Vulnerable Children.,088108,Spennymoor & Shildon 0-19 Targeted Family Support,Supplies and Services,304259,Equipment and Materials,09-Oct-2020,000009217417801,ASDA STORES,5411,Equipment-purchase and rental,46.44,0.00,46.44
Children and Young Peoples Services,Head of Childrens Social Care,085333,Coxhoe Satelite Home,Supplies and Services,328041,Clothing uniforms and laundry E328,09-Oct-2020,000009217417965,WWW.EMBLEMATIC.CO.UK,5611,Clothing uniforms and laundry,43.49,0.00,43.49
Children and Young Peoples Services,Head of Childrens Social Care,085333,Coxhoe Satelite Home,Supplies and Services,324117,Provisions E324,09-Oct-2020,000009217417987,ASDA SUPERSTORE 4987,5411,Catering costs - provisions,138.16,0.00,138.16
Children and Young Peoples Services,Head of Childrens Social Care,085352,Tow Law CU,Supplies and Services,324117,Provisions E324,09-Oct-2020,000009217418061,ANGEL SPRINGS LTD,5811,Catering costs - provisions,43.14,0.00,43.14
Children and Young Peoples Services,Head of Childrens Social Care,085352,Tow Law CU,Supplies and Services,324117,Provisions E324,09-Oct-2020,000009217418065,ASDA SUPERSTORE 4987,5411,Catering costs - provisions,76.58,0.00,76.58
Children and Young Peoples Services,Head of Childrens Social Care,085352,Tow Law CU,Supplies and Services,328041,Clothing uniforms and laundry E328,09-Oct-2020,000009217418073,FLANNELSFASHION.,5691,Clothing uniforms and laundry,86.99,0.00,86.99
"Regeneration, Economy and Growth",Corporate Property and Land,030691,Catering - Durham Dales Centre,Premises,145009,Cleaning and Domestic Supplies,09-Oct-2020,000009217418093,ALLIANCE DISPOSABLES L,2842,Other cleaning and domestic costs,117.18,19.53,97.65
"Regeneration, Economy and Growth",Corporate Property and Land,030691,Catering - Durham Dales Centre,Premises,145009,Cleaning and Domestic Supplies,09-Oct-2020,000009217418093 - 1,ALLIANCE DISPOSABLES L,2842,Other cleaning and domestic costs,0.04,,0.04
"Regeneration, Economy and Growth",Corporate Property and Land,030691,Catering - Durham Dales Centre,Supplies and Services,324117,Provisions E324,09-Oct-2020,000009217418101,JR HOLLAND FOODSERVICE,5499,Catering costs - provisions,6.84,0.00,6.84
"Regeneration, Economy and Growth",Corporate Property and Land,030691,Catering - Durham Dales Centre,Supplies and Services,324117,Provisions E324,09-Oct-2020,000009217418105,JR HOLLAND FOODSERVICE,5499,Catering costs - provisions,56.33,0.00,56.33
"Regeneration, Economy and Growth",Corporate Property and Land,030691,Catering - Durham Dales Centre,Supplies and Services,324117,Provisions E324,09-Oct-2020,000009217418111,JR HOLLAND FOODSERVICE,5499,Catering costs - provisions,8.90,0.00,8.90
"Regeneration, Economy and Growth",Development and Housing,031576,B& B - Temp Accom,Supplies and Services,364320,Grants to Voluntary Organisations,09-Oct-2020,000009217418141,WWW.HOTEL52.CO.UK,7011,Accommodation assistance,206.00,0.00,206.00
"Regeneration, Economy and Growth",Development and Housing,031576,B& B - Temp Accom,Supplies and Services,364320,Grants to Voluntary Organisations,09-Oct-2020,000009217418151,BUDGET H EXPRESS HOTEL,7011,Accommodation assistance,500.00,0.00,500.00
"Regeneration, Economy and Growth",Development and Housing,031576,B& B - Temp Accom,Supplies and Services,364320,Grants to Voluntary Organisations,09-Oct-2020,000009217418159,BUDGET H EXPRESS HOTEL,7011,Accommodation assistance,123.00,0.00,123.00
Adult and Health Services,Head of Adults,055643,Hawthorn House LD Respite Unit,Supplies and Services,324117,Provisions E324,09-Oct-2020,000009217418163,FREEMAN CATERING BUTCH,5422,Catering costs - provisions,30.92,0.00,30.92
Adult and Health Services,Head of Adults,055643,Hawthorn House LD Respite Unit,Supplies and Services,324117,Provisions E324,09-Oct-2020,000009217418173,JR HOLLAND FOODSERVICE,5499,Catering costs - provisions,18.49,0.00,18.49
Adult and Health Services,Head of Adults,055643,Hawthorn House LD Respite Unit,Supplies and Services,324117,Provisions E324,09-Oct-2020,000009217418179,JR HOLLAND FOODSERVICE,5499,Catering costs - provisions,15.33,0.00,15.33
"Regeneration, Economy and Growth",Culture Sport and Tourism,054399,Local Delivery-Libraries,Supplies and Services,312009,Newspapers books and periodicals E312,09-Oct-2020,000009217418187,AMZNMKTPLACE AMAZON.CO,5999,Newspapers books and periodicals,13.09,0.00,13.09
Children and Young Peoples Services,Head of Childrens Social Care,085334,West Rainton Satelite Home,Supplies and Services,324117,Provisions E324,09-Oct-2020,000009217418197,ALDI 12 774,5411,Catering costs - provisions,9.95,0.00,9.95
Children and Young Peoples Services,Head of Early Help Inclusion & Vulnerable Children.,088103,Consett & Stanley 0-19 Community Family Hub,Supplies and Services,384302,Miscellaneous Expenses,09-Oct-2020,000009217418221,AMZNMKTPLACE AMAZON.CO,5999,Activity expenses,37.90,6.32,31.58
Resources BK0010,Digital and Customer Services,065335,School Services - Implementations,Supplies and Services,304639,Equipment and Materials,09-Oct-2020,000009217418245,AMZNMKTPLACE AMAZON.CO,5999,Technicians-supplies,16.98,0.00,16.98
Resources BK0010,Digital and Customer Services,065335,School Services - Implementations,Supplies and Services,304303,Equipment and Materials,09-Oct-2020,000009217418253,WWW.TOOLSTATION.COM,5251,Network for resale,119.92,0.00,119.92
Children and Young Peoples Services,Head of Childrens Social Care,085334,West Rainton Satelite Home,Supplies and Services,324117,Provisions E324,09-Oct-2020,000009217418271,TESCO STORES 2371,5411,Catering costs - provisions,47.38,0.00,47.38
"Regeneration, Economy and Growth",Culture Sport and Tourism,054235,Bishop Auckland Town Hall Cafe,Premises,145009,Cleaning and Domestic Supplies,09-Oct-2020,000009217418337,ALLIANCE DISPOSABLES L,2842,Other cleaning and domestic costs,30.00,0.00,30.00
"Regeneration, Economy and Growth",Transport and Contracted Services,031704,Care Connect - CCTV Countywide,Supplies and Services,372009,Subscriptions E372,09-Oct-2020,000009217418347,WWW.OFCOM.ORG.UK,8699,Subscriptions 372009,55.00,0.00,55.00
Children and Young Peoples Services,Head of Childrens Social Care,085332,Middlestone Moor CU,Supplies and Services,324117,Provisions E324,09-Oct-2020,000009217418409,PITY ME NURSERY,5499,Catering costs - provisions,25.00,0.00,25.00
Children and Young Peoples Services,Head of Childrens Social Care,085332,Middlestone Moor CU,Supplies and Services,324117,Provisions E324,09-Oct-2020,000009217418417,ASDA STORES,5411,Catering costs - provisions,25.97,0.00,25.97
Children and Young Peoples Services,Head of Childrens Social Care,085332,Middlestone Moor CU,Supplies and Services,348037,Subsistence E348,09-Oct-2020,000009217418421,MCDONALD`S,5812,Subsistence,3.58,0.00,3.58
Children and Young Peoples Services,Head of Childrens Social Care,085332,Middlestone Moor CU,Supplies and Services,304259,Equipment and Materials,09-Oct-2020,000009217418427,JD SPORTS PLC,5941,Equipment-purchase and rental,35.00,0.00,35.00
Adult and Health Services,Head of Adults,055301,Stanley Pathways,Supplies and Services,304221,Equipment and Materials,09-Oct-2020,000009217418447,B&Q DIRECT,5200,Direct materials,16.66,0.00,16.66
Neighbourhoods and Climate Change,Environmental Services,010301,C&G - North Grounds Maintenance,Supplies and Services,304999,Equipment and Materials,09-Oct-2020,000009217418497,WWW.TOOLSTATION.COM,5251,Misc equipment tools and materials,159.84,0.00,159.84
Children and Young Peoples Services,Head of Childrens Social Care,085352,Tow Law CU,Supplies and Services,384999,Miscellaneous Expenses,09-Oct-2020,000009217418541,BROWNS HAIRDRESSING,7230,Other expenses,15.00,0.00,15.00
Children and Young Peoples Services,Head of Childrens Social Care,085352,Tow Law CU,Supplies and Services,324117,Provisions E324,09-Oct-2020,000009217418547,WILKO.COM,5399,Catering costs - provisions,104.50,0.00,104.50
Children and Young Peoples Services,Head of Childrens Social Care,085352,Tow Law CU,Supplies and Services,332047,Printing Stationery and Gen Off Exps,09-Oct-2020,000009217418567,STATIONERYU,5943,Stationery,48.47,0.00,48.47
"Regeneration, Economy and Growth",Corporate Property and Land,021235,Catering - Wharton Park,Supplies and Services,324117,Provisions E324,09-Oct-2020,000009217418795,JR HOLLAND FOODSERVICE,5499,Catering costs - provisions,21.23,0.00,21.23
Children and Young Peoples Services,Head of Childrens Social Care,085333,Coxhoe Satelite Home,Supplies and Services,384999,Miscellaneous Expenses,09-Oct-2020,000009217418873,MAKING FACES,7230,Other expenses,7.98,0.00,7.98
Children and Young Peoples Services,Head of Childrens Social Care,085333,Coxhoe Satelite Home,Supplies and Services,384999,Miscellaneous Expenses,09-Oct-2020,000009217418879,BODYCARE,5977,Other expenses,13.33,0.00,13.33
Children and Young Peoples Services,Head of Childrens Social Care,085333,Coxhoe Satelite Home,Supplies and Services,348037,Subsistence E348,09-Oct-2020,000009217418885,MUFFIN BREAK METRO CEN,5813,Subsistence,9.60,0.00,9.60
Children and Young Peoples Services,Head of Childrens Social Care,085333,Coxhoe Satelite Home,Supplies and Services,328041,Clothing uniforms and laundry E328,09-Oct-2020,000009217418887,CLAIRE`S ACCESSORIES,5699,Clothing uniforms and laundry,5.00,0.00,5.00
Children and Young Peoples Services,Head of Childrens Social Care,085333,Coxhoe Satelite Home,Supplies and Services,328041,Clothing uniforms and laundry E328,09-Oct-2020,000009217418891,PRIMARK 670 GATESHEAD,5651,Clothing uniforms and laundry,36.00,0.00,36.00
Adult and Health Services,Head of Adults,055643,Hawthorn House LD Respite Unit,Supplies and Services,324117,Provisions E324,09-Oct-2020,000009221605655,BATLEYS PERTH,5300,Catering costs - provisions,24.84,4.14,20.70
Adult and Health Services,Head of Adults,055643,Hawthorn House LD Respite Unit,Supplies and Services,324117,Provisions E324,09-Oct-2020,000009221605655 - 1,BATLEYS PERTH,5300,Catering costs - provisions,85.74,,85.74
Adult and Health Services,Head of Adults,055643,Hawthorn House LD Respite Unit,Supplies and Services,324117,Provisions E324,09-Oct-2020,000009221605671,BATLEYS PERTH,5300,Catering costs - provisions,13.67,0.00,13.67
"Regeneration, Economy and Growth",Business Durham CL0850,030689,Inward Investment and Aftercare,Third Party Payments,430100,Rendered by Private Contractors,10-Oct-2020,000009217416361,BLS monday.com,7399,Payments to sub-contractors,148.80,0.00,148.80
Children and Young Peoples Services,Head of Childrens Social Care,085341,High Etherley Satelite Home,Supplies and Services,324117,Provisions E324,10-Oct-2020,000009217416641,TESCO STORES 6329,5411,Catering costs - provisions,18.00,0.00,18.00
Children and Young Peoples Services,Head of Childrens Social Care,085341,High Etherley Satelite Home,Supplies and Services,324117,Provisions E324,10-Oct-2020,000009217416649,TESCO STORES 6329,5411,Catering costs - provisions,23.67,0.00,23.67
Children and Young Peoples Services,Head of Childrens Social Care,085341,High Etherley Satelite Home,Supplies and Services,324117,Provisions E324,10-Oct-2020,000009217416657,TESCO STORES 6329,5411,Catering costs - provisions,12.59,0.00,12.59
Children and Young Peoples Services,Head of Childrens Social Care,085341,High Etherley Satelite Home,Supplies and Services,348037,Subsistence E348,10-Oct-2020,000009217416661,MARCH HARE,5813,Subsistence,33.26,0.00,33.26
"Regeneration, Economy and Growth",Culture Sport and Tourism,054233,Bishop Auckland Town Hall Library,Supplies and Services,324117,Provisions E324,10-Oct-2020,000009217416785,HERON FOODS LTD,5499,Catering costs - provisions,8.18,0.00,8.18
"Regeneration, Economy and Growth",Culture Sport and Tourism,054233,Bishop Auckland Town Hall Library,Supplies and Services,324117,Provisions E324,10-Oct-2020,000009217416789,HERON FOODS LTD,5499,Catering costs - provisions,4.60,0.00,4.60
Children and Young Peoples Services,Head of Early Help Inclusion & Vulnerable Children.,085957,Secure Management,Supplies and Services,328041,Clothing uniforms and laundry E328,10-Oct-2020,000009217416859,HM.COM,5691,Clothing uniforms and laundry,-17.99,0.00,-17.99
Children and Young Peoples Services,Head of Childrens Social Care,085342,16 Hickstead Rise (previously 9 Cedar Ave),Supplies and Services,348037,Subsistence E348,10-Oct-2020,000009217417141,ShakeNCake,5812,Subsistence,13.50,0.00,13.50
Children and Young Peoples Services,Head of Early Help Inclusion & Vulnerable Children.,085956,Lumley,Supplies and Services,324117,Provisions E324,10-Oct-2020,000009217417453,TESCO STORES 6329,5411,Catering costs - provisions,69.95,0.00,69.95
Children and Young Peoples Services,Head of Early Help Inclusion & Vulnerable Children.,085956,Lumley,Supplies and Services,304403,Equipment and Materials,10-Oct-2020,000009217417459,AMZ Amazon Business UK,5999,Other consumables,-44.16,-7.36,-36.80
Children and Young Peoples Services,Head of Early Help Inclusion & Vulnerable Children.,085957,Secure Management,Supplies and Services,304403,Equipment and Materials,10-Oct-2020,000009217417459 - 1,AMZ Amazon Business UK,5999,Other consumables,0.24,,0.24
Children and Young Peoples Services,Head of Childrens Social Care,085551,Short Break Services-Park Hse Sher,Supplies and Services,384999,Miscellaneous Expenses,10-Oct-2020,000009217417749,NEXT DIRECTORY,5965,Other expenses,15.00,0.00,15.00
Children and Young Peoples Services,Head of Early Help Inclusion & Vulnerable Children.,088109,Spennymoor & Shildon 0-19 Community Family Hub,Supplies and Services,312009,Newspapers books and periodicals E312,10-Oct-2020,000009217417809,Amazon.co.uk 6X9HP3RV5,5969,Newspapers books and periodicals,14.36,0.00,14.36
Children and Young Peoples Services,Head of Childrens Social Care,085333,Coxhoe Satelite Home,Supplies and Services,384999,Miscellaneous Expenses,10-Oct-2020,000009217417971,Amazon.co.uk MC8O41OO4,5969,Other expenses,11.84,2.00,9.84
Children and Young Peoples Services,Head of Childrens Social Care,085333,Coxhoe Satelite Home,Supplies and Services,304403,Equipment and Materials,10-Oct-2020,000009217417981,AMZNMKTPLACE AMAZON.CO,5999,Other consumables,13.44,0.00,13.44
Children and Young Peoples Services,Head of Childrens Social Care,085352,Tow Law CU,Supplies and Services,304403,Equipment and Materials,10-Oct-2020,000009217418077,WWW.ILOVEWALLPAPER.CO.,5231,Other consumables,49.95,0.00,49.95
Children and Young Peoples Services,Head of Childrens Social Care,085352,Tow Law CU,Transport,215995,Running Costs of Vehicles,10-Oct-2020,000009217418081,TOW LAW SERVICE STN,5541,Vehicle running expenses,40.98,0.00,40.98
Children and Young Peoples Services,Head of Childrens Social Care,085332,Middlestone Moor CU,Supplies and Services,304221,Equipment and Materials,10-Oct-2020,000009217418121,LINTZFORD GARDEN CENTR,5261,Direct materials,78.85,0.00,78.85
Children and Young Peoples Services,Head of Childrens Social Care,085334,West Rainton Satelite Home,Supplies and Services,328041,Clothing uniforms and laundry E328,10-Oct-2020,000009217418199,PRIMARK 680,5651,Clothing uniforms and laundry,99.50,0.00,99.50
Children and Young Peoples Services,Head of Early Help Inclusion & Vulnerable Children.,085956,Lumley,Supplies and Services,304403,Equipment and Materials,10-Oct-2020,000009217418317,AMZNMktplace,5999,Other consumables,30.00,5.00,25.00
Children and Young Peoples Services,Head of Childrens Social Care,085352,Tow Law CU,Supplies and Services,384999,Miscellaneous Expenses,10-Oct-2020,000009217418553,Amazon.co.uk O63ND7HI5,5969,Other expenses,32.96,5.49,27.47
Children and Young Peoples Services,Head of Childrens Social Care,085332,Middlestone Moor CU,Supplies and Services,304403,Equipment and Materials,10-Oct-2020,000009217418641,AMZNMKTPLACE AMAZON.CO,5999,Other consumables,3.95,0.66,3.29
"Regeneration, Economy and Growth",Business Durham CL0850,030689,Inward Investment and Aftercare,Supplies and Services,304999,Equipment and Materials,11-Oct-2020,000009217416355,LINKEDIN,5968,Misc equipment tools and materials,81.75,0.00,81.75
Children and Young Peoples Services,Head of Childrens Social Care,085341,High Etherley Satelite Home,Supplies and Services,304403,Equipment and Materials,11-Oct-2020,000009217416667,AMZNMKTPLACE AMAZON.CO,5999,Other consumables,118.94,0.00,118.94
Children and Young Peoples Services,Head of Childrens Social Care,085342,16 Hickstead Rise (previously 9 Cedar Ave),Supplies and Services,324117,Provisions E324,11-Oct-2020,000009217417151,TESCO STORES 2916,5411,Catering costs - provisions,8.00,0.00,8.00
Children and Young Peoples Services,Head of Early Help Inclusion & Vulnerable Children.,085962,Aycliffe Secure - Durham,Supplies and Services,304403,Equipment and Materials,11-Oct-2020,000009217417263,AMZNMktplace,5999,Other consumables,20.94,0.00,20.94
Children and Young Peoples Services,Head of Childrens Social Care,085334,West Rainton Satelite Home,Supplies and Services,324117,Provisions E324,11-Oct-2020,000009217417427,SAINSBURYS 2199,5411,Catering costs - provisions,20.90,0.00,20.90
Children and Young Peoples Services,Head of Childrens Social Care,085334,West Rainton Satelite Home,Supplies and Services,304999,Equipment and Materials,11-Oct-2020,000009217417435,HOME BARGAINS,5251,Misc equipment tools and materials,31.71,0.00,31.71
Children and Young Peoples Services,Head of Early Help Inclusion & Vulnerable Children.,085954,Walworth,Supplies and Services,324117,Provisions E324,11-Oct-2020,000009217417455,TESCO STORES 6329,5411,Catering costs - provisions,89.66,0.00,89.66
Children and Young Peoples Services,Head of Early Help Inclusion & Vulnerable Children.,071616,Seaham Childrens Centre,Supplies and Services,304403,Equipment and Materials,11-Oct-2020,000009217417477,AMZNMktplace,5999,Other consumables,227.99,0.00,227.99
Children and Young Peoples Services,Head of Childrens Social Care,085331,New Lea Childrens Home,Supplies and Services,348037,Subsistence E348,11-Oct-2020,000009217417651,INFINATE AIR CAFE- SWE,5812,Subsistence,26.15,0.00,26.15
Children and Young Peoples Services,Head of Childrens Social Care,085331,New Lea Childrens Home,Supplies and Services,304999,Equipment and Materials,11-Oct-2020,000009217417657,WWW.INFINITEAIR.CO.UK,7991,Misc equipment tools and materials,30.00,0.00,30.00
Children and Young Peoples Services,Head of Childrens Social Care,085551,Short Break Services-Park Hse Sher,Supplies and Services,304403,Equipment and Materials,11-Oct-2020,000009217417755,AMZNMKTPLACE AMAZON.CO,5999,Other consumables,9.99,0.00,9.99
Children and Young Peoples Services,Head of Childrens Social Care,085551,Short Break Services-Park Hse Sher,Supplies and Services,304403,Equipment and Materials,11-Oct-2020,000009217417763,AMZ Amazon US,5999,Other consumables,-3.90,0.00,-3.90
Children and Young Peoples Services,Head of Early Help Inclusion & Vulnerable Children.,088109,Spennymoor & Shildon 0-19 Community Family Hub,Supplies and Services,312009,Newspapers books and periodicals E312,11-Oct-2020,000009217417817,Amazon.co.uk HY65T5135,5969,Newspapers books and periodicals,21.54,0.00,21.54
Children and Young Peoples Services,Head of Early Help Inclusion & Vulnerable Children.,088109,Spennymoor & Shildon 0-19 Community Family Hub,Supplies and Services,312009,Newspapers books and periodicals E312,11-Oct-2020,000009217417825,Amazon.co.uk SR70A9DZ5,5969,Newspapers books and periodicals,39.49,0.00,39.49
Children and Young Peoples Services,Head of Early Help Inclusion & Vulnerable Children.,088109,Spennymoor & Shildon 0-19 Community Family Hub,Supplies and Services,312009,Newspapers books and periodicals E312,11-Oct-2020,000009217417831,Amazon.co.uk 7N8I56IV5,5969,Newspapers books and periodicals,7.18,0.00,7.18
Children and Young Peoples Services,Head of Childrens Social Care,085333,Coxhoe Satelite Home,Supplies and Services,324117,Provisions E324,11-Oct-2020,000009217417995,Coates Butchers,5422,Catering costs - provisions,20.42,0.00,20.42
Children and Young Peoples Services,Head of Childrens Social Care,085333,Coxhoe Satelite Home,Supplies and Services,324117,Provisions E324,11-Oct-2020,000009217418003,CO-OP GROUP 310016,5411,Catering costs - provisions,0.71,0.00,0.71
Resources BK0010,Business Support,052986,CYPS - Locality and Operational Support,Supplies and Services,304403,Equipment and Materials,11-Oct-2020,000009217418335,AMZNMktplace,5999,Other consumables,79.80,13.30,66.50
Resources BK0010,Business Support,052986,CYPS - Locality and Operational Support,Supplies and Services,304403,Equipment and Materials,11-Oct-2020,000009217418335 - 1,AMZNMktplace,5999,Other consumables,0.10,,0.10
Children and Young Peoples Services,Head of Childrens Social Care,085332,Middlestone Moor CU,Supplies and Services,304221,Equipment and Materials,11-Oct-2020,000009217418433,B & Q 1120,5200,Direct materials,29.45,0.00,29.45
Children and Young Peoples Services,Head of Childrens Social Care,085352,Tow Law CU,Supplies and Services,304403,Equipment and Materials,11-Oct-2020,000009217418561,AMZNMKTPLACE AMAZON.CO,5999,Other consumables,13.75,2.29,11.46
Children and Young Peoples Services,Head of Childrens Social Care,085352,Tow Law CU,Supplies and Services,304221,Equipment and Materials,11-Oct-2020,000009217418571,B & Q 1343,5200,Direct materials,28.12,0.00,28.12
Children and Young Peoples Services,Head of Education and Skills,071802,Louisa Cent Nursery,Supplies and Services,324117,Provisions E324,11-Oct-2020,000009217418587,ALDI 11 774,5411,Catering costs - provisions,2.95,0.00,2.95
"Regeneration, Economy and Growth",Culture Sport and Tourism,011263,Louisa Centre 011263,Supplies and Services,324117,Provisions E324,11-Oct-2020,000009217418657,ASDA SUPERSTORE,5411,Catering costs - provisions,3.00,0.00,3.00
Children and Young Peoples Services,Head of Childrens Social Care,085342,16 Hickstead Rise (previously 9 Cedar Ave),Transport,215995,Running Costs of Vehicles,11-Oct-2020,000009221604733,TESCO PFS 4088,5541,Vehicle running expenses,61.00,0.00,61.00
"Regeneration, Economy and Growth",Business Durham CL0850,030689,Inward Investment and Aftercare,Supplies and Services,304999,Equipment and Materials,12-Oct-2020,000009217416365,MAILCHIMP MONTHLY,5968,Misc equipment tools and materials,2.18,0.00,2.18
Children and Young Peoples Services,Head of Childrens Social Care,085341,High Etherley Satelite Home,Supplies and Services,324117,Provisions E324,12-Oct-2020,000009221603869,TESCO STORES 6329,5411,Catering costs - provisions,82.49,0.00,82.49
Resources BK0010,Legal & Democratic Services,067953,Coroner County Durham & Darlington,Supplies and Services,342033,Computers and Communications,12-Oct-2020,000009221603935,Amazon.co.uk NT7NC3AK5,5969,Computer hardware,71.18,11.86,59.32
Children and Young Peoples Services,Head of Childrens Social Care,085501,Child Care Cases Legal Expenses,Supplies and Services,304403,Equipment and Materials,12-Oct-2020,000009221603975,CITY OF NEWCASTLE INTE,9399,Other consumables,33.00,0.00,33.00
Children and Young Peoples Services,Head of Education and Skills,075021,Youth Employment Initiative,Supplies and Services,364301,Grants to Voluntary Organisations,12-Oct-2020,000009221604017,GO NORTH EAST LIMITED,4131,Hardship,17.00,0.00,17.00
Children and Young Peoples Services,Head of Education and Skills,075021,Youth Employment Initiative,Supplies and Services,364301,Grants to Voluntary Organisations,12-Oct-2020,000009221604033,GO NORTH EAST LIMITED,4131,Hardship,17.00,0.00,17.00
Neighbourhoods and Climate Change,Environmental Services,010383,C&G - South Street Cleansing,Supplies and Services,304403,Equipment and Materials,12-Oct-2020,000009221604075,W E & J ROWLE,5947,Other consumables,25.71,0.00,25.71
"Regeneration, Economy and Growth",Culture Sport and Tourism,030708,VCD - Marketing & Information,Supplies and Services,384199,Miscellaneous Expenses,12-Oct-2020,000009221604091,LATER.COM PREMIUM,5734,Other hired and contracted services,-146.09,0.00,-146.09
Dedicated Schools Grant BG0015,DSG High Needs Block,079050,SENSS-Sensory,Supplies and Services,304403,Equipment and Materials,12-Oct-2020,000009221604121,AMZNMktplace,5999,Other consumables,11.09,0.00,11.09
Children and Young Peoples Services,Head of Childrens Social Care,085341,High Etherley Satelite Home,Supplies and Services,304403,Equipment and Materials,12-Oct-2020,000009221604153,AMZNMKTPLACE AMAZON.CO,5999,Other consumables,50.96,0.00,50.96
Children and Young Peoples Services,Head of Childrens Social Care,085352,Tow Law CU,Supplies and Services,324117,Provisions E324,12-Oct-2020,000009221604461,B&M 681 - DURHAM,5399,Catering costs - provisions,75.01,0.00,75.01
Children and Young Peoples Services,Head of Childrens Social Care,085352,Tow Law CU,Supplies and Services,304999,Equipment and Materials,12-Oct-2020,000009221604465,HOME BARGAINS,5251,Misc equipment tools and materials,50.93,0.00,50.93
Neighbourhoods and Climate Change,Environmental Services,010900,Fleet - Meadowfield Fleet,Transport,215013,Running Costs of Vehicles,12-Oct-2020,000009221604487,DVLA VEHICLE TAX,9311,Vehicle Excise Duty (VED),167.50,0.00,167.50
Neighbourhoods and Climate Change,Environmental Services,010900,Fleet - Meadowfield Fleet,Transport,215013,Running Costs of Vehicles,12-Oct-2020,000009221604499,DVLA VEHICLE TAX,9311,Vehicle Excise Duty (VED),267.50,0.00,267.50
Neighbourhoods and Climate Change,Environmental Services,010900,Fleet - Meadowfield Fleet,Transport,215013,Running Costs of Vehicles,12-Oct-2020,000009221604507,DVLA VEHICLE TAX,9311,Vehicle Excise Duty (VED),167.50,0.00,167.50
Neighbourhoods and Climate Change,Environmental Services,010900,Fleet - Meadowfield Fleet,Transport,215013,Running Costs of Vehicles,12-Oct-2020,000009221604515,DVLA VEHICLE TAX,9311,Vehicle Excise Duty (VED),167.50,0.00,167.50
Neighbourhoods and Climate Change,Environmental Services,010864,Fleet - Hackworth Road Fleet,Transport,215013,Running Costs of Vehicles,12-Oct-2020,000009221604521,DVLA VEHICLE TAX,9311,Vehicle Excise Duty (VED),167.50,0.00,167.50
Neighbourhoods and Climate Change,Environmental Services,010900,Fleet - Meadowfield Fleet,Transport,215013,Running Costs of Vehicles,12-Oct-2020,000009221604525,DVLA VEHICLE TAX,9311,Vehicle Excise Duty (VED),167.50,0.00,167.50
Neighbourhoods and Climate Change,Environmental Services,010864,Fleet - Hackworth Road Fleet,Transport,215013,Running Costs of Vehicles,12-Oct-2020,000009221604531,DVLA VEHICLE TAX,9311,Vehicle Excise Duty (VED),167.50,0.00,167.50
Neighbourhoods and Climate Change,Environmental Services,010900,Fleet - Meadowfield Fleet,Transport,215013,Running Costs of Vehicles,12-Oct-2020,000009221604541,DVLA VEHICLE TAX,9311,Vehicle Excise Duty (VED),167.50,0.00,167.50
Neighbourhoods and Climate Change,Environmental Services,010900,Fleet - Meadowfield Fleet,Transport,215013,Running Costs of Vehicles,12-Oct-2020,000009221604553,DVLA VEHICLE TAX,9311,Vehicle Excise Duty (VED),167.50,0.00,167.50
Neighbourhoods and Climate Change,Environmental Services,010864,Fleet - Hackworth Road Fleet,Transport,215013,Running Costs of Vehicles,12-Oct-2020,000009221604557,DVLA VEHICLE TAX,9311,Vehicle Excise Duty (VED),167.50,0.00,167.50
Neighbourhoods and Climate Change,Environmental Services,010864,Fleet - Hackworth Road Fleet,Transport,215013,Running Costs of Vehicles,12-Oct-2020,000009221604565,DVLA VEHICLE TAX,9311,Vehicle Excise Duty (VED),267.50,0.00,267.50
Neighbourhoods and Climate Change,Environmental Services,010561,Fleet - Morrison Busty Fleet,Transport,215013,Running Costs of Vehicles,12-Oct-2020,000009221604571,DVLA VEHICLE TAX,9311,Vehicle Excise Duty (VED),167.50,0.00,167.50
Neighbourhoods and Climate Change,Environmental Services,010900,Fleet - Meadowfield Fleet,Transport,215013,Running Costs of Vehicles,12-Oct-2020,000009221604577,DVLA VEHICLE TAX,9311,Vehicle Excise Duty (VED),167.50,0.00,167.50
Neighbourhoods and Climate Change,Environmental Services,010900,Fleet - Meadowfield Fleet,Transport,215013,Running Costs of Vehicles,12-Oct-2020,000009221604583,DVLA VEHICLE TAX,9311,Vehicle Excise Duty (VED),267.50,0.00,267.50
Neighbourhoods and Climate Change,Environmental Services,010900,Fleet - Meadowfield Fleet,Transport,215013,Running Costs of Vehicles,12-Oct-2020,000009221604591,DVLA VEHICLE TAX,9311,Vehicle Excise Duty (VED),267.50,0.00,267.50
Neighbourhoods and Climate Change,Environmental Services,010900,Fleet - Meadowfield Fleet,Transport,215013,Running Costs of Vehicles,12-Oct-2020,000009221604601,DVLA VEHICLE TAX,9311,Vehicle Excise Duty (VED),267.50,0.00,267.50
Neighbourhoods and Climate Change,Environmental Services,010900,Fleet - Meadowfield Fleet,Transport,215013,Running Costs of Vehicles,12-Oct-2020,000009221604605,DVLA VEHICLE TAX,9311,Vehicle Excise Duty (VED),267.50,0.00,267.50
Neighbourhoods and Climate Change,Environmental Services,010551,Fleet - Chilton Fleet,Transport,215013,Running Costs of Vehicles,12-Oct-2020,000009221604615,DVLA VEHICLE TAX,9311,Vehicle Excise Duty (VED),167.50,0.00,167.50
Neighbourhoods and Climate Change,Environmental Services,010561,Fleet - Morrison Busty Fleet,Transport,215013,Running Costs of Vehicles,12-Oct-2020,000009221604621,DVLA VEHICLE TAX,9311,Vehicle Excise Duty (VED),167.50,0.00,167.50
Neighbourhoods and Climate Change,Environmental Services,010900,Fleet - Meadowfield Fleet,Transport,215013,Running Costs of Vehicles,12-Oct-2020,000009221604631,DVLA VEHICLE TAX,9311,Vehicle Excise Duty (VED),267.50,0.00,267.50
Neighbourhoods and Climate Change,Environmental Services,010551,Fleet - Chilton Fleet,Transport,215013,Running Costs of Vehicles,12-Oct-2020,000009221604639,DVLA VEHICLE TAX,9311,Vehicle Excise Duty (VED),167.50,0.00,167.50
Neighbourhoods and Climate Change,Environmental Services,010900,Fleet - Meadowfield Fleet,Transport,215013,Running Costs of Vehicles,12-Oct-2020,000009221604649,DVLA VEHICLE TAX,9311,Vehicle Excise Duty (VED),167.50,0.00,167.50
Neighbourhoods and Climate Change,Environmental Services,010900,Fleet - Meadowfield Fleet,Transport,215013,Running Costs of Vehicles,12-Oct-2020,000009221604657,DVLA VEHICLE TAX,9311,Vehicle Excise Duty (VED),167.50,0.00,167.50
Neighbourhoods and Climate Change,Environmental Services,010900,Fleet - Meadowfield Fleet,Transport,215013,Running Costs of Vehicles,12-Oct-2020,000009221604669,DVLA VEHICLE TAX,9311,Vehicle Excise Duty (VED),167.50,0.00,167.50
Neighbourhoods and Climate Change,Environmental Services,010900,Fleet - Meadowfield Fleet,Transport,215013,Running Costs of Vehicles,12-Oct-2020,000009221604677,DVLA VEHICLE TAX,9311,Vehicle Excise Duty (VED),167.50,0.00,167.50
Neighbourhoods and Climate Change,Environmental Services,010551,Fleet - Chilton Fleet,Transport,215013,Running Costs of Vehicles,12-Oct-2020,000009221604681,DVLA VEHICLE TAX,9311,Vehicle Excise Duty (VED),107.50,0.00,107.50
Neighbourhoods and Climate Change,Environmental Services,010900,Fleet - Meadowfield Fleet,Transport,215013,Running Costs of Vehicles,12-Oct-2020,000009221604687,DVLA VEHICLE TAX,9311,Vehicle Excise Duty (VED),167.50,0.00,167.50
Neighbourhoods and Climate Change,Environmental Services,010900,Fleet - Meadowfield Fleet,Transport,215013,Running Costs of Vehicles,12-Oct-2020,000009221604691,DVLA VEHICLE TAX,9311,Vehicle Excise Duty (VED),167.50,0.00,167.50
Children and Young Peoples Services,Head of Education and Skills,071732,Dean Bank Childcare,Supplies and Services,324117,Provisions E324,12-Oct-2020,000009221604771,ASDA GROCERIES ONLINE,5411,Catering costs - provisions,41.54,0.00,41.54
Children and Young Peoples Services,Head of Education and Skills,071732,Dean Bank Childcare,Supplies and Services,324117,Provisions E324,12-Oct-2020,000009221604779,ASDA GROCERIES ONLINE,5411,Catering costs - provisions,47.03,0.00,47.03
Children and Young Peoples Services,Head of Education and Skills,071732,Dean Bank Childcare,Supplies and Services,324117,Provisions E324,12-Oct-2020,000009221604785,TESCO STORES 2971,5411,Catering costs - provisions,79.50,0.00,79.50
"Regeneration, Economy and Growth",Culture Sport and Tourism,054967,Theatre - Technical Staffing,Supplies and Services,332047,Printing Stationery and Gen Off Exps,12-Oct-2020,000009221604797,RYMAN,5943,Stationery,20.93,0.00,20.93
Neighbourhoods and Climate Change,Environmental Services,031221,North Pennines - Bowlees,Supplies and Services,332047,Printing Stationery and Gen Off Exps,12-Oct-2020,000009221604823,WHSMITH.CO.UK,5943,Stationery,22.43,0.00,22.43
"Regeneration, Economy and Growth",Development and Housing,031500,Housing Solutions - Core Team,Transport,235057,Public Transport,12-Oct-2020,000009221604971,BLUE LINE TAXIS,4121,Staff travelling,38.70,0.00,38.70
"Regeneration, Economy and Growth",Development and Housing,031500,Housing Solutions - Core Team,Supplies and Services,352001,Conference Expenses,12-Oct-2020,000009221604981,AYCLIFFE BIZ,7011,Conferencesseminars fees etc,152.00,0.00,152.00
"Regeneration, Economy and Growth",Development and Housing,031500,Housing Solutions - Core Team,Supplies and Services,352001,Conference Expenses,12-Oct-2020,000009221604985,AYCLIFFE BIZ,7011,Conferencesseminars fees etc,114.00,0.00,114.00
"Regeneration, Economy and Growth",Development and Housing,031500,Housing Solutions - Core Team,Supplies and Services,304999,Equipment and Materials,12-Oct-2020,000009221604989,DUNCAN BELTON TA K,6513,Misc equipment tools and materials,500.00,0.00,500.00
"Regeneration, Economy and Growth",Development and Housing,030771,Durham Advance Flexible Fund,Supplies and Services,304259,Equipment and Materials,12-Oct-2020,000009221604993,GEN REGISTER OFFICE,9399,Equipment-purchase and rental,14.00,0.00,14.00
"Regeneration, Economy and Growth",Development and Housing,030776,LINKCD Flexible Fund,Supplies and Services,304259,Equipment and Materials,12-Oct-2020,000009221605013,SECURITY INDUSTRY,7393,Equipment-purchase and rental,285.00,0.00,285.00
Children and Young Peoples Services,Head of Early Help Inclusion & Vulnerable Children.,088112,Seaham & Central Durham 0-19 Targeted Family Support,Supplies and Services,328041,Clothing uniforms and laundry E328,12-Oct-2020,000009221605079,MR STEPHEN PARKIN T A,5611,Clothing uniforms and laundry,130.60,0.00,130.60
Children and Young Peoples Services,Head of Early Help Inclusion & Vulnerable Children.,088112,Seaham & Central Durham 0-19 Targeted Family Support,Supplies and Services,324117,Provisions E324,12-Oct-2020,000009221605087,ASDA GROCERIES ONLINE,5411,Catering costs - provisions,195.81,0.00,195.81
Children and Young Peoples Services,Head of Early Help Inclusion & Vulnerable Children.,088112,Seaham & Central Durham 0-19 Targeted Family Support,Supplies and Services,324117,Provisions E324,12-Oct-2020,000009221605093,ASDA GROCERIES ONLINE,5411,Catering costs - provisions,-6.50,0.00,-6.50
Neighbourhoods and Climate Change,Environmental Services,011060,C&G - Hardwick Park Catering,Supplies and Services,304083,Equipment and Materials,12-Oct-2020,000009221605111,WWW.NISBETS.COM,5964,Catering equipment,45.14,0.00,45.14
Neighbourhoods and Climate Change,Environmental Services,011060,C&G - Hardwick Park Catering,Supplies and Services,324117,Provisions E324,12-Oct-2020,000009221605149,JR HOLLAND FOODSERVICE,5499,Catering costs - provisions,37.27,0.00,37.27
Resources BK0010,People & Talent Management,010984,Training and Development,Employees,040149,Recruitment Instruction and Training,12-Oct-2020,000009221605175,CIPD INTEGRA,8999,Training-all costs,138.00,0.00,138.00
"Regeneration, Economy and Growth",Development and Housing,031500,Housing Solutions - Core Team,Transport,235057,Public Transport,12-Oct-2020,000009221605233,BLUE LINE TAXIS,4121,Staff travelling,13.00,0.00,13.00
"Regeneration, Economy and Growth",Development and Housing,031500,Housing Solutions - Core Team,Supplies and Services,352001,Conference Expenses,12-Oct-2020,000009221605239,AYCLIFFE BIZ,7011,Conferencesseminars fees etc,152.00,0.00,152.00
"Regeneration, Economy and Growth",Development and Housing,031500,Housing Solutions - Core Team,Supplies and Services,352001,Conference Expenses,12-Oct-2020,000009221605247,AYCLIFFE BIZ,7011,Conferencesseminars fees etc,152.00,0.00,152.00
"Regeneration, Economy and Growth",Development and Housing,031500,Housing Solutions - Core Team,Supplies and Services,352001,Conference Expenses,12-Oct-2020,000009221605253,HI NEWCASTLE WASHI,7011,Conferencesseminars fees etc,480.00,0.00,480.00
Children and Young Peoples Services,Head of Childrens Social Care,085331,New Lea Childrens Home,Supplies and Services,308011,Furniture,12-Oct-2020,000009221605265,IKEA LTD 143 GATESHEAD,5712,Furniture repair and replacement,260.50,0.00,260.50
Children and Young Peoples Services,Head of Childrens Social Care,085331,New Lea Childrens Home,Supplies and Services,308011,Furniture,12-Oct-2020,000009221605271,IKEA LTD 143 GATESHEAD,5712,Furniture repair and replacement,1.05,0.00,1.05
Children and Young Peoples Services,Head of Childrens Social Care,085551,Short Break Services-Park Hse Sher,Transport,215995,Running Costs of Vehicles,12-Oct-2020,000009221605355,THEAA,8675,Vehicle running expenses,361.00,0.00,361.00
Children and Young Peoples Services,Head of Childrens Social Care,085551,Short Break Services-Park Hse Sher,Transport,215995,Running Costs of Vehicles,12-Oct-2020,000009221605359,THEAA,8675,Vehicle running expenses,361.00,0.00,361.00
Children and Young Peoples Services,Head of Childrens Social Care,085551,Short Break Services-Park Hse Sher,Supplies and Services,338057,Services,12-Oct-2020,000009221605365,COMPLETE CARE SHOP,5047,Medical fees 338057,42.19,0.00,42.19
Children and Young Peoples Services,Head of Early Help Inclusion & Vulnerable Children.,088108,Spennymoor & Shildon 0-19 Targeted Family Support,Supplies and Services,372009,Subscriptions E372,12-Oct-2020,000009221605401,GMC PUBLICATIONS LTD,5192,Subscriptions 372009,27.00,0.00,27.00
Children and Young Peoples Services,Head of Early Help Inclusion & Vulnerable Children.,088109,Spennymoor & Shildon 0-19 Community Family Hub,Supplies and Services,312009,Newspapers books and periodicals E312,12-Oct-2020,000009221605407,Amazon.co.uk M45WO9KD5,5969,Newspapers books and periodicals,75.81,0.00,75.81
Children and Young Peoples Services,Head of Early Help Inclusion & Vulnerable Children.,088106,Ferryhill & N.Aycliffe 0-19 Targeted Family Support,Supplies and Services,304259,Equipment and Materials,12-Oct-2020,000009221605411,POUNDSTRETCHER 692,5331,Equipment-purchase and rental,5.97,0.00,5.97
Children and Young Peoples Services,Head of Early Help Inclusion & Vulnerable Children.,088106,Ferryhill & N.Aycliffe 0-19 Targeted Family Support,Supplies and Services,304259,Equipment and Materials,12-Oct-2020,000009221605415,HOME BARGAINS,5251,Equipment-purchase and rental,60.38,0.00,60.38
Children and Young Peoples Services,Head of Childrens Social Care,085626,Families First Shildon/Chilton,Supplies and Services,364301,Grants to Voluntary Organisations,12-Oct-2020,000009221605421,TESCO ONLINE,5999,Hardship,16.99,0.00,16.99
Children and Young Peoples Services,Head of Early Help Inclusion & Vulnerable Children.,088106,Ferryhill & N.Aycliffe 0-19 Targeted Family Support,Supplies and Services,304259,Equipment and Materials,12-Oct-2020,000009221605431,Amazon.co.uk 0M5LD0I85,5969,Equipment-purchase and rental,43.98,7.34,36.64
Children and Young Peoples Services,Head of Early Help Inclusion & Vulnerable Children.,088109,Spennymoor & Shildon 0-19 Community Family Hub,Supplies and Services,304259,Equipment and Materials,12-Oct-2020,000009221605435,ARGOS LTD,5310,Equipment-purchase and rental,93.95,0.00,93.95
Children and Young Peoples Services,Head of Early Help Inclusion & Vulnerable Children.,088106,Ferryhill & N.Aycliffe 0-19 Targeted Family Support,Supplies and Services,364301,Grants to Voluntary Organisations,12-Oct-2020,000009221605441,ARGOS LTD,5310,Hardship,52.00,0.00,52.00
Adult and Health Services,Head of Adults,055643,Hawthorn House LD Respite Unit,Supplies and Services,324117,Provisions E324,12-Oct-2020,000009221605533,SAINSBURYS SACAT 0776,5411,Catering costs - provisions,4.73,0.00,4.73
Adult and Health Services,Head of Adults,055643,Hawthorn House LD Respite Unit,Supplies and Services,324117,Provisions E324,12-Oct-2020,000009221605539,CO-OP GROUP 010465,5411,Catering costs - provisions,1.50,0.00,1.50
Children and Young Peoples Services,Head of Childrens Social Care,085342,16 Hickstead Rise (previously 9 Cedar Ave),Supplies and Services,348037,Subsistence E348,12-Oct-2020,000009221605603,MCDONALDS,5814,Subsistence,25.85,0.00,25.85
Children and Young Peoples Services,Head of Early Help Inclusion & Vulnerable Children.,085957,Secure Management,Supplies and Services,304999,Equipment and Materials,12-Oct-2020,000009221605629,TESCO SUBSCRIPTION,5968,Misc equipment tools and materials,6.99,0.00,6.99
Children and Young Peoples Services,Head of Education and Skills,075021,Youth Employment Initiative,Transport,235057,Public Transport,12-Oct-2020,000009221605639,GO NORTH EAST LIMITED,4131,Staff travelling,68.00,0.00,68.00
Adult and Health Services,Head of Adults,055643,Hawthorn House LD Respite Unit,Supplies and Services,324117,Provisions E324,12-Oct-2020,000009221605681,JR HOLLAND FOODSERVICE,5499,Catering costs - provisions,15.98,0.00,15.98
Children and Young Peoples Services,Head of Early Help Inclusion & Vulnerable Children.,088103,Consett & Stanley 0-19 Community Family Hub,Supplies and Services,384302,Miscellaneous Expenses,12-Oct-2020,000009221605757,ASDA GROCERIES ONLINE,5411,Activity expenses,293.46,0.00,293.46
Children and Young Peoples Services,Head of Early Help Inclusion & Vulnerable Children.,088103,Consett & Stanley 0-19 Community Family Hub,Supplies and Services,384302,Miscellaneous Expenses,12-Oct-2020,000009221605765,ASDA GROCERIES ONLINE,5411,Activity expenses,-8.59,0.00,-8.59
Children and Young Peoples Services,Head of Childrens Social Care,085334,West Rainton Satelite Home,Supplies and Services,304999,Equipment and Materials,12-Oct-2020,000009221605801,HOME BARGAINS,5251,Misc equipment tools and materials,5.98,0.00,5.98
Children and Young Peoples Services,Head of Childrens Social Care,085334,West Rainton Satelite Home,Supplies and Services,324117,Provisions E324,12-Oct-2020,000009221605809,ASDA SUPERSTORE,5411,Catering costs - provisions,11.00,0.00,11.00
Children and Young Peoples Services,Head of Childrens Social Care,085334,West Rainton Satelite Home,Supplies and Services,324117,Provisions E324,12-Oct-2020,000009221605819,ASDA SUPERSTORE,5411,Catering costs - provisions,28.09,0.00,28.09
Children and Young Peoples Services,Head of Childrens Social Care,085334,West Rainton Satelite Home,Supplies and Services,324117,Provisions E324,12-Oct-2020,000009221605825,ASDA SUPERSTORE,5411,Catering costs - provisions,8.00,0.00,8.00
Children and Young Peoples Services,Head of Early Help Inclusion & Vulnerable Children.,085957,Secure Management,Supplies and Services,304403,Equipment and Materials,12-Oct-2020,000009221605861,AMZNMktplace,5999,Other consumables,21.42,3.57,17.85
Children and Young Peoples Services,Head of Early Help Inclusion & Vulnerable Children.,085957,Secure Management,Supplies and Services,304403,Equipment and Materials,12-Oct-2020,000009221605861 - 1,AMZNMktplace,5999,Other consumables,0.06,,0.06
Children and Young Peoples Services,Head of Early Help Inclusion & Vulnerable Children.,085965,Barnard,Supplies and Services,304649,Equipment and Materials,12-Oct-2020,000009221605871,Amazon.co.uk 6Y1U41WT5,5969,Toys,49.00,8.17,40.83
Children and Young Peoples Services,Head of Early Help Inclusion & Vulnerable Children.,085957,Secure Management,Supplies and Services,304403,Equipment and Materials,12-Oct-2020,000009221605879,AMZNMktplace,5999,Other consumables,25.98,0.00,25.98
Children and Young Peoples Services,Head of Early Help Inclusion & Vulnerable Children.,085965,Barnard,Supplies and Services,384999,Miscellaneous Expenses,12-Oct-2020,000009221605887,AMZNMktplace,5999,Other expenses,35.98,0.00,35.98
Resources BK0010,Business Support,052986,CYPS - Locality and Operational Support,Supplies and Services,304403,Equipment and Materials,12-Oct-2020,000009221605895,AMZNMktplace,5999,Other consumables,127.68,21.28,106.40
Resources BK0010,Business Support,052986,CYPS - Locality and Operational Support,Supplies and Services,304403,Equipment and Materials,12-Oct-2020,000009221605895 - 1,AMZNMktplace,5999,Other consumables,0.16,,0.16
Resources BK0010,Business Support,052986,CYPS - Locality and Operational Support,Supplies and Services,304403,Equipment and Materials,12-Oct-2020,000009221605905,AMZNMktplace,5999,Other consumables,31.92,5.32,26.60
Resources BK0010,Business Support,052986,CYPS - Locality and Operational Support,Supplies and Services,304403,Equipment and Materials,12-Oct-2020,000009221605905 - 1,AMZNMktplace,5999,Other consumables,0.04,,0.04
"Regeneration, Economy and Growth",Culture Sport and Tourism,054235,Bishop Auckland Town Hall Cafe,Supplies and Services,324117,Provisions E324,12-Oct-2020,000009221605915,JR HOLLAND FOODSERVICE,5499,Catering costs - provisions,48.40,0.00,48.40
"Regeneration, Economy and Growth",Culture Sport and Tourism,054235,Bishop Auckland Town Hall Cafe,Supplies and Services,324117,Provisions E324,12-Oct-2020,000009221605925,JR HOLLAND FOODSERVICE,5499,Catering costs - provisions,143.93,0.00,143.93
"Regeneration, Economy and Growth",Culture Sport and Tourism,054235,Bishop Auckland Town Hall Cafe,Supplies and Services,324117,Provisions E324,12-Oct-2020,000009221605933,JR HOLLAND FOODSERVICE,5499,Catering costs - provisions,12.18,0.00,12.18
Neighbourhoods and Climate Change,Environmental Services,010301,C&G - North Grounds Maintenance,Supplies and Services,304999,Equipment and Materials,12-Oct-2020,000009221606005,GUSTHARTS,5072,Misc equipment tools and materials,333.18,0.00,333.18
Children and Young Peoples Services,Head of Childrens Social Care,085352,Tow Law CU,Supplies and Services,384999,Miscellaneous Expenses,12-Oct-2020,000009221606051,Amazon.co.uk MZ1YE1OH5,5969,Other expenses,49.00,8.17,40.83
Children and Young Peoples Services,Head of Childrens Social Care,085352,Tow Law CU,Supplies and Services,384999,Miscellaneous Expenses,12-Oct-2020,000009221606067,Amazon.co.uk 215ZW4ST5,5969,Other expenses,22.99,3.83,19.16
Children and Young Peoples Services,Head of Education and Skills,071802,Louisa Cent Nursery,Supplies and Services,324117,Provisions E324,12-Oct-2020,000009221606079,ASDA GROCERIES ONLINE,5411,Catering costs - provisions,103.99,0.00,103.99
Adult and Health Services,Head of Adults,055310,Positive Journeys (Tudhoe),Supplies and Services,384999,Miscellaneous Expenses,12-Oct-2020,000009221606179,Amazon.co.uk UL18W7Y65,5969,Other expenses,84.85,14.15,70.70
Children and Young Peoples Services,Head of Early Help Inclusion & Vulnerable Children.,085810,CDYJS - Interventions Team,Supplies and Services,348037,Subsistence E348,12-Oct-2020,000009221606317,McDonalds UK,5814,Subsistence,14.40,0.00,14.40
Children and Young Peoples Services,Head of Early Help Inclusion & Vulnerable Children.,085810,CDYJS - Interventions Team,Supplies and Services,348037,Subsistence E348,12-Oct-2020,000009221606329,McDonalds UK,5814,Subsistence,19.32,0.00,19.32
Resources BK0010,Business Support,065504,Business Support - Meadowfield,Supplies and Services,342033,Computers and Communications,12-Oct-2020,000009224012551,AMZNMKTPLACE AMAZON.CO,5999,Computer hardware,14.99,2.50,12.49
"Regeneration, Economy and Growth",Development and Housing,031576,B& B - Temp Accom,Supplies and Services,364320,Grants to Voluntary Organisations,12-Oct-2020,000009224013059,WWW.HOTEL52.CO.UK,7011,Accommodation assistance,166.00,0.00,166.00
"Regeneration, Economy and Growth",Development and Housing,031500,Housing Solutions - Core Team,Supplies and Services,352001,Conference Expenses,12-Oct-2020,000009224013183,WWW.HOTEL52.CO.UK,7011,Conferencesseminars fees etc,294.00,0.00,294.00
"Regeneration, Economy and Growth",Development and Housing,031500,Housing Solutions - Core Team,Supplies and Services,352001,Conference Expenses,12-Oct-2020,000009224013413,WWW.HOTEL52.CO.UK,7011,Conferencesseminars fees etc,116.00,0.00,116.00
"Regeneration, Economy and Growth",Development and Housing,031500,Housing Solutions - Core Team,Supplies and Services,352001,Conference Expenses,12-Oct-2020,000009224013421,WWW.HOTEL52.CO.UK,7011,Conferencesseminars fees etc,272.00,0.00,272.00
